Workbook

Sheet About EI2
B1: EI2 - ThermalComfortR
B3: Economic Impacts of Electrification Initiatives (EI2) Model
B6: Release Number: tcr-2021-10-22
B8: The Economic Impacts of Electrification Initiatives (EI2) Model use a similar structure as the Jobs and Economic Development Impact (JEDI) Model that was initially developed in 2002 to demonstrate the economic benefits associated with developing land-based wind power plants in the United States. The primary goal in developing the Canadian provincial / territorial level model is to provide a tool for government officials, decision makers and other potential users, to easily identify the local economic impacts associated with energy efficiency measures such as installing thermal comfort technologies. The second goal was to facilitate broad access and usage of the model.
B13: Consistent with these goals, a strong emphasis was placed on designing the model in a user-friendly format that could be easily modified - reflecting different levels of project specific information and user skill. This insures the greatest flexibility for inexperienced spreadsheet users, those unfamiliar with economic impact analysis, and more experienced and knowledgeable users who have a need for this specific type of analysis.
B16: The EI2 models were adapted by Éloïse Edom, research associate at the Institut de l'énergie Trottier, as part of the NRCAN-supported Energy Modelling Initiative.
B17: Institut de l'énergie Trottier
B18: Energy Modelling Initiative
B20: For more information about the EI2 models go to https://emi-ime.ca/ei2/.
B21: Or contact:
B22: info@emi-ime.ca
B23: eloise.edom@polymtl.ca

Sheet FAQ
B2: EI2 - ThermalComfortR
B4: Economic Impacts of Electrification Initiatives (EI2) Model
B6: Frequently Asked Questions (FAQ)
B9: How do I know if I have the most current version of the EI2 model?
B10: The most current version of the EI2 model is available on the Energy Modelling initiative web site at https://emi-ime.ca/.
B12: How can I determine which version of the EI2 model I have?
B13: The version (release number) of the model you are currently using is listed in the "About EI2" worksheet contained in this model.
B15: When I open up the model I receive a security alert message stating "the macros in the file have been disabled," how do I change the security setting so I
B16: can run the model with the macros enabled?
B17: Click on the "Enable Content" button that appears at the left of the security alert.
B19: What does the "local share" refer to?
B20: The "local share" refers to the percentage of each expenditure that is actually spent locally (i.e., in the province, territory, region being analyzed). For example, if $1 million
B21: is going to be spent on equipments and half ($500,000) of this total will be purchased from local suppliers, we say the "local share" is 50 percent.
B23: What does the term "full-time equivalent for a period of one year" refer to in the jobs results?
B24: The term refers to a job that is held (and wages paid) for a period of one year. This is based on 2,080 hours (52 weeks times 40 hours per week). For example, if the
B25: analysis indicates there are 100 construction jobs, there will be the equivalent of 100 workers, working full-time, for the entire year. If the construction period is two
B26: years, the job impacts (100 jobs) are spread over the two year construction period. In this example, there will be an average of 50 full-time jobs (100 jobs divided by 2
B27: years) during each of the years. Similarly, if the construction period is less than one year, for example, 9 months (75 percent of a full year), then the number of persons
B28: actually employed and working full-time during that period will be greater since they will not be employed and working for an entire year. In this example, there will be
B29: an average of 133 full-time workers (100 jobs divided by .75 percent of the year) during the 9 month construction period.
B31: I want to make my analysis as accurate as possible, where can I get information to adjust the default "local share" values (in the ProjectData worksheet)
B32: for my province or territory?
B33: Since the "local share" is directly related to the availability of local businesses and services and their ability to meet the installation and annual operating demands
B34: of the project, it is important to have an accurate picture of these local resources. This can be obtained in a number of ways: contacting experienced and knowlegeable
B35: persons in the area, contacting local business and contractor organizations and/or the local chamber of commerce, among others.
B37: I want to make changes to the default Labour installation and/or maintenance costs, wage rates or employer payroll overhead but when I do I receive a pop up
B38: instructing me to only make changes if I change other wage and/or salary related cells. Why is this?
B39: The model uses the total Labour costs and the average wages per hour to calculate the number of installation workers and maintenance workers. Therefore, if a User chooses
B40: to modify the default values, they override the default ratios programed into the model. Thus, if the User increases (or decreases) the total Labour costs without changing
B41: the wage per hour, the results will show more workers. Similarly, if the average wage per hour is increased (or decreased), without a subsequent increase in the
B42: total Labour costs, the results will show fewer workers.
B44: I am interested in viewing and possibly editting internal formulas within the model, how do I access them?
B45: The EI2 model contains several intermediate worksheets that are an integral part of the model analysis. These worksheets are not designed to be changed by users.
B46: Several of these worksheets, including default data, calculations, and deflators may be viewed by merely clicking on the respective worksheet and scrolling to the right.
B47: Although these sheets may be viewed by users they are protected and can not be edited.
B49: What is the source of the default system costs?
B50: Default values are derived from various sources. Sources include:
B51: Costs and cost allocations
B52: - A survey (conducted with companies working in energy services in the residential sector)
B53: - A database developped by Canmet ENERGY
B55: Where can I get more information on input-output modeling and using the EI2 model?
B56: More information on how to use the EI2 model can be found at https://emi-ime.ca/ei2/.
B57: EI2 use the same structure as the JEDI models developped by NREL. To view and/or download JEDI related publications go to the Department of Energy's web site
B58: at www.windpoweringamerica.gov. Click on "Economic Development" on the left side of the page (under Program Areas). Additional information on these topics and access to
B59: publications is available by then clicking on "Jobs and Economic Impact (JEDI) Model. Once there, scroll down to "Publications" and click on any of the links.
B60: (See also, Is additional technical support available, in FAQ.)

Sheet START
B3: EI2 - ThermalComfortR
B4: Economic Impacts of Electrification Initiatives (EI2) Model

Sheet ProjectData
A1: EI2 - Thermal Comfort Residential (EI2-TCR)
A3: INSTRUCTIONS: 1. Begin by entering Project Location (from pull-down list) and other Descriptive Data. 2. After inserting required data press enter (or cursor to the next cell) to continue. 3. Once Descriptive Data is complete, choose "Y" or "N" on Line 20 to continue. 4. Choose "Y" to accept Project Cost and Local Share defaults or "N" to review/modify values. 5. Once all values are entered, click the "Go to Summary Impacts" button. To utilize new values in analysis you must choose an "N" in "Utilize Model Default Values (below)?" - Line 21 Additional information is available by pointing to the red triangles located in cell corners and in the FAQ tab. Only those cells with a white background can be changed (accept new values).
A6: Project Descriptive Data
A7: Project Description
A8: Project Name | B8: Project 1 | C8: =IF(B9="MYREGION",IF('User Add-in Location'!E22=0," Error - No Regional multiplier data in User Add-in Location",""),"") -> 
A9: Project Location | B9: Alberta | C9: =IF(B9="MYREGION",IF('User Add-in Location'!E22=0,""," Enter Region Population"),"") ->  | AA9: =IF(B9="MYREGION",IF(B10="",2,1),0) -> 0
C10: =IF($C9="","",IF($B10<1," **Error - Population Data Missing**","")) -> 
A11: Thermal Comfort Technology / Service | B11: Cold climate air-source heat pump
A12: Number of installations | B12: 12000
A15: Installation information
A16: Year of Construction | B16: 2022
A17: Money Value (Dollar Year) | B17: 2020
A18: Costs information
A19: Installed Cost ($/technology) | B19: =DefaultData!F7 -> 18276.16
A20: Maintenance Cost ($/technology) | B20: =DefaultData!G7 -> 230
A21: Utilize Project Cost Data default values in analysis? Choose "Y" to accept default values below or "N" to over-ride default | B21: Y | D21: =IF($B$21="y","Press 'Go To Summary Impacts' Button",IF($B$21="N","Modify Project Cost Data (below)","Error - Re-enter 'Y' or 'N'")) -> Press 'Go To Summary Impacts' Button
A22: values and utilize new user defined values as entered below. See FAQ for related topics.
A24: If desired, default values (in cells below - based on Project Descriptive Data entered above) may be restored by pressing the 'Restore Default Values' button. Note: it is not necessary to restore defaults to incorporate default Project Cost Data in system analysis - simply choose "Y" in cell B24 above.
A25: Project cost Data
A26: Installation Costs | AH26: Default Values
B27: Cost | C27: Cost Per installation | D27: Percent of Total Cost | E27: Local Share | AH27: Cost | AI27: Local Share
A28: Equipment & Installation Costs
A29: =DefaultData!C17 -> Cold climate air-source heat pump | B29: =AH29 -> 120622656 | C29: =B29/(B$12) -> 10051.888 | D29: =B29/B$33 -> 0.55 | E29: =AI29 -> 1 | AH29: =DefaultData!D17 -> 120622656 | AI29: =DefaultData!F17 -> 1
A30: Labour | B30: =AH30 -> 98691264 | C30: =B30/(B$12) -> 8224.272 | D30: =B30/B$33 -> 0.45 | E30: =AI30 -> 1 | AH30: =DefaultData!D18 -> 98691264 | AI30: =DefaultData!F18 -> 1
A31: Subtotal (all cost without taxes) | B31: 219313920 | C31: =B31/(B$12) -> 18276.16 | D31: =B31/B33 -> 1 | AH31: =AH29+AH30 -> 219313920
A32: Sales tax | B32: 0 | C32: =B32/(B$12) -> 0 | D32: =B32/B33 -> 0 | E32: =AI32 -> 1 | AH32: =DefaultData!D20 -> 0 | AI32: 1
A33: Total installations costs | B33: =B31+B32 -> 219313920 | D33: =D31+D32 -> 1
A35: Annual Maintenance Costs
B36: Cost | C36: Cost Per installation | D36: Percent of Total Cost | E36: Local Share | AH36: Cost | AI36: Local Share or % of Time Onsite (for itinerate workers)
A37: Labour
A38: Maintenance labour | B38: =AH38 -> 2760000 | C38: =B38/(B$12) -> 230 | D38: =IF(B38<>0,B38/B$41,0) -> 1 | E38: =AI38 -> 1 | AH38: =DefaultData!D27 -> 2760000 | AI38: =DefaultData!F27 -> 1
A39: Subtotal (all cost without taxes) | B39: =B38 -> 2760000 | C39: =B39/(B$12) -> 230 | D39: =IF(B39<>0,B39/B$41,0) -> 1
A40: Sales tax | B40: =AH40 -> 0 | C40: 0 | D40: 0 | E40: =AI40 -> 1 | AH40: =DefaultData!D28 -> 0 | AI40: =DefaultData!F28 -> 1
A41: Total Maintenance Cost | B41: =B39+B40 -> 2760000 | D41: =D39+D40 -> 1
A44: Other Parameters
A45: Tax Parameters
A46: Local Sales Tax Rate | B46: =AH46 -> 0 | E46: =AI46 -> 1 | AH46: =DefaultData!D33 -> 0 | AI46: =DefaultData!E33 -> 1
A47: Payroll Parameters
B48: Wage per hour | D48: Employer Payroll Overhead | AH48: Wage per hour | AJ48: Employer Payroll Overhead
A49: Installation worker | B49: =AH49 -> 27.7274698 | D49: =AJ49 -> 0.3383 | AH49: =DefaultData!F37 -> 27.7274698 | AJ49: =DefaultData!K32 -> 0.3383
B50: Wage per hour | D50: Employer Payroll Overhead | AH50: Wage per hour | AJ50: Employer Payroll Overhead
A51: Maintenance worker | B51: =AH51 -> 27.7274698 | D51: =AJ51 -> 0.3383 | AH51: =DefaultData!F38 -> 27.7274698 | AJ51: =DefaultData!K32 -> 0.3383

Sheet SummaryResults
A1: EI2 - TCR
A2: =CONCATENATE("Thermal comfort measures - Project Data Summary based on ",$AE$5, " values") -> Thermal comfort measures - Project Data Summary based on Model Default Data values
A3: Project Location | C3: =IF(ProjectData!B9="MyCounty",'User Add-in Location'!#REF!,ProjectData!B9) -> Alberta | AE3: =D7+D8 -> 18506.16 | AF3: =ProjectData!B21 -> Y
A4: Year of Construction | C4: =ProjectData!B16 -> 2022 | AE4: =DefaultData!F7+DefaultData!G7 -> 18506.16
A5: Number of installations | C5: =ProjectData!B12 -> 12000 | AE5: =IF(AND(ROUND(AE3,2)=ROUND(AE4,2),AF3="Y"),"Model Default Data","User Data") -> Model Default Data
A7: Installed Cost ($/technology) | C7: =Calculations!D11/SummaryResults!C5 -> 18276.16 | D7: =ProjectData!B19 -> 18276.16 | E7: without taxes | AE7: =_xlfn.CONCAT("EI2-TCR_",ProjectData!B8) -> EI2-TCR_Project 1
A8: Maintenance Cost ($/technology) | C8: =Calculations!D18/SummaryResults!C5 -> 230 | D8: =ProjectData!B20 -> 230 | E8: without taxes
A9: Money Value (Dollar Year) | C9: =ProjectData!B17 -> 2020
A10: Total Installed Project Cost | C10: =Calculations!D11 -> 219313920
A11: Local Spending | C11: =Calculations!D36 -> 219313920
A12: Total Annual Maintenance Expenses
A13: Direct Maintenance Costs
A14: Local Spending | C14: =Calculations!D18 -> 2760000
A21: Local Economic Impacts - Summary Results
B22: Jobs | C22: Earnings | D22: Output | E22: Value Added
A23: Installation | AE23: Local Economic Impacts - Construction phase - # of jobs created
A24: Direct impacts | B24: =Calculations!AH18 -> 1605.163496 | C24: =Calculations!AI18 -> 98.691264 | D24: =Calculations!AJ18 -> 98.691264 | E24: =Calculations!AK18 -> 55.33220047 | AE24: During Installation period | AF24: JOBS | AI24: Earnings | AJ24: Output | AK24: Value Added
A25: Indirect impacts (supply chain impacts) | B25: =Calculations!AH19 -> 734.688945 | C25: =Calculations!AI19 -> 61.62876078 | D25: =Calculations!AJ19 -> 216.7110014 | E25: =Calculations!AK19 -> 85.76258254 | AE25: Induced Impacts | AF25: =B26 -> 257.7983785 | AH25: Induced Impacts | AI25: =C26 -> 13.55200344 | AJ25: 53.35292826 | AK25: 33.13323172
A26: Induced Impacts | B26: =Calculations!AH20 -> 257.7983785 | C26: =Calculations!AI20 -> 13.55200344 | D26: =Calculations!AJ20 -> 53.35292826 | E26: =Calculations!AK20 -> 33.13323172 | AE26: Indirect impacts (supply chain impacts) | AF26: =B25 -> 734.688945 | AH26: Indirect impacts (supply chain impacts) | AI26: =C25 -> 61.62876078 | AJ26: 216.7110014 | AK26: 85.76258254
A27: Total Impacts | B27: =SUM(B24:B26) -> 2597.650819 | C27: =SUM(C24:C26) -> 173.8720282 | D27: 368.7551937 | E27: 174.2280147 | AE27: Direct impacts | AF27: =B24 -> 1605.163496 | AH27: Direct impacts | AI27: =C24 -> 98.691264 | AJ27: =D24 -> 98.691264 | AK27: =E24 -> 55.33220047
AE28: Total Impacts | AF28: =B27 -> 2597.650819 | AH28: Total Impacts | AI28: =C27 -> 173.8720282 | AJ28: =D27 -> 368.7551937 | AK28: =E27 -> 174.2280147
A29: During operating years (annual)
A30: Onsite Labor Impacts | B30: =Calculations!AH25 -> 35.75872523 | C30: =Calculations!AI25 -> 2.0148 | D30: =Calculations!AJ25 -> 2.0148 | E30: =Calculations!AK25 -> 2.0148 | AE30: Local Economic Impacts - O&M phase - # of jobs created
A31: Local Revenue and Supply Chain Impacts | B31: =Calculations!AH26 -> 3.391165739 | C31: =Calculations!AI26 -> 0.2289701956 | D31: =Calculations!AJ26 -> 0.8557708518 | E31: =Calculations!AK26 -> 0.4385825903 | AE31: Annual maintenance | AF31: JOBS | AI31: Earnings | AJ31: Output | AK31: Value Added
A32: Induced Impacts | B32: =Calculations!AH27 -> 2.31445942 | C32: =Calculations!AI27 -> 0.1220133951 | D32: =Calculations!AJ27 -> 0.4785789028 | E32: =Calculations!AK27 -> 0.2973158705 | AE32: Induced Impacts | AF32: =B32 -> 2.31445942 | AH32: Induced Impacts | AI32: =C32 -> 0.1220133951 | AJ32: 0.4785789028 | AK32: 0.2973158705
A33: Total Impacts | B33: =SUM(B30:B32) -> 41.46435039 | C33: =SUM(C30:C32) -> 2.365783591 | D33: 3.349149755 | E33: 2.750698461 | AE33: Local Revenue and Supply Chain Impacts | AF33: =B31 -> 3.391165739 | AH33: Local Revenue and Supply Chain Impacts | AI33: =C31 -> 0.2289701956 | AJ33: =D31 -> 0.8557708518 | AK33: =E31 -> 0.4385825903
A34: =CONCATENATE("Notes: Earnings and Output values are millions of dollars in year ", ProjectData!B17," dollars.") -> Notes: Earnings and Output values are millions of dollars in year 2020 dollars. | AE34: Onsite Labor Impacts | AF34: =B30 -> 35.75872523 | AH34: Onsite Labor Impacts | AI34: =C30 -> 2.0148 | AJ34: 2.0148 | AK34: 2.0148
AE35: Total Impacts | AF35: 41.46435039 | AH35: Total Impacts | AI35: =C33 -> 2.365783591 | AJ35: =D33 -> 3.349149755 | AK35: =E33 -> 2.750698461
A37: Installation and maintenance jobs are full-time equivalent for a period of one year (1 FTE = 2,080 hours). Economic impacts "During operating years" represent impacts that occur from system maintenance expenditures. The analysis does not include impacts associated with spending of homeowners utility savings. Totals may not add up due to independent rounding.
A38: =CONCATENATE("Results are based on ",AE5," values.") -> Results are based on Model Default Data values.

Sheet User Add-in Location (hidden)
A1: Multipliers For Economic Input-Output Analysis
A3: MYREGION (Name) | C3: Year of Data
A4: Province or Territory (Name)
A6: Jobs Direct Multipliers | E6: Personal Consumption Expenditures (PCE)
A7: Jobs Per Million Dollars Change in Final Demand | B7: MyRegion | E7: MYREGION
A8: Agriculture | B8: 0 | E8: 0
A9: Mining | B9: 0 | E9: 0
A10: Construction | B10: 0 | E10: 0
A11: Manufacturing | B11: 0 | E11: 0
A12: Fabricated Metals | B12: 0 | E12: 0
A13: Machinery | B13: 0 | E13: 0
A14: Electrical Equipment | B14: 0 | E14: 0
A15: TCPU | B15: 0 | E15: 0
A16: Wholesale Trade | B16: 0 | E16: 0
A17: Retail Trade | B17: 0 | E17: 0
A18: FIRE | B18: 0 | E18: 0
A19: Misc. Services | B19: 0 | E19: 0
A20: Professional Services | B20: 0 | E20: 0
A21: Government | B21: 0 | E21: 0
E22: =SUM(E8:E21) -> 0 | F22: Total
A23: Jobs Indirect Multipliers
A24: Jobs Per Million Dollars Change in Final Demand | B24: MyRegion
A25: Agriculture | B25: 0
A26: Mining | B26: 0
A27: Construction | B27: 0
A28: Manufacturing | B28: 0
A29: Fabricated Metals | B29: 0
A30: Machinery | B30: 0
A31: Electrical Equipment | B31: 0
A32: TCPU | B32: 0
A33: Wholesale Trade | B33: 0
A34: Retail Trade | B34: 0
A35: FIRE | B35: 0
A36: Misc. Services | B36: 0
A37: Professional Services | B37: 0
A38: Government | B38: 0
A40: Jobs Induced Multipliers
A41: Jobs Per Million Dollars Change in Final Demand | B41: MyRegion
A42: Agriculture | B42: 0
A43: Mining | B43: 0
A44: Construction | B44: 0
A45: Manufacturing | B45: 0
A46: Fabricated Metals | B46: 0
A47: Machinery | B47: 0
A48: Electrical Equipment | B48: 0
A49: TCPU | B49: 0
A50: Wholesale Trade | B50: 0
A51: Retail Trade | B51: 0
A52: FIRE | B52: 0
A53: Misc. Services | B53: 0
A54: Professional Services | B54: 0
A55: Government | B55: 0
A57: Earnings Direct Multipliers
A58: Earnings Per Million Dollars Change in Final Demand | B58: MyRegion
A59: Agriculture | B59: 0
A60: Mining | B60: 0
A61: Construction | B61: 0
A62: Manufacturing | B62: 0
A63: Fabricated Metals | B63: 0
A64: Machinery | B64: 0
A65: Electrical Equipment | B65: 0
A66: TCPU | B66: 0
A67: Wholesale Trade | B67: 0
A68: Retail Trade | B68: 0
A69: FIRE | B69: 0
A70: Misc. Services | B70: 0
A71: Professional Services | B71: 0
A72: Government | B72: 0
A74: Earnings Per Million Dollars Change in Final Demand
A75: Earnings Indirect Multipliers | B75: MyRegion
A76: Agriculture | B76: 0
A77: Mining | B77: 0
A78: Construction | B78: 0
A79: Manufacturing | B79: 0
A80: Fabricated Metals | B80: 0
A81: Machinery | B81: 0
A82: Electrical Equipment | B82: 0
A83: TCPU | B83: 0
A84: Wholesale Trade | B84: 0
A85: Retail Trade | B85: 0
A86: FIRE | B86: 0
A87: Misc. Services | B87: 0
A88: Professional Services | B88: 0
A89: Government | B89: 0
A91: Earnings Induced Multipliers
A92: Earnings Per Million Dollars Change in Final Demand | B92: MyRegion
A93: Agriculture | B93: 0
A94: Mining | B94: 0
A95: Construction | B95: 0
A96: Manufacturing | B96: 0
A97: Fabricated Metals | B97: 0
A98: Machinery | B98: 0
A99: Electrical Equipment | B99: 0
A100: TCPU | B100: 0
A101: Wholesale Trade | B101: 0
A102: Retail Trade | B102: 0
A103: FIRE | B103: 0
A104: Misc. Services | B104: 0
A105: Professional Services | B105: 0
A106: Government | B106: 0
A108: Output Direct Multipliers
A109: Output Per Million Dollars Change in Final Demand | B109: MyRegion
A110: Agriculture | B110: 0
A111: Mining | B111: 0
A112: Construction | B112: 0
A113: Manufacturing | B113: 0
A114: Fabricated Metals | B114: 0
A115: Machinery | B115: 0
A116: Electrical Equipment | B116: 0
A117: TCPU | B117: 0
A118: Wholesale Trade | B118: 0
A119: Retail Trade | B119: 0
A120: FIRE | B120: 0
A121: Misc. Services | B121: 0
A122: Professional Services | B122: 0
A123: Government | B123: 0
A125: Output Indirect Multipliers
A126: Output Per Million Dollars Change in Final Demand | B126: MyRegion
A127: Agriculture | B127: 0
A128: Mining | B128: 0
A129: Construction | B129: 0
A130: Manufacturing | B130: 0
A131: Fabricated Metals | B131: 0
A132: Machinery | B132: 0
A133: Electrical Equipment | B133: 0
A134: TCPU | B134: 0
A135: Wholesale Trade | B135: 0
A136: Retail Trade | B136: 0
A137: FIRE | B137: 0
A138: Misc. Services | B138: 0
A139: Professional Services | B139: 0
A140: Government | B140: 0
A142: Output Induced Multipliers
A143: Output Per Million Dollars Change in Final Demand | B143: MyRegion
A144: Agriculture | B144: 0
A145: Mining | B145: 0
A146: Construction | B146: 0
A147: Manufacturing | B147: 0
A148: Fabricated Metals | B148: 0
A149: Machinery | B149: 0
A150: Electrical Equipment | B150: 0
A151: TCPU | B151: 0
A152: Wholesale Trade | B152: 0
A153: Retail Trade | B153: 0
A154: FIRE | B154: 0
A155: Misc. Services | B155: 0
A156: Professional Services | B156: 0
A157: Government | B157: 0
A159: Value Added Direct Multipliers
A160: Value Added Per Million Dollars Change in Final Demand | B160: MyRegion
A161: Agriculture | B161: 0
A162: Mining | B162: 0
A163: Construction | B163: 0
A164: Manufacturing | B164: 0
A165: Fabricated Metals | B165: 0
A166: Machinery | B166: 0
A167: Electrical Equipment | B167: 0
A168: TCPU | B168: 0
A169: Wholesale Trade | B169: 0
A170: Retail Trade | B170: 0
A171: FIRE | B171: 0
A172: Misc. Services | B172: 0
A173: Professional Services | B173: 0
A174: Government | B174: 0
A176: Value Added Indirect Multipliers
A177: Value Added Per Million Dollars Change in Final Demand | B177: MyRegion
A178: Agriculture | B178: 0
A179: Mining | B179: 0
A180: Construction | B180: 0
A181: Manufacturing | B181: 0
A182: Fabricated Metals | B182: 0
A183: Machinery | B183: 0
A184: Electrical Equipment | B184: 0
A185: TCPU | B185: 0
A186: Wholesale Trade | B186: 0
A187: Retail Trade | B187: 0
A188: FIRE | B188: 0
A189: Misc. Services | B189: 0
A190: Professional Services | B190: 0
A191: Government | B191: 0
A193: Value Added Induced Multipliers
A194: Value Added Per Million Dollars Change in Final Demand | B194: MyRegion
A195: Agriculture | B195: 0
A196: Mining | B196: 0
A197: Construction | B197: 0
A198: Manufacturing | B198: 0
A199: Fabricated Metals | B199: 0
A200: Machinery | B200: 0
A201: Electrical Equipment | B201: 0
A202: TCPU | B202: 0
A203: Wholesale Trade | B203: 0
A204: Retail Trade | B204: 0
A205: FIRE | B205: 0
A206: Misc. Services | B206: 0
A207: Professional Services | B207: 0
A208: Government | B208: 0

Sheet DefaultData
A1: 2020 | V1: Annual average change | AW1: HVAC | AY1: Labour cost
V2: -0.005 | AW2: Cold climate air-source heat pump | AX2: 1 | AY2: 0.45
AW3: Electric furnace | AX3: 2 | AY3: 0.45
Q4: 2021 | R4: 2022 | S4: 2023 | T4: 2024 | U4: 2025 | V4: 2026 | W4: 2027 | X4: 2028 | Y4: 2029 | Z4: 2030 | AA4: 2031 | AB4: 2032 | AC4: 2033 | AD4: 2034 | AE4: 2035 | AF4: 2036 | AG4: 2037 | AH4: 2038 | AI4: 2039 | AJ4: 2040 | AW4: Building envelop improvement | AY4: Labour cost
Q5: 1 | R5: 2 | S5: 3 | T5: 4 | U5: 5 | V5: 6 | W5: 7 | X5: 8 | Y5: 9 | Z5: 10 | AA5: 11 | AB5: 12 | AC5: 13 | AD5: 14 | AE5: 15 | AF5: 16 | AG5: 17 | AH5: 18 | AI5: 19 | AJ5: 20 | AW5: Attic insulation (acheive a minimum RSI 8.81 or R-50) | AX5: 3 | AY5: 0.7
D6: Number of installations | F6: Default Installation Cost per technology | G6: Default Maintenance cost per techno / year | P6: Cold climate air-source heat pump | Q6: =VLOOKUP(ProjectData!B$9,DefaultData!AW$12:BE$26,2,FALSE) -> 18368 | R6: =Q6*(1+$V$2) -> 18276.16 | S6: =R6*(1+$V$2) -> 18184.7792 | T6: 18093.8553 | U6: 18003.38603 | V6: 17913.3691 | W6: 17823.80225 | X6: 17734.68324 | Y6: 17646.00982 | Z6: 17557.77978 | AA6: 17469.99088 | AB6: 17382.64092 | AC6: 17295.72772 | AD6: 17209.24908 | AE6: 17123.20283 | AF6: 17037.58682 | AG6: 16952.39889 | AH6: 16867.63689 | AI6: 16783.29871 | AJ6: 16699.38221 | AW6: Flat roof and/or Cathedral ceiling insulation (acheive a minimum RSI 4.93 or R-28) | AX6: 4 | AY6: 0.7
D7: =ProjectData!B12 -> 12000 | F7: =Q16 -> 18276.16 | G7: =Q17 -> 230 | P7: Electric furnace | Q7: =VLOOKUP(ProjectData!B$9,DefaultData!AW$12:BE$26,3,FALSE) -> 5145 | R7: =Q7*(1+$V$2) -> 5119.275 | S7: 5093.678625 | T7: 5068.210232 | U7: 5042.869181 | V7: 5017.654835 | W7: 4992.566561 | X7: 4967.603728 | Y7: 4942.765709 | Z7: 4918.051881 | AA7: 4893.461621 | AB7: 4868.994313 | AC7: 4844.649342 | AD7: 4820.426095 | AE7: 4796.323964 | AF7: 4772.342345 | AG7: 4748.480633 | AH7: 4724.73823 | AI7: 4701.114539 | AJ7: 4677.608966 | AW7: Basement / Foundation insulation (insulate a minimum of 60% the area) | AX7: 5 | AY7: 0.7
P8: Attic insulation (acheive a minimum RSI 8.81 or R-50) | Q8: =VLOOKUP(ProjectData!B$9,DefaultData!AW$12:BE$26,4,FALSE) -> 1971.609637 | R8: 1961.751589 | S8: 1951.942831 | T8: 1942.183117 | U8: 1932.472201 | V8: 1922.80984 | W8: 1913.195791 | X8: 1903.629812 | Y8: 1894.111663 | Z8: 1884.641104 | AA8: 1875.217899 | AB8: 1865.841809 | AC8: 1856.5126 | AD8: 1847.230037 | AE8: 1837.993887 | AF8: 1828.803918 | AG8: 1819.659898 | AH8: 1810.561599 | AI8: 1801.508791 | AJ8: 1792.501247 | AW8: Exterior wall insulation (100% of the area to 2012 NBC levels) | AX8: 6 | AY8: 0.4
D9: Construction | F9: User | P9: Flat roof and/or Cathedral ceiling insulation (acheive a minimum RSI 4.93 or R-28) | Q9: =VLOOKUP(ProjectData!B$9,DefaultData!AW$12:BE$26,5,FALSE) -> 2207.083836 | R9: 2196.048417 | S9: 2185.068175 | T9: 2174.142834 | U9: 2163.27212 | V9: 2152.455759 | W9: 2141.693481 | X9: 2130.985013 | Y9: 2120.330088 | Z9: 2109.728438 | AA9: 2099.179796 | AB9: 2088.683897 | AC9: 2078.240477 | AD9: 2067.849275 | AE9: 2057.510028 | AF9: 2047.222478 | AG9: 2036.986366 | AH9: 2026.801434 | AI9: 2016.667427 | AJ9: 2006.58409 | AW9: Air-sealing | AX9: 7 | AY9: 0.7
D10: Installation cost per techno | E10: Installations Cost | F10: Maintenance cost per techno / year | G10: Maintenance costs per year | P10: Basement / Foundation insulation (insulate a minimum of 60% the area) | Q10: =VLOOKUP(ProjectData!B$9,DefaultData!AW$12:BE$26,6,FALSE) -> 3814.732848 | R10: =Q10*(1+$V$2) -> 3795.659184 | S10: 3776.680888 | T10: 3757.797484 | U10: 3739.008496 | V10: 3720.313454 | W10: 3701.711887 | X10: 3683.203327 | Y10: 3664.787311 | Z10: 3646.463374 | AA10: 3628.231057 | AB10: 3610.089902 | AC10: 3592.039452 | AD10: 3574.079255 | AE10: 3556.208859 | AF10: 3538.427815 | AG10: 3520.735675 | AH10: 3503.131997 | AI10: 3485.616337 | AJ10: 3468.188255 | AW10: Windows and doors replacement (U-Factor 1.08 W/m2-K, and Energy star qualified) | AX10: 8 | AY10: 0.4
D11: =ProjectData!B19 -> 18276.16 | E11: =D11*D7 -> 219313920 | F11: =ProjectData!B20 -> 230 | G11: =F11*D7 -> 2760000 | P11: Exterior wall insulation (100% of the area to 2012 NBC levels) | Q11: =VLOOKUP(ProjectData!B$9,DefaultData!AW$12:BE$26,7,FALSE) -> 72449.4421 | R11: =Q11*(1+$V$2) -> 72087.19489 | S11: 71726.75891 | T11: 71368.12512 | U11: 71011.28449 | V11: 70656.22807 | W11: 70302.94693 | X11: 69951.43219 | Y11: 69601.67503 | Z11: 69253.66666 | AA11: 68907.39833 | AB11: 68562.86133 | AC11: 68220.04703 | AD11: 67878.94679 | AE11: 67539.55206 | AF11: 67201.8543 | AG11: 66865.84503 | AH11: 66531.5158 | AI11: 66198.85822 | AJ11: 65867.86393
P12: Air-sealing | Q12: =VLOOKUP(ProjectData!B$9,DefaultData!AW$12:BE$26,8,FALSE) -> 2073.109776 | R12: 2062.744227 | S12: 2052.430506 | T12: 2042.168353 | U12: 2031.957511 | V12: 2021.797724 | W12: 2011.688735 | X12: 2001.630291 | Y12: 1991.62214 | Z12: 1981.664029 | AA12: 1971.755709 | AB12: 1961.896931 | AC12: 1952.087446 | AD12: 1942.327009 | AE12: 1932.615374 | AF12: 1922.952297 | AG12: 1913.337535 | AH12: 1903.770848 | AI12: 1894.251993 | AJ12: 1884.780733 | AW12: Installation costs | AX12: 1 | AY12: 2 | AZ12: 3 | BA12: 4 | BB12: 5 | BC12: 6 | BD12: 7 | BE12: 8 | BF12: 1
C13: Project Data | P13: Windows and doors replacement (U-Factor 1.08 W/m2-K, and Energy star qualified) | Q13: =VLOOKUP(ProjectData!B$9,DefaultData!AW$12:BE$26,9,FALSE) -> 20417.1 | R13: =Q13*(1+$V$2) -> 20315.0145 | S13: 20213.43943 | T13: 20112.37223 | U13: 20011.81037 | V13: 19911.75132 | W13: 19812.19256 | X13: 19713.1316 | Y13: 19614.56594 | Z13: 19516.49311 | AA13: 19418.91064 | AB13: 19321.81609 | AC13: 19225.20701 | AD13: 19129.08098 | AE13: 19033.43557 | AF13: 18938.26839 | AG13: 18843.57705 | AH13: 18749.35917 | AI13: 18655.61237 | AJ13: 18562.33431 | AW13: Alberta | AX13: 18368 | AY13: 5145 | AZ13: 1971.609637 | BA13: 2207.083836 | BB13: 3814.732848 | BC13: 72449.4421 | BD13: 2073.109776 | BE13: 20417.1 | BF13: 2
C14: =ProjectData!B11 -> Cold climate air-source heat pump | AW14: British Columbia | AX14: 18368 | AY14: 5456.25 | AZ14: 2154.490274 | BA14: 2367.692345 | BB14: 4241.776313 | BC14: 71871.68661 | BD14: 2019.210298 | BE14: 26873.1 | BF14: 3
P15: Installation year index | Q15: =HLOOKUP(Year_of_Construction,DefaultData!Q4:AJ5,2,FALSE) -> 2 | AW15: Manitoba | AX15: 18368 | AY15: 4940 | AZ15: 1729.751448 | BA15: 1513.830375 | BB15: 3464.819277 | BC15: 61724.57798 | BD15: 1760.933657 | BE15: 12759.56667 | BF15: 4
C16: Equipment & Installation costs | F16: Local share | P16: Installation cost per technology | Q16: =VLOOKUP(ProjectData!B11,DefaultData!P6:AJ13,DefaultData!Q15+1,FALSE) -> 18276.16 | AW16: New Brunswick | AX16: 18368 | AY16: 4865 | AZ16: 1926.761778 | BA16: 1859.28691 | BB16: 3738.412091 | BC16: 62810.23829 | BD16: 1847.76015 | BE16: 19628.03333 | BF16: 5
C17: =ProjectData!B11 -> Cold climate air-source heat pump | D17: =E11*(1-Q18) -> 120622656 | F17: 1 | P17: Maintenance cost per technology / year | Q17: =HLOOKUP(AV30,AW29:BE43,AV29+1,FALSE) -> 230 | AW17: Newfoundland and Labrador | AX17: 18368 | AY17: 4775 | AZ17: 1790.062426 | BA17: 2167.892874 | BB17: 3535.133023 | BC17: 62892.38711 | BD17: 1800.42372 | BE17: 15933.76667 | BF17: 6
C18: Labour | D18: =E11*Q18 -> 98691264 | F18: 1 | P18: Labour portion | Q18: =VLOOKUP(ProjectData!B11,DefaultData!AW2:AY10,3,FALSE) -> 0.45 | AW18: Northwest Territories | AX18: 18368 | AY18: 4977.5 | AZ18: 1796.107661 | BA18: 1792.761092 | BB18: 3742.870764 | BC18: 61279.59444 | BD18: 1722.66264 | BE18: 16283.46667 | BF18: 7
C19: Subtotal All Costs (without sales tax) | D19: =SUM(D17:D18) -> 219313920 | F19: 1 | AW19: Nova Scotia | AX19: 18368 | AY19: 4747.5 | AZ19: 1771.164157 | BA19: 1547.262592 | BB19: 3287.181687 | BC19: 61763.54048 | BD19: 1809.047765 | BE19: 16982.86667 | BF19: 8
C20: Sales Tax | D20: =D19*D33 -> 0 | F20: 1 | AW20: Nunavut | AX20: 18368 | AY20: 4930 | AZ20: 1796.107661 | BA20: 1792.761092 | BB20: 3742.870764 | BC20: 61279.59444 | BD20: 1722.66264 | BE20: 16283.46667 | BF20: 9
C21: TOTAL PROJECT COST | D21: =D19+D20 -> 219313920 | F21: 1 | AW21: Ontario | AX21: 18368 | AY21: 5390 | AZ21: 1721.859357 | BA21: 1512.431714 | BB21: 3407.025462 | BC21: 68300.54694 | BD21: 2113.425608 | BE21: 18543.06667 | BF21: 10
AW22: Prince Edward Island | AX22: 18368 | AY22: 4835 | AZ22: 1790.062426 | BA22: 2167.892874 | BB22: 3535.133023 | BC22: 62892.38711 | BD22: 1800.42372 | BE22: 15933.76667 | BF22: 11
AW23: Quebec | AX23: 18368 | AY23: 4940 | AZ23: 1754.7108 | BA23: 1651.186021 | BB23: 3383.448062 | BC23: 60822.65882 | BD23: 1811.183453 | BE23: 19816.33333 | BF23: 12
AW24: Saskatchewan | AX24: 18368 | AY24: 3895 | AZ24: 1995.445816 | BA24: 1647.490104 | BB24: 3738.346442 | BC24: 66297.6305 | BD24: 1939.15295 | BE24: 15117.8 | BF24: 13
C25: Annual Maintenance Costs | AW25: Yukon | AX25: 18368 | AY25: 5015 | AZ25: 1828.584488 | BA25: 2205.784457 | BB25: 3529.760132 | BC25: 66376.55446 | BD25: 2002.776207 | BE25: 20336.4 | BF25: 14
C26: Service | AW26: Canada | AX26: 18368 | AY26: =AVERAGE(AY13:AY25) -> 4916.25 | AZ26: 1820 | BA26: 1782 | BB26: 3513 | BC26: 59047 | BD26: 1987 | BE26: 19494
C27: Maintenance Labour | D27: =G11 -> 2760000 | F27: 1
C28: Sales Tax | D28: =D27*D33 -> 0 | F28: 1 | AV28: Maintenance cost per installation
C29: TOTAL | D29: =D27+D28 -> 2760000 | F29: 1 | J29: Payroll expense | AV29: =VLOOKUP(ProjectData!B9,DefaultData!AW30:BF43,10,FALSE) -> 1 | AX29: 1 | AY29: 2 | AZ29: 3 | BA29: 4 | BB29: 5 | BC29: 6 | BD29: 7 | BE29: 8
J30: Govt | K30: =VLOOKUP(ProjectData!B9,Multipliers!S8:U22,3,FALSE) -> 0.27 | AV30: =VLOOKUP(ProjectData!B11,DefaultData!AW1:AX10,2,FALSE) -> 1 | AW30: Alberta | AX30: 230 | AY30: 195 | AZ30: 0 | BA30: 0 | BB30: 0 | BC30: 0 | BD30: 0 | BE30: 0 | BF30: 1
J31: Health/Ins/Misc | K31: =IF(OR(ProjectData!B9=Multipliers!Z8,'User Add-in Location'!B4=Multipliers!Z8),Multipliers!Y8,Multipliers!Y7) -> 0.0683 | AW31: British Columbia | AX31: 245 | AY31: 220 | AZ31: 0 | BA31: 0 | BB31: 0 | BC31: 0 | BD31: 0 | BE31: 0 | BF31: 2
J32: Total | K32: =K30+K31 -> 0.3383 | AW32: Manitoba | AX32: 210 | AY32: 190 | AZ32: 0 | BA32: 0 | BB32: 0 | BC32: 0 | BD32: 0 | BE32: 0 | BF32: 3
C33: Local sales tax rate | D33: =C66 -> 0 | E33: 1 | F33: =VLOOKUP(ProjectData!B9,Multipliers!S8:T22,2,FALSE) -> 1.114896253 | G33: Adj. Factor | AW33: New Brunswick | AX33: 212.5 | AY33: 152.5 | AZ33: 0 | BA33: 0 | BB33: 0 | BC33: 0 | BD33: 0 | BE33: 0 | BF33: 4
N34: User Revised Data | AW34: Newfoundland and Labrador | AX34: 205 | AY34: 155 | AZ34: 0 | BA34: 0 | BB34: 0 | BC34: 0 | BD34: 0 | BE34: 0 | BF34: 5
D35: Payroll Cost | E35: Av. wage/h | F35: Loc. adj. Wage/hour | G35: Payroll expense | H35: Payroll expense % | I35: Default | J35: User Revised | L35: Default | N35: Payroll Cost | O35: Wage/h | P35: Payroll expense | Q35: Payroll expense | AW35: Northwest Territories | AX35: 205 | AY35: 150 | AZ35: 0 | BA35: 0 | BB35: 0 | BC35: 0 | BD35: 0 | BE35: 0 | BF35: 6
C36: Payroll Parameters | AW36: Nova Scotia | AX36: 210 | AY36: 150 | AZ36: 0 | BA36: 0 | BB36: 0 | BC36: 0 | BD36: 0 | BE36: 0 | BF36: 7
C37: Installation Labour | D37: =F37+G37 -> 37.10767284 | E37: 24.87 | F37: =E37*F$33 -> 27.7274698 | G37: =F37*H37 -> 9.380203035 | H37: =K$32 -> 0.3383 | I37: =(D18*F18)/(D37*52*40) -> 1278.649925 | J37: =(ProjectData!B30*ProjectData!E30)/(DefaultData!N37*52*40) -> 1278.649925 | L37: =D37*52*40 -> 77183.95951 | N37: =O37+P37 -> 37.10767284 | O37: =ProjectData!B49 -> 27.7274698 | P37: =O37*Q37 -> 9.380203035 | Q37: =ProjectData!D49 -> 0.3383 | R37: =N37*52*40 -> 77183.95951 | AW37: Nunavut | AX37: 210 | AY37: 165 | AZ37: 0 | BA37: 0 | BB37: 0 | BC37: 0 | BD37: 0 | BE37: 0 | BF37: 8
C38: Maintenance Labour | D38: =F38+G38 -> 37.10767284 | E38: 24.87 | F38: =E38*F$33 -> 27.7274698 | G38: =F38*H38 -> 9.380203035 | H38: =K$32 -> 0.3383 | I38: =(D27*F27)/(D38*52*40) -> 35.75872523 | J38: =(ProjectData!B38*ProjectData!E38)/(DefaultData!N38*52*40) -> 35.75872523 | L38: =D38*52*40 -> 77183.95951 | N38: =O38+P38 -> 37.10767284 | O38: =ProjectData!B51 -> 27.7274698 | P38: =O38*Q38 -> 9.380203035 | Q38: =ProjectData!D51 -> 0.3383 | R38: =N38*52*40 -> 77183.95951 | AW38: Ontario | AX38: 250 | AY38: 225 | AZ38: 0 | BA38: 0 | BB38: 0 | BC38: 0 | BD38: 0 | BE38: 0 | BF38: 9
AW39: Prince Edward Island | AX39: 212.5 | AY39: 160 | AZ39: 0 | BA39: 0 | BB39: 0 | BC39: 0 | BD39: 0 | BE39: 0 | BF39: 10
H40: Installation Labour | I40: =IF(ProjectData!$B$21="y",DefaultData!I37,DefaultData!J37) -> 1278.649925 | AW40: Quebec | AX40: 215 | AY40: 185 | AZ40: 0 | BA40: 0 | BB40: 0 | BC40: 0 | BD40: 0 | BE40: 0 | BF40: 11
H41: Maintenance Labour | I41: =IF(ProjectData!$B$21="y",DefaultData!I38,DefaultData!J38) -> 35.75872523 | AW41: Saskatchewan | AX41: 225 | AY41: 205 | AZ41: 0 | BA41: 0 | BB41: 0 | BC41: 0 | BD41: 0 | BE41: 0 | BF41: 12
AW42: Yukon | AX42: 210 | AY42: 140 | AZ42: 0 | BA42: 0 | BB42: 0 | BC42: 0 | BD42: 0 | BE42: 0 | BF42: 13
AW43: Canada | AX43: =AVERAGE(AX30:AX42) -> 218.4615385 | AY43: =AVERAGE(AY30:AY42) -> 176.3461538 | AZ43: 0 | BA43: 0 | BB43: 0 | BC43: 0 | BD43: 0 | BE43: 0 | BF43: 14
AW44: 1 | AX44: 2 | AY44: 3 | AZ44: 4 | BA44: 5 | BB44: 6 | BC44: 7 | BD44: 8 | BE44: 9 | BF44: 10
C46: Margins
D47: Agriculture | E47: Mining | F47: Construction | G47: Manufacturing | H47: Machinery & Equipment | I47: TCPU | J47: Wholesale Trade | K47: Retail Trade | L47: FIRE | M47: Misc. Services | N47: Repair & Maintenance | O47: Professional Services | P47: Government | Q47: Total
C48: Agriculture | D48: 0.9622391349 | E48: 0 | F48: 0 | G48: 0 | H48: 0 | I48: 0.0153121644 | J48: 0.02244870071 | K48: 0 | L48: 0 | M48: 0 | N48: 0 | O48: 0 | P48: 0 | Q48: =SUM(D48:P48) -> 1
C49: Mining | D49: 0 | E49: 0.9269040457 | F49: 0 | G49: 0 | H49: 0 | I49: 0.06288891547 | J49: 0.01020703884 | K49: 0 | L49: 0 | M49: 0 | N49: 0 | O49: 0 | P49: 0 | Q49: 1
C50: Construction | D50: 0 | E50: 0 | F50: 1 | G50: 0 | H50: 0 | I50: 0 | J50: 0 | K50: 0 | L50: 0 | M50: 0 | N50: 0 | O50: 0 | P50: 0 | Q50: 1
C51: Manufacturing | D51: 0 | E51: 0 | F51: 0 | G51: 0.8769574708 | H51: 0 | I51: 0.03266428864 | J51: 0.09037824061 | K51: 0 | L51: 0 | M51: 0 | N51: 0 | O51: 0 | P51: 0 | Q51: 1
C52: Machinery & Equipment | D52: 0 | E52: 0 | F52: 0 | G52: 0 | H52: 0.8441753474 | I52: 0.008151487036 | J52: 0.1476731656 | K52: 0 | L52: 0 | M52: 0 | N52: 0 | O52: 0 | P52: 0 | Q52: 1
C53: TCPU | D53: 0 | E53: 0 | F53: 0 | G53: 0 | H53: 0 | I53: 0.9999828494 | J53: 7.83465249e-06 | K53: 0 | L53: 0 | M53: 0 | N53: 0 | O53: 0 | P53: 0 | Q53: 0.999990684
C54: Wholesale Trade | D54: 0 | E54: 0 | F54: 0 | G54: 0 | H54: 0 | I54: 0 | J54: 1 | K54: 0 | L54: 0 | M54: 0 | N54: 0 | O54: 0 | P54: 0 | Q54: 1
C55: Retail Trade | D55: 0 | E55: 0 | F55: 0 | G55: 0 | H55: 0 | I55: 0 | J55: 0 | K55: 1 | L55: 0 | M55: 0 | N55: 0 | O55: 0 | P55: 0 | Q55: 1
C56: FIRE | D56: 0 | E56: 0 | F56: 0 | G56: 0 | H56: 0 | I56: 0 | J56: 0 | K56: 0 | L56: 1 | M56: 0 | N56: 0 | O56: 0 | P56: 0 | Q56: 1
C57: Misc. Services | D57: 0 | E57: 0 | F57: 0 | G57: 0 | H57: 0 | I57: 0.0003295404171 | J57: 0.009175033382 | K57: 0 | L57: 0 | M57: 0.9904954262 | N57: 0 | O57: 0 | P57: 0 | Q57: 1
C58: Repair & Maintenance | D58: 0 | E58: 0 | F58: 0 | G58: 0 | H58: 0 | I58: 0 | J58: 0 | K58: 0 | L58: 0 | M58: 0 | N58: 1 | O58: 0 | P58: 0 | Q58: 1
C59: Professional Services | D59: 0 | E59: 0 | F59: 0 | G59: 0 | H59: 0 | I59: 7.596323454e-05 | J59: 0.002920144425 | K59: 0 | L59: 0 | M59: 0 | N59: 0 | O59: 0.9970038923 | P59: 0 | Q59: 1
C60: Government | D60: 0 | E60: 0 | F60: 0 | G60: 0 | H60: 0 | I60: 3.225277974e-05 | J60: 0.0005852732458 | K60: 0 | L60: 0 | M60: 0 | N60: 0 | O60: 0 | P60: 0.999382474 | Q60: 1
D64: Canada | E64: Alberta | F64: British Columbia | G64: Manitoba | H64: New Brunswick | I64: Newfoundland and Labrador | J64: Northwest Territories | K64: Nova Scotia | L64: Nunavut | M64: Ontario | N64: Prince Edward Island | O64: Quebec | P64: Saskatchewan | Q64: Yukon
C65: Sales Tax | D65: 0.05 | E65: 0 | F65: 0.07 | G65: 0.07 | H65: 0.1 | I65: 0.1 | J65: 0 | K65: 0.1 | L65: 0 | M65: 0.08 | N65: 0.1 | O65: 0.09975 | P65: 0.06 | Q65: 0
C66: =HLOOKUP(ProjectData!B9,DefaultData!D64:R65,2,FALSE) -> 0

Sheet Calculations
A1: *** WARNING *** This Worksheet contains Data and Formulas that are an integral part of the EI2 model. Although the data and formulas are available for review they must not be changed. Any changes to the data or formulas will impact the analysis and may invalidate the model results. To view the data and formulas simply scroll over to the adjacent columns to the right. | C1: Economic Impact Analysis for | D1: =CONCATENATE(ProjectData!B12," ",ProjectData!B11," installations") -> 12000 Cold climate air-source heat pump installations | F1: in | G1: =ProjectData!B9 -> Alberta
D4: Cost | E4: Purchased Local | G4: Local $ Spending | AB4: Project Installation Costs | AC4: Cost | AD4: Local Share
C6: Equipment & Installation costs | AB6: Equipment & Installation costs
C7: =DefaultData!C17 -> Cold climate air-source heat pump | D7: =IF(ProjectData!$B$21="y",DefaultData!D17,ProjectData!B29) -> 120622656 | E7: =IF(ProjectData!$B$21="y",DefaultData!F17,ProjectData!E29) -> 1 | G7: =D7*E7 -> 120622656 | AB7: =C7 -> Cold climate air-source heat pump | AC7: =D7 -> 120622656 | AD7: 1
C8: Labour | D8: =IF(ProjectData!$B$21="y",DefaultData!D18,ProjectData!B30) -> 98691264 | E8: =IF(ProjectData!$B$21="y",DefaultData!F18,ProjectData!E30) -> 1 | G8: =D8*E8 -> 98691264 | AB8: Labour | AC8: 98691264 | AD8: 1
C9: Subtotal All Costs (without sales tax) | D9: =D7+D8 -> 219313920 | E9: =IF(ProjectData!$B$21="y",DefaultData!F19,ProjectData!E31) -> 1 | G9: =D9*E9 -> 219313920 | AB9: Subtotal All Costs (without sales tax) | AC9: 219313920 | AD9: 1
C10: Sales Tax | D10: =IF(ProjectData!$B$21="Y",DefaultData!D20,ProjectData!B32) -> 0 | E10: =IF(ProjectData!$B$21="y",DefaultData!F20,ProjectData!E32) -> 1 | G10: =D10*E10 -> 0 | AB10: Sales Tax | AC10: 0 | AD10: 1
C11: TOTAL PROJECT COST | D11: =D9+D10 -> 219313920 | G11: =SUM(G7:G10) -> 438627840 | AB11: TOTAL PROJECT COST | AC11: =D11 -> 219313920
C15: Annual Maintenance Costs | AG15: Local Economic Impacts - Summary Results
C16: Maintenance Labour | D16: =IF(ProjectData!$B$21="y",DefaultData!D27,ProjectData!B38) -> 2760000 | E16: =IF(ProjectData!$B$21="y",DefaultData!F27,ProjectData!E27) -> 1 | G16: =D16*E16 -> 2760000 | AB16: Annual Maintenance Costs | AH16: Jobs | AI16: Earnings | AJ16: Output | AK16: Value Added
C17: Sales Tax | D17: =IF(ProjectData!$B$21="y",DefaultData!D28,ProjectData!B39) -> 0 | E17: =IF(ProjectData!$B$21="y",DefaultData!F28,ProjectData!E28) -> 1 | G17: =SUM(G16:G16) -> 2760000 | AG17: During construction period
C18: TOTAL | D18: =D16+D17 -> 2760000 | G18: =G11+G17 -> 441387840 | AB18: Variable Costs | AG18: Direct Impacts | AH18: =I45 -> 1605.163496 | AI18: =M45*G60 -> 98.691264 | AJ18: =Q45*$G60 -> 98.691264 | AK18: =U45*$G60 -> 55.33220047
AB19: Personnel | AG19: Indirect Impacts | AH19: =I34+I37+J57 -> 734.688945 | AI19: =M34+M37+N60 -> 61.62876078 | AJ19: =+Q34+Q37+R60 -> 216.7110014 | AK19: =+U34+U37+V60 -> 85.76258254
AB20: Maintenance labour | AC20: =D16 -> 2760000 | AD20: =E16 -> 1 | AG20: Induced Impacts | AH20: =K57 -> 257.7983785 | AI20: =O60 -> 13.55200344 | AJ20: =S60 -> 53.35292826 | AK20: =W60 -> 33.13323172
D21: Demand | AB21: Personnel Subtotal | AC21: =AC20 -> 2760000 | AD21: =E17 -> 1 | AG21: Total Impacts (Direct, Indirect, Induced) | AH21: =AH20+AH19+AH18 -> 2597.650819 | AI21: =AI20+AI19+AI18 -> 173.8720282 | AJ21: =AJ20+AJ19+AJ18 -> 368.7551937 | AK21: =AK20+AK19+AK18 -> 174.2280147
D22: Installation | E22: Maintenance
C23: Agriculture | D23: 0 | E23: 0 | AB23: Total | AC23: =D18 -> 2760000 | AG23: During operating years (annual)
C24: Mining | D24: 0 | E24: 0 | AB24: Payroll Parameters | AC24: Base Wage per Hour | AD24: Annual Wage | AE24: Employer Payroll Costs
C25: Construction | D25: =IF(DefaultData!AV30<=2,G8+0.3*G7,G8+G7) -> 134878060.8 | E25: 0 | AB25: Installation Labour | AC25: =IF(ProjectData!$B$21="y",DefaultData!F37,ProjectData!B49) -> 27.7274698 | AD25: =AC25*40*52 -> 57673.13719 | AE25: =IF(ProjectData!$B$21="y",DefaultData!H37,ProjectData!D49) -> 0.3383 | AG25: Direct impact | AH25: =L115 -> 35.75872523 | AI25: =P117 -> 2.0148 | AJ25: =T117 -> 2.0148 | AK25: =X117 -> 2.0148
C26: Manufacturing | D26: 0 | E26: 0 | AB26: Maintenance labour | AC26: =IF(ProjectData!$B$21="y",DefaultData!F38,ProjectData!B51) -> 27.7274698 | AD26: =AC26*40*52 -> 57673.13719 | AE26: =IF(ProjectData!$B$21="y",DefaultData!H38,ProjectData!D51) -> 0.3383 | AG26: Indirect Impacts | AH26: =(L137-AH25)+M137 -> 3.391165739 | AI26: =P138-AI25+Q138 -> 0.2289701956 | AJ26: =T138-AJ25+U138 -> 0.8557708518 | AK26: =X138-AK25+Y138 -> 0.4385825903
C27: Machinery & Equipment | D27: =IF(DefaultData!AV30<=2,G7*0.7,0) -> 84435859.2 | E27: 0 | AG27: Induced Impacts | AH27: =N137 -> 2.31445942 | AI27: =R138 -> 0.1220133951 | AJ27: =V138 -> 0.4785789028 | AK27: =Z138 -> 0.2973158705
C28: TCPU | D28: 0 | E28: 0 | AG28: Total Impacts (Direct, Indirect, Induced) | AH28: =SUM(AH25:AH27) -> 41.46435039 | AI28: =SUM(AI25:AI27) -> 2.365783591 | AJ28: =SUM(AJ25:AJ27) -> 3.349149755 | AK28: =SUM(AK25:AK27) -> 2.750698461
C29: Wholesale Trade | D29: 0 | E29: 0
C30: Retail Trade | D30: 0 | E30: 0
C31: FIRE | D31: 0 | E31: 0
C32: Misc. Services | D32: 0 | E32: 0 | M32: =CONCATENATE("In ",Deflators!E5," dollars") -> In 2020 dollars
C33: Repair & Maintenance | D33: 0 | E33: 0 | H33: Eng. & Prof. Svcs. | I33: =I54*C60 -> 0 | J33: =I45-DefaultData!I40 -> 326.5135712 | L33: Eng. & Prof. Svcs. | M33: =M54*G60 -> 0 | N33: =M45-H45 -> 0 | P33: Eng. & Prof. Svcs. | Q33: =Q54*G60 -> 0 | R33: =(Q57-Q45-Q33)*G60 -> 84.4358592 | T33: Eng. & Prof. Svcs. | U33: =U54*G60 -> 0 | V33: =(U57-U33-U45)*K60 -> 0
C34: Professional Services | D34: 0 | E34: 0 | H34: Other Sectors (not Construction) | I34: =((I57-I45)*G60)-I37-I33 -> 12.02321997 | L34: Other Sectors (not Construction) | M34: =((M57-M45)*G60)-M37-M33 -> 0 | P34: Other Sectors (not Construction) | Q34: =(Q57-Q45)*G60-Q33-Q37 -> 0 | T34: Other Sectors (not Construction) | U34: =(U57-U45)*G60-U33-U37 -> 0
C35: Government | D35: =D10 -> 0 | E35: 0
C36: Total | D36: =SUM(D23:D35) -> 219313920 | E36: =SUM(E23:E35) -> 0
H37: Manufacturing Jobs | I37: =I46+I47 -> 223.2883708 | J37: =J46+J47 -> 113.5778798 | L37: Mfg W&S Earnings | M37: =(M46+M47)*$G60 -> 20.16011578 | P37: Mfg Output | Q37: =(Q46+Q47)*$G60 -> 84.4358592 | R37: =(R46+R47)*$G60 -> 29.00326012 | T37: Mfg Output | U37: =(U46+U47)*$G60 -> 34.10468643 | V37: =(V46+V47)*$G60 -> 15.09327113
I38: =I39/ProjectData!$B12 -> 0.01860736424 | J38: =J39/ProjectData!$B12 -> 0.009464823318 | K38: =K39/ProjectData!$B12 -> 0.007017156899 | L38: =L39/ProjectData!$B12 -> 0.03508934445 | P38: =P39*G60 -> 33.68549938 | T38: =T39*G60 -> 130.8761335 | X38: =X39*G60 -> 60.01362224
C39: Year | D39: =ProjectData!B$17 -> 2020 | F39: =CONCATENATE("Convert to ",Deflators!E$4, " dollars") -> Convert to 2017 dollars | G39: =Deflators!J$4 -> 0.9489051095 | I39: =SUM(I46:I49) -> 223.2883708 | J39: =SUM(J46:J47) -> 113.5778798 | K39: =SUM(K46:K47) -> 84.20588278 | L39: =SUM(L46:L47) -> 421.0721334 | M39: 19.13003687 | N39: 8.623516281 | O39: 4.210789332 | P39: 31.96434248 | Q39: 80.12161822 | R39: 27.52134172 | S39: 16.54607181 | T39: 124.1890318 | U39: 32.36211121 | V39: 14.32208209 | W39: 10.26303947 | X39: 56.94723278
C40: Construction Costs Local Demand | F40: =SUM(F3:F39) -> 0 | I40: =(M45*10^6)/I45 -> 58342.12211 | M40: =CONCATENATE("In $",Deflators!E4) -> In $2017
D41: Demand | F41: Total | G41: Adj Demand | I41: Jobs | J41: Jobs | K41: Jobs | L41: Jobs | M41: Earnings | Q41: Output | U41: Value Added
G42: =CONCATENATE("Millions of ",Deflators!E4, " dollars") -> Millions of 2017 dollars | I42: Direct | J42: Indirect | K42: Induced | L42: Total | M42: Direct | N42: Indirect | O42: Induced | P42: Total | Q42: Direct | R42: Indirect | S42: Induced | T42: Total | U42: Direct | V42: Indirect | W42: Induced | X42: Total
C43: Agriculture | D43: =D23 -> 0 | F43: =D43 -> 0 | G43: =F43*G$39/10^6 -> 0 | I43: =$G43*Multipliers!D8 -> 0 | J43: =$G43*Multipliers!E8 -> 0 | K43: =$G43*Multipliers!F8 -> 0 | L43: =I43+J43+K43 -> 0 | M43: =$G43*Multipliers!G8 -> 0 | N43: =$G43*Multipliers!H8 -> 0 | O43: =$G43*Multipliers!I8 -> 0 | P43: =M43+N43+O43 -> 0 | Q43: =+$G43*Multipliers!J8 -> 0 | R43: =$G43*Multipliers!K8 -> 0 | S43: =$G43*Multipliers!L8 -> 0 | T43: =Q43+R43+S43 -> 0 | U43: =$G43*Multipliers!M8 -> 0 | V43: =$G43*Multipliers!N8 -> 0 | W43: =$G43*Multipliers!O8 -> 0 | X43: =U43+V43+W43 -> 0
C44: Mining | D44: =D24 -> 0 | F44: =D44 -> 0 | G44: =F44*G$39/10^6 -> 0 | I44: =$G44*Multipliers!D9 -> 0 | J44: =$G44*Multipliers!E9 -> 0 | K44: =$G44*Multipliers!F9 -> 0 | L44: =I44+J44+K44 -> 0 | M44: =$G44*Multipliers!G9 -> 0 | N44: =$G44*Multipliers!H9 -> 0 | O44: =$G44*Multipliers!I9 -> 0 | P44: =M44+N44+O44 -> 0 | Q44: =+$G44*Multipliers!J9 -> 0 | R44: =$G44*Multipliers!K9 -> 0 | S44: =$G44*Multipliers!L9 -> 0 | T44: =Q44+R44+S44 -> 0 | U44: =$G44*Multipliers!M9 -> 0 | V44: =$G44*Multipliers!N9 -> 0 | W44: =$G44*Multipliers!O9 -> 0 | X44: =U44+V44+W44 -> 0
C45: Construction | D45: 134878060.8 | F45: 134878060.8 | G45: 127.9864811 | H45: =G8*G39/10^6 -> 93.64864467 | I45: =$H45*Multipliers!D10+DefaultData!I40 -> 1605.163496 | J45: =($G45*Multipliers!E10)+(H46*Multipliers!D10) -> 385.7994744 | K45: =$G45*Multipliers!F10 -> 173.5924957 | L45: 2164.555466 | M45: =H45 -> 93.64864467 | N45: =(G45*Multipliers!H10)+(H46*Multipliers!G10) -> 30.72629285 | O45: =$G45*Multipliers!I10 -> 8.648775979 | P45: 133.0237135 | Q45: =(H45*Multipliers!J10) -> 93.64864467 | R45: =G45*Multipliers!K10+H46*Multipliers!J10 -> 97.99521661 | S45: =$G45*Multipliers!L10 -> 34.08079442 | T45: 225.7246557 | U45: =$G45*Multipliers!M10 -> 52.50500774 | V45: =$G45*Multipliers!N10 -> 34.69635947 | W45: =$G45*Multipliers!O10 -> 21.17725339 | X45: 108.3786206
C46: Manufacturing | D46: 0 | F46: 0 | G46: 0 | H46: =G45-H45 -> 34.33783638 | I46: =$G46*Multipliers!D11 -> 0 | J46: =$G46*Multipliers!E11 -> 0 | K46: =$G46*Multipliers!F11 -> 0 | L46: 0 | M46: =$G46*Multipliers!G11 -> 0 | N46: =$G46*Multipliers!H11 -> 0 | O46: =$G46*Multipliers!I11 -> 0 | P46: 0 | Q46: =+$G46*Multipliers!J11 -> 0 | R46: =$G46*Multipliers!K11 -> 0 | S46: =$G46*Multipliers!L11 -> 0 | T46: 0 | U46: =$G46*Multipliers!M11 -> 0 | V46: =$G46*Multipliers!N11 -> 0 | W46: =$G46*Multipliers!O11 -> 0 | X46: 0
C47: Machinery & Equipment | D47: 84435859.2 | F47: 84435859.2 | G47: 80.12161822 | I47: =$G47*Multipliers!D12 -> 223.2883708 | J47: =$G47*Multipliers!E12 -> 113.5778798 | K47: =$G47*Multipliers!F12 -> 84.20588278 | L47: 421.0721334 | M47: =$G47*Multipliers!G12 -> 19.13003687 | N47: =$G47*Multipliers!H12 -> 8.623516281 | O47: =$G47*Multipliers!I12 -> 4.210789332 | P47: 31.96434248 | Q47: =+$G47*Multipliers!J12 -> 80.12161822 | R47: =$G47*Multipliers!K12 -> 27.52134172 | S47: =$G47*Multipliers!L12 -> 16.54607181 | T47: 124.1890318 | U47: =$G47*Multipliers!M12 -> 32.36211121 | V47: =$G47*Multipliers!N12 -> 14.32208209 | W47: =$G47*Multipliers!O12 -> 10.26303947 | X47: 56.94723278
C48: TCPU | D48: 0 | F48: 0 | G48: 0 | I48: =$G48*Multipliers!D13 -> 0 | J48: =$G48*Multipliers!E13 -> 0 | K48: =$G48*Multipliers!F13 -> 0 | L48: 0 | M48: =$G48*Multipliers!G13 -> 0 | N48: =$G48*Multipliers!H13 -> 0 | O48: =$G48*Multipliers!I13 -> 0 | P48: 0 | Q48: =+$G48*Multipliers!J13 -> 0 | R48: =$G48*Multipliers!K13 -> 0 | S48: =$G48*Multipliers!L13 -> 0 | T48: 0 | U48: =$G48*Multipliers!M13 -> 0 | V48: =$G48*Multipliers!N13 -> 0 | W48: =$G48*Multipliers!O13 -> 0 | X48: 0
C49: Wholesale Trade | D49: 0 | F49: 0 | G49: 0 | I49: =$G49*Multipliers!D14 -> 0 | J49: =$G49*Multipliers!E14 -> 0 | K49: =$G49*Multipliers!F14 -> 0 | L49: 0 | M49: =$G49*Multipliers!G14 -> 0 | N49: =$G49*Multipliers!H14 -> 0 | O49: =$G49*Multipliers!I14 -> 0 | P49: 0 | Q49: =+$G49*Multipliers!J14 -> 0 | R49: =$G49*Multipliers!K14 -> 0 | S49: =$G49*Multipliers!L14 -> 0 | T49: 0 | U49: =$G49*Multipliers!M14 -> 0 | V49: =$G49*Multipliers!N14 -> 0 | W49: =$G49*Multipliers!O14 -> 0 | X49: 0
C50: Retail Trade | D50: 0 | F50: 0 | G50: 0 | I50: =$G50*Multipliers!D15 -> 0 | J50: =$G50*Multipliers!E15 -> 0 | K50: =$G50*Multipliers!F15 -> 0 | L50: 0 | M50: =$G50*Multipliers!G15 -> 0 | N50: =$G50*Multipliers!H15 -> 0 | O50: =$G50*Multipliers!I15 -> 0 | P50: 0 | Q50: =+$G50*Multipliers!J15 -> 0 | R50: =$G50*Multipliers!K15 -> 0 | S50: =$G50*Multipliers!L15 -> 0 | T50: 0 | U50: =$G50*Multipliers!M15 -> 0 | V50: =$G50*Multipliers!N15 -> 0 | W50: =$G50*Multipliers!O15 -> 0 | X50: 0
C51: FIRE | D51: 0 | F51: 0 | G51: 0 | I51: =$G51*Multipliers!D16 -> 0 | J51: =$G51*Multipliers!E16 -> 0 | K51: =$G51*Multipliers!F16 -> 0 | L51: 0 | M51: =$G51*Multipliers!G16 -> 0 | N51: =$G51*Multipliers!H16 -> 0 | O51: =$G51*Multipliers!I16 -> 0 | P51: 0 | Q51: =+$G51*Multipliers!J16 -> 0 | R51: =$G51*Multipliers!K16 -> 0 | S51: =$G51*Multipliers!L16 -> 0 | T51: 0 | U51: =$G51*Multipliers!M16 -> 0 | V51: =$G51*Multipliers!N16 -> 0 | W51: =$G51*Multipliers!O16 -> 0 | X51: 0
C52: Misc. Services | D52: 0 | F52: 0 | G52: 0 | I52: =$G52*Multipliers!D17 -> 0 | J52: =$G52*Multipliers!E17 -> 0 | K52: =$G52*Multipliers!F17 -> 0 | L52: 0 | M52: =$G52*Multipliers!G17 -> 0 | N52: =$G52*Multipliers!H17 -> 0 | O52: =$G52*Multipliers!I17 -> 0 | P52: 0 | Q52: =+$G52*Multipliers!J17 -> 0 | R52: =$G52*Multipliers!K17 -> 0 | S52: =$G52*Multipliers!L17 -> 0 | T52: 0 | U52: =$G52*Multipliers!M17 -> 0 | V52: =$G52*Multipliers!N17 -> 0 | W52: =$G52*Multipliers!O17 -> 0 | X52: 0
C53: Repair & Maintenance | D53: 0 | F53: 0 | G53: 0 | I53: =$G53*Multipliers!D18 -> 0 | J53: =$G53*Multipliers!E18 -> 0 | K53: =$G53*Multipliers!F18 -> 0 | L53: 0 | M53: =$G53*Multipliers!G18 -> 0 | N53: =$G53*Multipliers!H18 -> 0 | O53: =$G53*Multipliers!I18 -> 0 | P53: 0 | Q53: =+$G53*Multipliers!J18 -> 0 | R53: =$G53*Multipliers!K18 -> 0 | S53: =$G53*Multipliers!L18 -> 0 | T53: 0 | U53: =$G53*Multipliers!M18 -> 0 | V53: =$G53*Multipliers!N18 -> 0 | W53: =$G53*Multipliers!O18 -> 0 | X53: 0
C54: Professional Services | D54: 0 | F54: 0 | G54: 0 | I54: =$G54*Multipliers!D19 -> 0 | J54: =$G54*Multipliers!E19 -> 0 | K54: =$G54*Multipliers!F19 -> 0 | L54: 0 | M54: =$G54*Multipliers!G19 -> 0 | N54: =$G54*Multipliers!H19 -> 0 | O54: =$G54*Multipliers!I19 -> 0 | P54: 0 | Q54: =+$G54*Multipliers!J19 -> 0 | R54: =$G54*Multipliers!K19 -> 0 | S54: =$G54*Multipliers!L19 -> 0 | T54: 0 | U54: =$G54*Multipliers!M19 -> 0 | V54: =$G54*Multipliers!N19 -> 0 | W54: =$G54*Multipliers!O19 -> 0 | X54: 0
C55: Government | D55: 0 | F55: 0 | G55: 0 | I55: =$G55*Multipliers!D20 -> 0 | J55: =$G55*Multipliers!E20 -> 0 | K55: =$G55*Multipliers!F20 -> 0 | L55: 0 | M55: =$G55*Multipliers!G20 -> 0 | N55: =$G55*Multipliers!H20 -> 0 | O55: =$G55*Multipliers!I20 -> 0 | P55: 0 | Q55: =+$G55*Multipliers!J20 -> 0 | R55: =$G55*Multipliers!K20 -> 0 | S55: =$G55*Multipliers!L20 -> 0 | T55: 0 | U55: =$G55*Multipliers!M20 -> 0 | V55: =$G55*Multipliers!N20 -> 0 | W55: =$G55*Multipliers!O20 -> 0 | X55: 0
C57: Total | D57: =SUM(D43:D56) -> 219313920 | F57: =SUM(F43:F56) -> 219313920 | G57: =SUM(G43:G56) -> 208.1080993 | H57: Total | I57: =SUM(I43:I56) -> 1828.451867 | J57: 499.3773542 | K57: 257.7983785 | L57: 2585.627599 | M57: 112.7786815 | N57: 39.34980913 | O57: 12.85956531 | P57: 164.988056 | Q57: 173.7702629 | R57: 125.5165583 | S57: 50.62686624 | T57: 349.9136875 | U57: 84.86711896 | V57: 49.01844156 | W57: 31.44029287 | X57: 165.3258534
F59: Inflator to | G59: =D39 -> 2020 | H59: Dollars | M59: =CONCATENATE("↓ Conversion of totals into ", G59," dollars ↓") -> ↓ Conversion of totals into 2020 dollars ↓
G60: =Deflators!J5 -> 1.053846154 | M60: =M57*$G60 -> 118.8513798 | N60: =N57*$G60 -> 41.468645 | O60: 13.55200344 | P60: 173.8720282 | Q60: 183.1271232 | R60: 132.2751422 | S60: 53.35292826 | T60: 368.7551937 | U60: 89.4368869 | V60: 51.6578961 | W60: 33.13323172 | X60: 174.2280147
C62: Maintenance costs | H62: Gross incl benefits
D63: Cost | E63: Local Share | F63: Empl Earnings | G63: Local $ Spending | H63: Empl Earnings | I63: Govt Share | J63: Health Ben, etc.
C64: Variable Costs
C65: Personnel
C66: Maintenance labour | D66: =IF(ProjectData!$B$21="y",DefaultData!D27,ProjectData!B38) -> 2760000 | E66: =IF(ProjectData!$B$21="y",DefaultData!F27,ProjectData!E38) -> 1 | F66: =D66*(1-DefaultData!K$32) -> 1826292 | G66: =E66*F66 -> 1826292 | H66: =D66*(1-DefaultData!K$30) -> 2014800 | I66: =D66*E66*DefaultData!K$30 -> 745200 | J66: =E66*D66*DefaultData!K$31 -> 188508
C69: Subtotal | D69: =SUM(D66:D68) -> 2760000 | F69: =SUM(F66:F68) -> 1826292 | G69: =SUM(G66:G68) -> 1826292 | H69: =SUM(H66:H68) -> 2014800 | I69: =SUM(I66:I68) -> 745200 | J69: =SUM(J66:J68) -> 188508 | K69: =G69+I69+J69 -> 2760000
C70: Warranty/Maintenance Services
C71: Total | D71: =D69+D70 -> 2760000
L72: Without Employees
C73: Annual Operations and Maintenance Costs Local Demand - margined | O73: =Deflators!E4 -> 2017 | P73: Dollars
D74: Demand | G74: Total | H74: Adj Demand - Million | L74: Jobs | P74: Earnings | T74: Output | X74: Value Added
G75: w/o Plant Empl | H75: =Deflators!E4 -> 2017 | I75: Dollars | L75: Direct | M75: Indirect | N75: Induced | O75: Total | P75: Direct | Q75: Indirect | R75: Induced | S75: Total | T75: Direct | U75: Indirect | V75: Induced | W75: Total | X75: Direct | Y75: Indirect | Z75: Induced | AA75: Total
C76: Agriculture | D76: =MMULT(TRANSPOSE(DemandOM),MarginsAGR) -> 0 | G76: =D76+E76+F76 -> 0 | H76: =G76*G$39/10^6 -> 0 | L76: =$H76*Multipliers!D8 -> 0 | M76: =$H76*Multipliers!E8 -> 0 | N76: =$H76*Multipliers!F8 -> 0 | O76: =L76+M76+N76 -> 0 | P76: =$H76*Multipliers!G8 -> 0 | Q76: =$H76*Multipliers!H8 -> 0 | R76: =$H76*Multipliers!I8 -> 0 | S76: =P76+Q76+R76 -> 0 | T76: =$H76*Multipliers!J8 -> 0 | U76: =$H76*Multipliers!K8 -> 0 | V76: =$H76*Multipliers!L8 -> 0 | W76: =T76+U76+V76 -> 0 | X76: =$H76*Multipliers!M8 -> 0 | Y76: =$H76*Multipliers!N8 -> 0 | Z76: =$H76*Multipliers!O8 -> 0 | AA76: =X76+Y76+Z76 -> 0
C77: Mining | D77: =MMULT(TRANSPOSE(DemandOM),MarginsMIN) -> 0 | G77: =D77+E77+F77 -> 0 | H77: =G77*G$39/10^6 -> 0 | L77: =$H77*Multipliers!D9 -> 0 | M77: =$H77*Multipliers!E9 -> 0 | N77: =$H77*Multipliers!F9 -> 0 | O77: =L77+M77+N77 -> 0 | P77: =$H77*Multipliers!G9 -> 0 | Q77: =$H77*Multipliers!H9 -> 0 | R77: =$H77*Multipliers!I9 -> 0 | S77: =P77+Q77+R77 -> 0 | T77: =$H77*Multipliers!J9 -> 0 | U77: =$H77*Multipliers!K9 -> 0 | V77: =$H77*Multipliers!L9 -> 0 | W77: =T77+U77+V77 -> 0 | X77: =$H77*Multipliers!M9 -> 0 | Y77: =$H77*Multipliers!N9 -> 0 | Z77: =$H77*Multipliers!O9 -> 0 | AA77: =X77+Y77+Z77 -> 0
C78: Construction | D78: =MMULT(TRANSPOSE(DemandOM),MarginsCON) -> 0 | G78: 0 | H78: 0 | L78: =$H78*Multipliers!D10 -> 0 | M78: =$H78*Multipliers!E10 -> 0 | N78: =$H78*Multipliers!F10 -> 0 | O78: 0 | P78: =$H78*Multipliers!G10 -> 0 | Q78: =$H78*Multipliers!H10 -> 0 | R78: =$H78*Multipliers!I10 -> 0 | S78: 0 | T78: =$H78*Multipliers!J10 -> 0 | U78: =$H78*Multipliers!K10 -> 0 | V78: =$H78*Multipliers!L10 -> 0 | W78: 0 | X78: =$H78*Multipliers!M10 -> 0 | Y78: =$H78*Multipliers!N10 -> 0 | Z78: =$H78*Multipliers!O10 -> 0 | AA78: 0
C79: Manufacturing | D79: =MMULT(TRANSPOSE(DemandOM),MarginsMFG) -> 0 | G79: 0 | H79: 0 | L79: =$H79*Multipliers!D11 -> 0 | M79: =$H79*Multipliers!E11 -> 0 | N79: =$H79*Multipliers!F11 -> 0 | O79: 0 | P79: =$H79*Multipliers!G11 -> 0 | Q79: =$H79*Multipliers!H11 -> 0 | R79: =$H79*Multipliers!I11 -> 0 | S79: 0 | T79: =$H79*Multipliers!J11 -> 0 | U79: =$H79*Multipliers!K11 -> 0 | V79: =$H79*Multipliers!L11 -> 0 | W79: 0 | X79: =$H79*Multipliers!M11 -> 0 | Y79: =$H79*Multipliers!N11 -> 0 | Z79: =$H79*Multipliers!O11 -> 0 | AA79: 0
C80: Machinery & Equipment | D80: =MMULT(TRANSPOSE(DemandOM),MarginsMAC) -> 0 | G80: 0 | H80: 0 | L80: =$H80*Multipliers!D12 -> 0 | M80: =$H80*Multipliers!E12 -> 0 | N80: =$H80*Multipliers!F12 -> 0 | O80: 0 | P80: =$H80*Multipliers!G12 -> 0 | Q80: =$H80*Multipliers!H12 -> 0 | R80: =$H80*Multipliers!I12 -> 0 | S80: 0 | T80: =$H80*Multipliers!J12 -> 0 | U80: =$H80*Multipliers!K12 -> 0 | V80: =$H80*Multipliers!L12 -> 0 | W80: 0 | X80: =$H80*Multipliers!M12 -> 0 | Y80: =$H80*Multipliers!N12 -> 0 | Z80: =$H80*Multipliers!O12 -> 0 | AA80: 0
C81: TCPU | D81: =MMULT(TRANSPOSE(DemandOM),MarginsTCPU) -> 0 | G81: 0 | H81: 0 | L81: =$H81*Multipliers!D13 -> 0 | M81: =$H81*Multipliers!E13 -> 0 | N81: =$H81*Multipliers!F13 -> 0 | O81: 0 | P81: =$H81*Multipliers!G13 -> 0 | Q81: =$H81*Multipliers!H13 -> 0 | R81: =$H81*Multipliers!I13 -> 0 | S81: 0 | T81: =$H81*Multipliers!J13 -> 0 | U81: =$H81*Multipliers!K13 -> 0 | V81: =$H81*Multipliers!L13 -> 0 | W81: 0 | X81: =$H81*Multipliers!M13 -> 0 | Y81: =$H81*Multipliers!N13 -> 0 | Z81: =$H81*Multipliers!O13 -> 0 | AA81: 0
C82: Wholesale Trade | D82: =MMULT(TRANSPOSE(DemandOM),MarginsWHO) -> 0 | G82: 0 | H82: 0 | L82: =$H82*Multipliers!D14 -> 0 | M82: =$H82*Multipliers!E14 -> 0 | N82: =$H82*Multipliers!F14 -> 0 | O82: 0 | P82: =$H82*Multipliers!G14 -> 0 | Q82: =$H82*Multipliers!H14 -> 0 | R82: =$H82*Multipliers!I14 -> 0 | S82: 0 | T82: =$H82*Multipliers!J14 -> 0 | U82: =$H82*Multipliers!K14 -> 0 | V82: =$H82*Multipliers!L14 -> 0 | W82: 0 | X82: =$H82*Multipliers!M14 -> 0 | Y82: =$H82*Multipliers!N14 -> 0 | Z82: =$H82*Multipliers!O14 -> 0 | AA82: 0
C83: Retail Trade | D83: =MMULT(TRANSPOSE(DemandOM),MarginsRET) -> 0 | G83: 0 | H83: 0 | L83: =$H83*Multipliers!D15 -> 0 | M83: =$H83*Multipliers!E15 -> 0 | N83: =$H83*Multipliers!F15 -> 0 | O83: 0 | P83: =$H83*Multipliers!G15 -> 0 | Q83: =$H83*Multipliers!H15 -> 0 | R83: =$H83*Multipliers!I15 -> 0 | S83: 0 | T83: =$H83*Multipliers!J15 -> 0 | U83: =$H83*Multipliers!K15 -> 0 | V83: =$H83*Multipliers!L15 -> 0 | W83: 0 | X83: =$H83*Multipliers!M15 -> 0 | Y83: =$H83*Multipliers!N15 -> 0 | Z83: =$H83*Multipliers!O15 -> 0 | AA83: 0
C84: FIRE | D84: =MMULT(TRANSPOSE(DemandOM),MarginsFIRE) -> 0 | G84: 0 | H84: 0 | L84: =$H84*Multipliers!D16 -> 0 | M84: =$H84*Multipliers!E16 -> 0 | N84: =$H84*Multipliers!F16 -> 0 | O84: 0 | P84: =$H84*Multipliers!G16 -> 0 | Q84: =$H84*Multipliers!H16 -> 0 | R84: =$H84*Multipliers!I16 -> 0 | S84: 0 | T84: =$H84*Multipliers!J16 -> 0 | U84: =$H84*Multipliers!K16 -> 0 | V84: =$H84*Multipliers!L16 -> 0 | W84: 0 | X84: =$H84*Multipliers!M16 -> 0 | Y84: =$H84*Multipliers!N16 -> 0 | Z84: =$H84*Multipliers!O16 -> 0 | AA84: 0
C85: Misc. Services | D85: =MMULT(TRANSPOSE(DemandOM),MarginsOTH) -> 0 | G85: 0 | H85: 0 | L85: =$H85*Multipliers!D17 -> 0 | M85: =$H85*Multipliers!E17 -> 0 | N85: =$H85*Multipliers!F17 -> 0 | O85: 0 | P85: =$H85*Multipliers!G17 -> 0 | Q85: =$H85*Multipliers!H17 -> 0 | R85: =$H85*Multipliers!I17 -> 0 | S85: 0 | T85: =$H85*Multipliers!J17 -> 0 | U85: =$H85*Multipliers!K17 -> 0 | V85: =$H85*Multipliers!L17 -> 0 | W85: 0 | X85: =$H85*Multipliers!M17 -> 0 | Y85: =$H85*Multipliers!N17 -> 0 | Z85: =$H85*Multipliers!O17 -> 0 | AA85: 0
C86: Repair & Maintenance | D86: =MMULT(TRANSPOSE(DemandOM),MarginsREP) -> 0 | G86: 0 | H86: 0 | L86: =$H86*Multipliers!D18 -> 0 | M86: =$H86*Multipliers!E18 -> 0 | N86: =$H86*Multipliers!F18 -> 0 | O86: 0 | P86: =$H86*Multipliers!G18 -> 0 | Q86: =$H86*Multipliers!H18 -> 0 | R86: =$H86*Multipliers!I18 -> 0 | S86: 0 | T86: =$H86*Multipliers!J18 -> 0 | U86: =$H86*Multipliers!K18 -> 0 | V86: =$H86*Multipliers!L18 -> 0 | W86: 0 | X86: =$H86*Multipliers!M18 -> 0 | Y86: =$H86*Multipliers!N18 -> 0 | Z86: =$H86*Multipliers!O18 -> 0 | AA86: 0
C87: Professional Services | D87: =MMULT(TRANSPOSE(DemandOM),MarginsPRO) -> 0 | G87: 0 | H87: 0 | L87: =$H87*Multipliers!D19 -> 0 | M87: =$H87*Multipliers!E19 -> 0 | N87: =$H87*Multipliers!F19 -> 0 | O87: 0 | P87: =$H87*Multipliers!G19 -> 0 | Q87: =$H87*Multipliers!H19 -> 0 | R87: =$H87*Multipliers!I19 -> 0 | S87: 0 | T87: =$H87*Multipliers!J19 -> 0 | U87: =$H87*Multipliers!K19 -> 0 | V87: =$H87*Multipliers!L19 -> 0 | W87: 0 | X87: =$H87*Multipliers!M19 -> 0 | Y87: =$H87*Multipliers!N19 -> 0 | Z87: =$H87*Multipliers!O19 -> 0 | AA87: 0
C88: Government | D88: =MMULT(TRANSPOSE(DemandOM),MarginsGOV) -> 0 | G88: 0 | H88: 0 | L88: =$H88*Multipliers!D20 -> 0 | M88: =$H88*Multipliers!E20 -> 0 | N88: =$H88*Multipliers!F20 -> 0 | O88: 0 | P88: =$H88*Multipliers!G20 -> 0 | Q88: =$H88*Multipliers!H20 -> 0 | R88: =$H88*Multipliers!I20 -> 0 | S88: 0 | T88: =$H88*Multipliers!J20 -> 0 | U88: =$H88*Multipliers!K20 -> 0 | V88: =$H88*Multipliers!L20 -> 0 | W88: 0 | X88: =$H88*Multipliers!M20 -> 0 | Y88: =$H88*Multipliers!N20 -> 0 | Z88: =$H88*Multipliers!O20 -> 0 | AA88: 0
L89: =$H89*Multipliers!D21 -> 0 | M89: =$H89*Multipliers!E21 -> 0 | N89: =$H89*Multipliers!F21 -> 0 | O89: 0 | P89: =$H89*Multipliers!G21 -> 0 | Q89: =$H89*Multipliers!H21 -> 0 | R89: =$H89*Multipliers!I21 -> 0 | S89: 0 | T89: =$H89*Multipliers!J21 -> 0 | U89: =$H89*Multipliers!K21 -> 0 | V89: =$H89*Multipliers!L21 -> 0 | W89: 0 | X89: =$H89*Multipliers!M21 -> 0 | Y89: =$H89*Multipliers!N21 -> 0 | Z89: =$H89*Multipliers!O21 -> 0 | AA89: 0
C90: Total | D90: =SUM(D76:D89) -> 0 | G90: =SUM(G76:G89) -> 0 | H90: =SUM(H76:H89) -> 0 | K90: Total | L90: =SUM(L76:L89) -> 0 | M90: =SUM(M76:M89) -> 0 | N90: 0 | O90: 0 | P90: 0 | Q90: 0 | R90: 0 | S90: 0 | T90: 0 | U90: 0 | V90: 0 | W90: 0 | X90: 0 | Y90: 0 | Z90: 0 | AA90: 0
E92: Earnings - Gross | G92: =K69 -> 2760000
E93: Employee - (SSI, Medicare, etc.) | F93: =DefaultData!K30 -> 0.27 | G93: =F93*G$92 -> 745200 | H93: 0 | P93: Inflate to | Q93: =D39 -> 2020 | R93: Dollars
E94: Other benefits | F94: =DefaultData!K31 -> 0.0683 | G94: =F94*G$92 -> 188508 | H94: =IF(ProjectData!B9="MyRegion",0,1) -> 1 | J94: Without Employees | L94: =L90 -> 0 | M94: =M90 -> 0 | N94: =N90 -> 0 | O94: =O90 -> 0 | P94: =P90*$G60 -> 0 | Q94: =Q90*$G60 -> 0 | R94: =R90*$G60 -> 0 | S94: =P94+Q94+R94 -> 0 | T94: =T90*$G60 -> 0 | U94: 0 | V94: 0 | W94: 0 | X94: 0 | Y94: 0 | Z94: 0 | AA94: 0
E95: Earnings (minus taxes, benefits, etc) | G95: =G92-G93-G94 -> 1826292 | J95: With Employees | L95: =L94+L115 -> 35.75872523 | M95: =M94+M115 -> 3.391165739 | N95: =N94+N115 -> 2.31445942 | O95: =O94+O115 -> 41.46435039 | P95: =(P90+P115)*$G60 -> 2.0148 | Q95: 0.2289701956 | R95: 0.1220133951 | S95: 2.365783591 | T95: 2.0148 | U95: 0.8557708518 | V95: 0.4785789028 | W95: 3.349149755 | X95: 2.0148 | Y95: 0.4385825903 | Z95: 0.2973158705 | AA95: 2.750698461
C97: Employees - Maintenance | D97: =DefaultData!I41 -> 35.75872523
L98: Employees Only
C99: Employee Spending | F99: PCE | H99: Adj Demand - Million | L99: Jobs | P99: Earnings | T99: Output | X99: Value Added
F100: Emp | H100: =H75 -> 2017 | I100: Dollars | L100: Direct | M100: Indirect | N100: Induced | O100: Total | P100: Direct | Q100: Indirect | R100: Induced | S100: Total | T100: Direct | U100: Indirect | V100: Induced | W100: Total | X100: Direct | Y100: Indirect | Z100: Induced | AA100: Total
C101: Agriculture | F101: =G$95*Multipliers!D25 -> 23425.39347 | H101: =F101*G$39/10^6 -> 0.02222847556 | M101: =$H101*Multipliers!E8 -> 0.04390218607 | N101: =$H101*Multipliers!F8 -> 0.01146854054 | O101: =M101+N101 -> 0.05537072661 | Q101: =$H101*Multipliers!H8 -> 0.002639853224 | R101: =$H101*Multipliers!I8 -> 0.0005818002938 | S101: =Q101+R101 -> 0.003221653518 | T101: =$H101*Multipliers!J8 -> 0.02222847556 | U101: =$H101*Multipliers!K8 -> 0.01305966318 | V101: =$H101*Multipliers!L8 -> 0.002268331361 | W101: =T101+U101+V101 -> 0.0375564701 | Y101: =$H101*Multipliers!N8 -> 0.005771725796 | Z101: =$H101*Multipliers!O8 -> 0.001403073072 | AA101: =Y101+Z101 -> 0.007174798869
C102: Mining | F102: =G$95*Multipliers!D26 -> 5835.936833 | H102: =F102*G$39/10^6 -> 0.005537750279 | M102: =$H102*Multipliers!E9 -> 0.009198118401 | N102: =$H102*Multipliers!F9 -> 0.00445920803 | O102: =M102+N102 -> 0.01365732643 | Q102: =$H102*Multipliers!H9 -> 0.000759889539 | R102: =$H102*Multipliers!I9 -> 0.0002228301029 | S102: =Q102+R102 -> 0.0009827196418 | T102: =$H102*Multipliers!J9 -> 0.005537750279 | U102: =$H102*Multipliers!K9 -> 0.002312223223 | V102: =$H102*Multipliers!L9 -> 0.000878445589 | W102: =T102+U102+V102 -> 0.008728419091 | Y102: =$H102*Multipliers!N9 -> 0.001293791937 | Z102: =$H102*Multipliers!O9 -> 0.0005434579246 | AA102: =Y102+Z102 -> 0.001837249862
C103: Construction | F103: =G$95*Multipliers!D27 -> 998.4335565 | H103: 0.0009474187033 | M103: =$H103*Multipliers!E10 -> 0.001969638607 | N103: =$H103*Multipliers!F10 -> 0.001285016791 | O103: 0.003254655397 | Q103: =$H103*Multipliers!H10 -> 0.0001525756451 | R103: =$H103*Multipliers!I10 -> 6.402248156e-05 | S103: 0.0002165981267 | T103: =$H103*Multipliers!J10 -> 0.0009474187033 | U103: =$H103*Multipliers!K10 -> 0.000471223149 | V103: =$H103*Multipliers!L10 -> 0.0002522827551 | W103: 0.001670924607 | Y103: =$H103*Multipliers!N10 -> 0.0002568394695 | Z103: =$H103*Multipliers!O10 -> 0.0001567644159 | AA103: 0.0004136038854
C104: Manufacturing | F104: =G$95*Multipliers!D28 -> 348052.0112 | H104: 0.3302683318 | M104: =$H104*Multipliers!E11 -> 0.7200430392 | N104: =$H104*Multipliers!F11 -> 0.2498671711 | O104: 0.9699102103 | Q104: =$H104*Multipliers!H11 -> 0.04815099568 | R104: =$H104*Multipliers!I11 -> 0.01244308326 | S104: 0.06059407895 | T104: =$H104*Multipliers!J11 -> 0.3302683318 | U104: =$H104*Multipliers!K11 -> 0.26400459 | V104: =$H104*Multipliers!L11 -> 0.0491704732 | W104: 0.643443395 | Y104: =$H104*Multipliers!N11 -> 0.1155586179 | Z104: =$H104*Multipliers!O11 -> 0.03054130461 | AA104: 0.1460999225
C105: Machinery & Equipment | F105: =G$95*Multipliers!D29 -> 12843.01556 | H105: 0.01218680308 | M105: =$H105*Multipliers!E12 -> 0.01727562781 | N105: =$H105*Multipliers!F12 -> 0.01280803527 | O105: 0.03008366308 | Q105: =$H105*Multipliers!H12 -> 0.001311669648 | R105: =$H105*Multipliers!I12 -> 0.0006404770841 | S105: 0.001952146733 | T105: =$H105*Multipliers!J12 -> 0.01218680308 | U105: =$H105*Multipliers!K12 -> 0.004186100825 | V105: =$H105*Multipliers!L12 -> 0.002516720499 | W105: 0.01888962441 | Y105: =$H105*Multipliers!N12 -> 0.002178443198 | Z105: =$H105*Multipliers!O12 -> 0.001561047366 | AA105: 0.003739490564
C106: TCPU | F106: =G$95*Multipliers!D30 -> 85104.95845 | H106: 0.08075652992 | M106: =$H106*Multipliers!E13 -> 0.1322021567 | N106: =$H106*Multipliers!F13 -> 0.09213894084 | O106: 0.2243410975 | Q106: =$H106*Multipliers!H13 -> 0.009638708151 | R106: =$H106*Multipliers!I13 -> 0.004598593553 | S106: 0.0142373017 | T106: =$H106*Multipliers!J13 -> 0.08075652992 | U106: =$H106*Multipliers!K13 -> 0.03671884636 | V106: =$H106*Multipliers!L13 -> 0.01809127761 | W106: 0.1355666539 | Y106: =$H106*Multipliers!N13 -> 0.01783886676 | Z106: =$H106*Multipliers!O13 -> 0.01121980896 | AA106: 0.02905867572
C107: Wholesale Trade | F107: =G$95*Multipliers!D31 -> 72152.11167 | H107: 0.06846550742 | M107: =$H107*Multipliers!E14 -> 0.1049457587 | N107: =$H107*Multipliers!F14 -> 0.1027317735 | O107: 0.2076775322 | Q107: =$H107*Multipliers!H14 -> 0.007156238661 | R107: =$H107*Multipliers!I14 -> 0.005134874822 | S107: 0.01229111348 | T107: =$H107*Multipliers!J14 -> 0.06846550742 | U107: =$H107*Multipliers!K14 -> 0.02404356832 | V107: =$H107*Multipliers!L14 -> 0.0201510973 | W107: 0.112660173 | Y107: =$H107*Multipliers!N14 -> 0.01323539173 | Z107: =$H107*Multipliers!O14 -> 0.01251882086 | AA107: 0.0257542126
C108: Retail Trade | F108: =G$95*Multipliers!D32 -> 230132.9095 | H108: 0.2183742937 | M108: =$H108*Multipliers!E15 -> 0.3881315139 | N108: =$H108*Multipliers!F15 -> 0.3532513895 | O108: 0.7413829034 | Q108: =$H108*Multipliers!H15 -> 0.02541603691 | R108: =$H108*Multipliers!I15 -> 0.01764689752 | S108: 0.04306293443 | T108: =$H108*Multipliers!J15 -> 0.2183742937 | U108: =$H108*Multipliers!K15 -> 0.08947252868 | V108: =$H108*Multipliers!L15 -> 0.0692821079 | W108: 0.3771289303 | Y108: =$H108*Multipliers!N15 -> 0.05082924824 | Z108: =$H108*Multipliers!O15 -> 0.04305479154 | AA108: 0.09388403978
C109: FIRE | F109: =G$95*Multipliers!D33 -> 259995.2186 | H109: 0.2467107914 | M109: =$H109*Multipliers!E16 -> 0.5577271468 | N109: =$H109*Multipliers!F16 -> 0.2653796025 | O109: 0.8231067493 | Q109: =$H109*Multipliers!H16 -> 0.03745600353 | R109: =$H109*Multipliers!I16 -> 0.01329358174 | S109: 0.05074958527 | T109: =$H109*Multipliers!J16 -> 0.2467107914 | U109: =$H109*Multipliers!K16 -> 0.1130404723 | V109: =$H109*Multipliers!L16 -> 0.05205946459 | W109: 0.4118107283 | Y109: =$H109*Multipliers!N16 -> 0.06170447554 | Z109: =$H109*Multipliers!O16 -> 0.03237897953 | AA109: 0.09408345507
C110: Misc. Services | F110: =G$95*Multipliers!D34 -> 722378.6612 | H110: 0.6854688026 | M110: =$H110*Multipliers!E17 -> 0.9936372383 | N110: =$H110*Multipliers!F17 -> 0.8530788703 | O110: 1.846716109 | Q110: =$H110*Multipliers!H17 -> 0.05807443176 | R110: =$H110*Multipliers!I17 -> 0.04273248887 | S110: 0.1008069206 | T110: =$H110*Multipliers!J17 -> 0.6854688026 | U110: =$H110*Multipliers!K17 -> 0.1769296966 | V110: =$H110*Multipliers!L17 -> 0.1673304879 | W110: 1.029728987 | Y110: =$H110*Multipliers!N17 -> 0.09766993015 | Z110: =$H110*Multipliers!O17 -> 0.1039332723 | AA110: 0.2016032025
C111: Repair & Maintenance | F111: =G$95*Multipliers!D35+(G94*H94) -> 196785.6391 | H111: 0.1867308984 | M111: =$H111*Multipliers!E18 -> 0.2931675105 | N111: =$H111*Multipliers!F18 -> 0.28681866 | O111: 0.5799861705 | Q111: =$H111*Multipliers!H18 -> 0.01829962805 | R111: =$H111*Multipliers!I18 -> 0.01437827918 | S111: 0.03267790723 | T111: =$H111*Multipliers!J18 -> 0.1867308984 | U111: =$H111*Multipliers!K18 -> 0.06404869816 | V111: =$H111*Multipliers!L18 -> 0.05620600043 | W111: 0.306985597 | Y111: =$H111*Multipliers!N18 -> 0.0354788707 | Z111: =$H111*Multipliers!O18 -> 0.03491867801 | AA111: 0.07039754871
C112: Professional Services | F112: =G$95*Multipliers!D36 -> 25901.28563 | H112: 0.02457786228 | M112: =$H112*Multipliers!E19 -> 0.04468040913 | N112: =$H112*Multipliers!F19 -> 0.03746626842 | O112: 0.08214667755 | Q112: =$H112*Multipliers!H19 -> 0.002753788193 | R112: =$H112*Multipliers!I19 -> 0.001869608529 | S112: 0.004623396722 | T112: =$H112*Multipliers!J19 -> 0.02457786228 | U112: =$H112*Multipliers!K19 -> 0.008697374462 | V112: =$H112*Multipliers!L19 -> 0.007347677766 | W112: 0.04062291451 | Y112: =$H112*Multipliers!N19 -> 0.004949382138 | Z112: =$H112*Multipliers!O19 -> 0.004571578803 | AA112: 0.009520960941
C113: Government | F113: =G$95*Multipliers!D37 -> 31194.4252 | H113: 0.02960054946 | M113: =$H113*Multipliers!E20 -> 0.08428539443 | N113: =$H113*Multipliers!F20 -> 0.04370594352 | O113: 0.127991338 | Q113: =$H113*Multipliers!H20 -> 0.005461169569 | R113: =$H113*Multipliers!I20 -> 0.002172596594 | S113: 0.007633766163 | T113: =$H113*Multipliers!J20 -> 0.02960054946 | U113: =$H113*Multipliers!K20 -> 0.0150603485 | V113: =$H113*Multipliers!L20 -> 0.00857159928 | W113: 0.05323249724 | Y113: =$H113*Multipliers!N20 -> 0.009407677338 | Z113: =$H113*Multipliers!O20 -> 0.005322971253 | AA113: 0.01473064859
M114: =$H114*Multipliers!E21 -> 0 | N114: =$H114*Multipliers!F21 -> 0 | O114: 0 | Q114: =$H114*Multipliers!H21 -> 0 | R114: =$H114*Multipliers!I21 -> 0 | S114: 0 | T114: =$H114*Multipliers!J21 -> 0 | U114: =$H114*Multipliers!K21 -> 0 | V114: =$H114*Multipliers!L21 -> 0 | W114: 0 | Y114: =$H114*Multipliers!N21 -> 0 | Z114: =$H114*Multipliers!O21 -> 0 | AA114: 0
C115: Total | F115: =SUM(F101:F114) -> 2014800 | H115: =SUM(H101:H114) -> 1.911854015 | L115: =IF(L117=0,0,D97) -> 35.75872523 | M115: =SUM(M101:M114) -> 3.391165739 | N115: =SUM(N101:N114) -> 2.31445942 | O115: =L115+M115+N115 -> 41.46435039 | P115: =H115 -> 1.911854015 | Q115: =SUM(Q101:Q114) -> 0.2172709886 | R115: =SUM(R101:R114) -> 0.115779134 | S115: =R115+Q115+P115 -> 2.244904137 | T115: =SUM(T101:T114) -> 1.911854015 | U115: =SUM(U101:U114) -> 0.8120453338 | V115: =SUM(V101:V114) -> 0.4541259662 | W115: =T115+U115+V115 -> 3.178025315 | X115: =P115 -> 1.911854015 | Y115: =SUM(Y101:Y114) -> 0.4161732609 | Z115: =SUM(Z101:Z114) -> 0.2821245487 | AA115: =X115+Y115+Z115 -> 2.610151824
P116: Inflate to | Q116: =Q93 -> 2020 | R116: Dollars
L117: =SUM(M122:M135) -> 3.391165739 | P117: =P115*$G60 -> 2.0148 | Q117: 0.2289701956 | R117: 0.1220133951 | S117: 2.365783591 | T117: 2.0148 | U117: 0.8557708518 | V117: 0.4785789028 | W117: 3.349149755 | X117: 2.0148 | Y117: 0.4385825903 | Z117: 0.2973158705 | AA117: 2.750698461
L119: Total Maintenance
L120: Jobs | P120: Earnings | T120: Output | X120: Value Added
L121: Direct | M121: Indirect | N121: Induced | O121: Total | P121: Direct | Q121: Indirect | R121: Induced | S121: Total | T121: Direct | U121: Indirect | V121: Induced | W121: Total | X121: Direct | Y121: Indirect | Z121: Induced | AA121: Total
J122: Agriculture | L122: =L76+L101 -> 0 | M122: 0.04390218607 | N122: 0.01146854054 | O122: =L122+M122+N122 -> 0.05537072661 | P122: =P76+P101 -> 0 | Q122: 0.002639853224 | R122: 0.0005818002938 | S122: =P122+Q122+R122 -> 0.003221653518 | T122: =T76+T101 -> 0.02222847556 | U122: 0.01305966318 | V122: 0.002268331361 | W122: =T122+U122+V122 -> 0.0375564701 | X122: =X76+X101 -> 0 | Y122: 0.005771725796 | Z122: 0.001403073072 | AA122: =X122+Y122+Z122 -> 0.007174798869
J123: Mining | L123: 0 | M123: 0.009198118401 | N123: 0.00445920803 | O123: =L123+M123+N123 -> 0.01365732643 | P123: 0 | Q123: 0.000759889539 | R123: 0.0002228301029 | S123: =P123+Q123+R123 -> 0.0009827196418 | T123: 0.005537750279 | U123: 0.002312223223 | V123: 0.000878445589 | W123: =T123+U123+V123 -> 0.008728419091 | X123: 0 | Y123: 0.001293791937 | Z123: 0.0005434579246 | AA123: =X123+Y123+Z123 -> 0.001837249862
J124: Construction | L124: 0 | M124: 0.001969638607 | N124: 0.001285016791 | O124: 0.003254655397 | P124: 0 | Q124: 0.0001525756451 | R124: 6.402248156e-05 | S124: 0.0002165981267 | T124: 0.0009474187033 | U124: 0.000471223149 | V124: 0.0002522827551 | W124: 0.001670924607 | X124: 0 | Y124: 0.0002568394695 | Z124: 0.0001567644159 | AA124: 0.0004136038854
J125: Manufacturing | L125: 0 | M125: 0.7200430392 | N125: 0.2498671711 | O125: 0.9699102103 | P125: 0 | Q125: 0.04815099568 | R125: 0.01244308326 | S125: 0.06059407895 | T125: 0.3302683318 | U125: 0.26400459 | V125: 0.0491704732 | W125: 0.643443395 | X125: 0 | Y125: 0.1155586179 | Z125: 0.03054130461 | AA125: 0.1460999225
J126: Fabricated Metals | L126: 0 | M126: 0.01727562781 | N126: 0.01280803527 | O126: 0.03008366308 | P126: 0 | Q126: 0.001311669648 | R126: 0.0006404770841 | S126: 0.001952146733 | T126: 0.01218680308 | U126: 0.004186100825 | V126: 0.002516720499 | W126: 0.01888962441 | X126: 0 | Y126: 0.002178443198 | Z126: 0.001561047366 | AA126: 0.003739490564
J127: Machinery & Equipment | L127: 0 | M127: 0.1322021567 | N127: 0.09213894084 | O127: 0.2243410975 | P127: 0 | Q127: 0.009638708151 | R127: 0.004598593553 | S127: 0.0142373017 | T127: 0.08075652992 | U127: 0.03671884636 | V127: 0.01809127761 | W127: 0.1355666539 | X127: 0 | Y127: 0.01783886676 | Z127: 0.01121980896 | AA127: 0.02905867572
J128: Electrical Equipment | L128: 0 | M128: 0.1049457587 | N128: 0.1027317735 | O128: 0.2076775322 | P128: 0 | Q128: 0.007156238661 | R128: 0.005134874822 | S128: 0.01229111348 | T128: 0.06846550742 | U128: 0.02404356832 | V128: 0.0201510973 | W128: 0.112660173 | X128: 0 | Y128: 0.01323539173 | Z128: 0.01251882086 | AA128: 0.0257542126
J129: TCPU | L129: 0 | M129: 0.3881315139 | N129: 0.3532513895 | O129: 0.7413829034 | P129: 0 | Q129: 0.02541603691 | R129: 0.01764689752 | S129: 0.04306293443 | T129: 0.2183742937 | U129: 0.08947252868 | V129: 0.0692821079 | W129: 0.3771289303 | X129: 0 | Y129: 0.05082924824 | Z129: 0.04305479154 | AA129: 0.09388403978
J130: Wholesale Trade | L130: 0 | M130: 0.5577271468 | N130: 0.2653796025 | O130: 0.8231067493 | P130: 0 | Q130: 0.03745600353 | R130: 0.01329358174 | S130: 0.05074958527 | T130: 0.2467107914 | U130: 0.1130404723 | V130: 0.05205946459 | W130: 0.4118107283 | X130: 0 | Y130: 0.06170447554 | Z130: 0.03237897953 | AA130: 0.09408345507
J131: Retail Trade | L131: 0 | M131: 0.9936372383 | N131: 0.8530788703 | O131: 1.846716109 | P131: 0 | Q131: 0.05807443176 | R131: 0.04273248887 | S131: 0.1008069206 | T131: 0.6854688026 | U131: 0.1769296966 | V131: 0.1673304879 | W131: 1.029728987 | X131: 0 | Y131: 0.09766993015 | Z131: 0.1039332723 | AA131: 0.2016032025
J132: FIRE | L132: 0 | M132: 0.2931675105 | N132: 0.28681866 | O132: 0.5799861705 | P132: 0 | Q132: 0.01829962805 | R132: 0.01437827918 | S132: 0.03267790723 | T132: 0.1867308984 | U132: 0.06404869816 | V132: 0.05620600043 | W132: 0.306985597 | X132: 0 | Y132: 0.0354788707 | Z132: 0.03491867801 | AA132: 0.07039754871
J133: Misc. Services | L133: 0 | M133: 0.04468040913 | N133: 0.03746626842 | O133: 0.08214667755 | P133: 0 | Q133: 0.002753788193 | R133: 0.001869608529 | S133: 0.004623396722 | T133: 0.02457786228 | U133: 0.008697374462 | V133: 0.007347677766 | W133: 0.04062291451 | X133: 0 | Y133: 0.004949382138 | Z133: 0.004571578803 | AA133: 0.009520960941
J134: Professional Services | L134: 0 | M134: 0.08428539443 | N134: 0.04370594352 | O134: 0.127991338 | P134: 0 | Q134: 0.005461169569 | R134: 0.002172596594 | S134: 0.007633766163 | T134: 0.02960054946 | U134: 0.0150603485 | V134: 0.00857159928 | W134: 0.05323249724 | X134: 0 | Y134: 0.009407677338 | Z134: 0.005322971253 | AA134: 0.01473064859
J135: Government | L135: 0 | M135: 0 | N135: 0 | O135: 0 | P135: 0 | Q135: 0 | R135: 0 | S135: 0 | T135: 0 | U135: 0 | V135: 0 | W135: 0 | X135: 0 | Y135: 0 | Z135: 0 | AA135: 0
J136: Plant Employees | L136: =L115 -> 35.75872523 | O136: 35.75872523 | P136: =P115 -> 1.911854015 | S136: 1.911854015 | W136: 0 | X136: =X115 -> 1.911854015 | AA136: 1.911854015
J137: Total | L137: =SUM(L122:L136) -> 35.75872523 | M137: =SUM(M122:M135) -> 3.391165739 | N137: =SUM(N122:N135) -> 2.31445942 | O137: =SUM(O122:O136) -> 41.46435039 | P137: 1.911854015 | Q137: 0.2172709886 | R137: 0.115779134 | S137: 2.244904137 | T137: 1.911854015 | U137: 0.8120453338 | V137: 0.4541259662 | W137: 3.178025315 | X137: 1.911854015 | Y137: 0.4161732609 | Z137: 0.2821245487 | AA137: 2.610151824
J138: Inflate to | K138: =Q116 -> 2020 | L138: Dollars | P138: =P137*$G60 -> 2.0148 | Q138: 0.2289701956 | R138: 0.1220133951 | S138: 2.365783591 | T138: 2.0148 | U138: 0.8557708518 | V138: 0.4785789028 | W138: 3.349149755 | X138: 2.0148 | Y138: 0.4385825903 | Z138: 0.2973158705 | AA138: 2.750698461

Sheet Deflators
A1: *** WARNING *** This Worksheet contains Data and Formulas that are an integral part of the EI2 model. Although the data and formulas are available for review they must not be changed. Any changes to the data or formulas will impact the analysis and may invalidate the model results. To view the data and formulas simply scroll over to the adjacent columns to the right. | C1: Deflators / Inflators
C2: To assure consistency with multiplier data and project data
C4: Year of Multiplier Data | E4: 2017 | I4: Deflator | J4: =HLOOKUP($E$5,D9:AW51,$D$60) -> 0.9489051095
C5: Dollar Year $ | E5: =ProjectData!B17 -> 2020 | I5: Inflator | J5: =HLOOKUP($E$5,D9:AW51,$D$59) -> 1.053846154
D9: 2005 | E9: 2006 | F9: 2007 | G9: 2008 | H9: 2009 | I9: 2010 | J9: 2011 | K9: 2012 | L9: 2013 | M9: 2014 | N9: 2015 | O9: 2016 | P9: 2017 | Q9: 2018 | R9: 2019 | S9: 2020 | T9: 2021 | U9: 2022 | V9: 2023 | W9: 2024 | X9: 2025 | Y9: 2026 | Z9: 2027 | AA9: 2028 | AB9: 2029 | AC9: 2030 | AD9: 2031 | AE9: 2032 | AF9: 2033 | AG9: 2034 | AH9: 2035 | AI9: 2036 | AJ9: 2037 | AK9: 2038 | AL9: 2039 | AM9: 2040 | AN9: 2041 | AO9: 2042 | AP9: 2043 | AQ9: 2044 | AR9: 2045 | AS9: 2046 | AT9: 2047 | AU9: 2048 | AV9: 2049 | AW9: 2050
C10: 2005 | D10: 1 | E10: 1.018691589 | F10: 1.046728972 | G10: 1.065420561 | H10: 1.065420561 | I10: 1.093457944 | J10: 1.121495327 | K10: 1.140186916 | L10: 1.14953271 | M10: 1.168224299 | N10: 1.186915888 | O10: 1.196261682 | P10: 1.214953271 | Q10: 1.242990654 | R10: 1.271028037 | S10: 1.280373832 | T10: 1.299065421 | U10: 1.327102804 | V10: 1.345794393 | W10: 1.373831776 | X10: 1.392523364 | Y10: 1.420560748 | Z10: 1.448598131 | AA10: 1.485981308 | AB10: 1.514018692 | AC10: 1.551401869 | AD10: 1.579439252 | AE10: 1.61682243 | AF10: 1.654205607 | AG10: 1.682242991 | AH10: 1.719626168 | AI10: 1.757009346 | AJ10: 1.794392523 | AK10: 1.822429907 | AL10: 1.859813084 | AM10: 1.897196262 | AN10: 1.934579439 | AO10: 1.981308411 | AP10: 2.018691589 | AQ10: 2.056074766 | AR10: 2.102803738 | AS10: 2.14953271 | AT10: 2.186915888 | AU10: 2.23364486 | AV10: 2.280373832 | AW10: 2.336448598
D11: 1 | E11: 0.9816513761 | F11: 0.9553571429 | G11: 0.9385964912 | H11: 0.9385964912 | I11: 0.9145299145 | J11: 0.8916666667 | K11: 0.8770491803 | L11: 0.8699186992 | M11: 0.856 | N11: 0.842519685 | O11: 0.8359375 | P11: 0.8230769231 | Q11: 0.8045112782 | R11: 0.7867647059 | S11: 0.7810218978 | T11: 0.7697841727 | U11: 0.7535211268 | V11: 0.7430555556 | W11: 0.7278911565 | X11: 0.7181208054 | Y11: 0.7039473684 | Z11: 0.6903225806 | AA11: 0.6729559748 | AB11: 0.6604938272 | AC11: 0.6445783133 | AD11: 0.6331360947 | AE11: 0.6184971098 | AF11: 0.604519774 | AG11: 0.5944444444 | AH11: 0.5815217391 | AI11: 0.5691489362 | AJ11: 0.5572916667 | AK11: 0.5487179487 | AL11: 0.5376884422 | AM11: 0.5270935961 | AN11: 0.5169082126 | AO11: 0.5047169811 | AP11: 0.4953703704 | AQ11: 0.4863636364 | AR11: 0.4755555556 | AS11: 0.4652173913 | AT11: 0.4572649573 | AU11: 0.4476987448 | AV11: 0.4385245902 | AW11: 0.428
C12: 2006 | D12: 0.9816513761 | E12: 1 | F12: 1.027522936 | G12: 1.04587156 | H12: 1.04587156 | I12: 1.073394495 | J12: 1.100917431 | K12: 1.119266055 | L12: 1.128440367 | M12: 1.146788991 | N12: 1.165137615 | O12: 1.174311927 | P12: 1.19266055 | Q12: 1.220183486 | R12: 1.247706422 | S12: 1.256880734 | T12: 1.275229358 | U12: 1.302752294 | V12: 1.321100917 | W12: 1.348623853 | X12: 1.366972477 | Y12: 1.394495413 | Z12: 1.422018349 | AA12: 1.458715596 | AB12: 1.486238532 | AC12: 1.52293578 | AD12: 1.550458716 | AE12: 1.587155963 | AF12: 1.623853211 | AG12: 1.651376147 | AH12: 1.688073394 | AI12: 1.724770642 | AJ12: 1.76146789 | AK12: 1.788990826 | AL12: 1.825688073 | AM12: 1.862385321 | AN12: 1.899082569 | AO12: 1.944954128 | AP12: 1.981651376 | AQ12: 2.018348624 | AR12: 2.064220183 | AS12: 2.110091743 | AT12: 2.146788991 | AU12: 2.19266055 | AV12: 2.23853211 | AW12: 2.293577982
D13: 1.018691589 | E13: 1 | F13: 0.9732142857 | G13: 0.9561403509 | H13: 0.9561403509 | I13: 0.9316239316 | J13: 0.9083333333 | K13: 0.893442623 | L13: 0.8861788618 | M13: 0.872 | N13: 0.8582677165 | O13: 0.8515625 | P13: 0.8384615385 | Q13: 0.8195488722 | R13: 0.8014705882 | S13: 0.795620438 | T13: 0.7841726619 | U13: 0.7676056338 | V13: 0.7569444444 | W13: 0.7414965986 | X13: 0.7315436242 | Y13: 0.7171052632 | Z13: 0.7032258065 | AA13: 0.6855345912 | AB13: 0.6728395062 | AC13: 0.656626506 | AD13: 0.6449704142 | AE13: 0.6300578035 | AF13: 0.615819209 | AG13: 0.6055555556 | AH13: 0.5923913043 | AI13: 0.579787234 | AJ13: 0.5677083333 | AK13: 0.558974359 | AL13: 0.5477386935 | AM13: 0.5369458128 | AN13: 0.5265700483 | AO13: 0.5141509434 | AP13: 0.5046296296 | AQ13: 0.4954545455 | AR13: 0.4844444444 | AS13: 0.4739130435 | AT13: 0.4658119658 | AU13: 0.4560669456 | AV13: 0.4467213115 | AW13: 0.436
C14: 2007 | D14: 0.9553571429 | E14: 0.9732142857 | F14: 1 | G14: 1.017857143 | H14: 1.017857143 | I14: 1.044642857 | J14: 1.071428571 | K14: 1.089285714 | L14: 1.098214286 | M14: 1.116071429 | N14: 1.133928571 | O14: 1.142857143 | P14: 1.160714286 | Q14: 1.1875 | R14: 1.214285714 | S14: 1.223214286 | T14: 1.241071429 | U14: 1.267857143 | V14: 1.285714286 | W14: 1.3125 | X14: 1.330357143 | Y14: 1.357142857 | Z14: 1.383928571 | AA14: 1.419642857 | AB14: 1.446428571 | AC14: 1.482142857 | AD14: 1.508928571 | AE14: 1.544642857 | AF14: 1.580357143 | AG14: 1.607142857 | AH14: 1.642857143 | AI14: 1.678571429 | AJ14: 1.714285714 | AK14: 1.741071429 | AL14: 1.776785714 | AM14: 1.8125 | AN14: 1.848214286 | AO14: 1.892857143 | AP14: 1.928571429 | AQ14: 1.964285714 | AR14: 2.008928571 | AS14: 2.053571429 | AT14: 2.089285714 | AU14: 2.133928571 | AV14: 2.178571429 | AW14: 2.232142857
D15: 1.046728972 | E15: 1.027522936 | F15: 1 | G15: 0.9824561404 | H15: 0.9824561404 | I15: 0.9572649573 | J15: 0.9333333333 | K15: 0.9180327869 | L15: 0.9105691057 | M15: 0.896 | N15: 0.8818897638 | O15: 0.875 | P15: 0.8615384615 | Q15: 0.8421052632 | R15: 0.8235294118 | S15: 0.8175182482 | T15: 0.8057553957 | U15: 0.7887323944 | V15: 0.7777777778 | W15: 0.7619047619 | X15: 0.7516778523 | Y15: 0.7368421053 | Z15: 0.7225806452 | AA15: 0.7044025157 | AB15: 0.6913580247 | AC15: 0.6746987952 | AD15: 0.6627218935 | AE15: 0.6473988439 | AF15: 0.6327683616 | AG15: 0.6222222222 | AH15: 0.6086956522 | AI15: 0.5957446809 | AJ15: 0.5833333333 | AK15: 0.5743589744 | AL15: 0.5628140704 | AM15: 0.5517241379 | AN15: 0.5410628019 | AO15: 0.5283018868 | AP15: 0.5185185185 | AQ15: 0.5090909091 | AR15: 0.4977777778 | AS15: 0.4869565217 | AT15: 0.4786324786 | AU15: 0.4686192469 | AV15: 0.4590163934 | AW15: 0.448
C16: 2008 | D16: 0.9385964912 | E16: 0.9561403509 | F16: 0.9824561404 | G16: 1 | H16: 1 | I16: 1.026315789 | J16: 1.052631579 | K16: 1.070175439 | L16: 1.078947368 | M16: 1.096491228 | N16: 1.114035088 | O16: 1.122807018 | P16: 1.140350877 | Q16: 1.166666667 | R16: 1.192982456 | S16: 1.201754386 | T16: 1.219298246 | U16: 1.245614035 | V16: 1.263157895 | W16: 1.289473684 | X16: 1.307017544 | Y16: 1.333333333 | Z16: 1.359649123 | AA16: 1.394736842 | AB16: 1.421052632 | AC16: 1.456140351 | AD16: 1.48245614 | AE16: 1.51754386 | AF16: 1.552631579 | AG16: 1.578947368 | AH16: 1.614035088 | AI16: 1.649122807 | AJ16: 1.684210526 | AK16: 1.710526316 | AL16: 1.745614035 | AM16: 1.780701754 | AN16: 1.815789474 | AO16: 1.859649123 | AP16: 1.894736842 | AQ16: 1.929824561 | AR16: 1.973684211 | AS16: 2.01754386 | AT16: 2.052631579 | AU16: 2.096491228 | AV16: 2.140350877 | AW16: 2.192982456
D17: 1.065420561 | E17: 1.04587156 | F17: 1.017857143 | G17: 1 | H17: 1 | I17: 0.9743589744 | J17: 0.95 | K17: 0.9344262295 | L17: 0.9268292683 | M17: 0.912 | N17: 0.8976377953 | O17: 0.890625 | P17: 0.8769230769 | Q17: 0.8571428571 | R17: 0.8382352941 | S17: 0.8321167883 | T17: 0.8201438849 | U17: 0.8028169014 | V17: 0.7916666667 | W17: 0.7755102041 | X17: 0.7651006711 | Y17: 0.75 | Z17: 0.735483871 | AA17: 0.7169811321 | AB17: 0.7037037037 | AC17: 0.686746988 | AD17: 0.674556213 | AE17: 0.6589595376 | AF17: 0.6440677966 | AG17: 0.6333333333 | AH17: 0.6195652174 | AI17: 0.6063829787 | AJ17: 0.59375 | AK17: 0.5846153846 | AL17: 0.5728643216 | AM17: 0.5615763547 | AN17: 0.5507246377 | AO17: 0.5377358491 | AP17: 0.5277777778 | AQ17: 0.5181818182 | AR17: 0.5066666667 | AS17: 0.4956521739 | AT17: 0.4871794872 | AU17: 0.4769874477 | AV17: 0.4672131148 | AW17: 0.456
C18: 2009 | D18: 0.9385964912 | E18: 0.9561403509 | F18: 0.9824561404 | G18: 1 | H18: 1 | I18: 1.026315789 | J18: 1.052631579 | K18: 1.070175439 | L18: 1.078947368 | M18: 1.096491228 | N18: 1.114035088 | O18: 1.122807018 | P18: 1.140350877 | Q18: 1.166666667 | R18: 1.192982456 | S18: 1.201754386 | T18: 1.219298246 | U18: 1.245614035 | V18: 1.263157895 | W18: 1.289473684 | X18: 1.307017544 | Y18: 1.333333333 | Z18: 1.359649123 | AA18: 1.394736842 | AB18: 1.421052632 | AC18: 1.456140351 | AD18: 1.48245614 | AE18: 1.51754386 | AF18: 1.552631579 | AG18: 1.578947368 | AH18: 1.614035088 | AI18: 1.649122807 | AJ18: 1.684210526 | AK18: 1.710526316 | AL18: 1.745614035 | AM18: 1.780701754 | AN18: 1.815789474 | AO18: 1.859649123 | AP18: 1.894736842 | AQ18: 1.929824561 | AR18: 1.973684211 | AS18: 2.01754386 | AT18: 2.052631579 | AU18: 2.096491228 | AV18: 2.140350877 | AW18: 2.192982456
D19: 1.065420561 | E19: 1.04587156 | F19: 1.017857143 | G19: 1 | H19: 1 | I19: 0.9743589744 | J19: 0.95 | K19: 0.9344262295 | L19: 0.9268292683 | M19: 0.912 | N19: 0.8976377953 | O19: 0.890625 | P19: 0.8769230769 | Q19: 0.8571428571 | R19: 0.8382352941 | S19: 0.8321167883 | T19: 0.8201438849 | U19: 0.8028169014 | V19: 0.7916666667 | W19: 0.7755102041 | X19: 0.7651006711 | Y19: 0.75 | Z19: 0.735483871 | AA19: 0.7169811321 | AB19: 0.7037037037 | AC19: 0.686746988 | AD19: 0.674556213 | AE19: 0.6589595376 | AF19: 0.6440677966 | AG19: 0.6333333333 | AH19: 0.6195652174 | AI19: 0.6063829787 | AJ19: 0.59375 | AK19: 0.5846153846 | AL19: 0.5728643216 | AM19: 0.5615763547 | AN19: 0.5507246377 | AO19: 0.5377358491 | AP19: 0.5277777778 | AQ19: 0.5181818182 | AR19: 0.5066666667 | AS19: 0.4956521739 | AT19: 0.4871794872 | AU19: 0.4769874477 | AV19: 0.4672131148 | AW19: 0.456
C20: 2010 | D20: 0.9145299145 | E20: 0.9316239316 | F20: 0.9572649573 | G20: 0.9743589744 | H20: 0.9743589744 | I20: 1 | J20: 1.025641026 | K20: 1.042735043 | L20: 1.051282051 | M20: 1.068376068 | N20: 1.085470085 | O20: 1.094017094 | P20: 1.111111111 | Q20: 1.136752137 | R20: 1.162393162 | S20: 1.170940171 | T20: 1.188034188 | U20: 1.213675214 | V20: 1.230769231 | W20: 1.256410256 | X20: 1.273504274 | Y20: 1.299145299 | Z20: 1.324786325 | AA20: 1.358974359 | AB20: 1.384615385 | AC20: 1.418803419 | AD20: 1.444444444 | AE20: 1.478632479 | AF20: 1.512820513 | AG20: 1.538461538 | AH20: 1.572649573 | AI20: 1.606837607 | AJ20: 1.641025641 | AK20: 1.666666667 | AL20: 1.700854701 | AM20: 1.735042735 | AN20: 1.769230769 | AO20: 1.811965812 | AP20: 1.846153846 | AQ20: 1.88034188 | AR20: 1.923076923 | AS20: 1.965811966 | AT20: 2 | AU20: 2.042735043 | AV20: 2.085470085 | AW20: 2.136752137
D21: 1.093457944 | E21: 1.073394495 | F21: 1.044642857 | G21: 1.026315789 | H21: 1.026315789 | I21: 1 | J21: 0.975 | K21: 0.9590163934 | L21: 0.9512195122 | M21: 0.936 | N21: 0.9212598425 | O21: 0.9140625 | P21: 0.9 | Q21: 0.8796992481 | R21: 0.8602941176 | S21: 0.8540145985 | T21: 0.8417266187 | U21: 0.823943662 | V21: 0.8125 | W21: 0.7959183673 | X21: 0.7852348993 | Y21: 0.7697368421 | Z21: 0.7548387097 | AA21: 0.7358490566 | AB21: 0.7222222222 | AC21: 0.7048192771 | AD21: 0.6923076923 | AE21: 0.676300578 | AF21: 0.6610169492 | AG21: 0.65 | AH21: 0.6358695652 | AI21: 0.6223404255 | AJ21: 0.609375 | AK21: 0.6 | AL21: 0.5879396985 | AM21: 0.5763546798 | AN21: 0.5652173913 | AO21: 0.5518867925 | AP21: 0.5416666667 | AQ21: 0.5318181818 | AR21: 0.52 | AS21: 0.5086956522 | AT21: 0.5 | AU21: 0.489539749 | AV21: 0.4795081967 | AW21: 0.468
C22: 2011 | D22: 0.8916666667 | E22: 0.9083333333 | F22: 0.9333333333 | G22: 0.95 | H22: 0.95 | I22: 0.975 | J22: 1 | K22: 1.016666667 | L22: 1.025 | M22: 1.041666667 | N22: 1.058333333 | O22: 1.066666667 | P22: 1.083333333 | Q22: 1.108333333 | R22: 1.133333333 | S22: 1.141666667 | T22: 1.158333333 | U22: 1.183333333 | V22: 1.2 | W22: 1.225 | X22: 1.241666667 | Y22: 1.266666667 | Z22: 1.291666667 | AA22: 1.325 | AB22: 1.35 | AC22: 1.383333333 | AD22: 1.408333333 | AE22: 1.441666667 | AF22: 1.475 | AG22: 1.5 | AH22: 1.533333333 | AI22: 1.566666667 | AJ22: 1.6 | AK22: 1.625 | AL22: 1.658333333 | AM22: 1.691666667 | AN22: 1.725 | AO22: 1.766666667 | AP22: 1.8 | AQ22: 1.833333333 | AR22: 1.875 | AS22: 1.916666667 | AT22: 1.95 | AU22: 1.991666667 | AV22: 2.033333333 | AW22: 2.083333333
D23: 1.121495327 | E23: 1.100917431 | F23: 1.071428571 | G23: 1.052631579 | H23: 1.052631579 | I23: 1.025641026 | J23: 1 | K23: 0.9836065574 | L23: 0.9756097561 | M23: 0.96 | N23: 0.9448818898 | O23: 0.9375 | P23: 0.9230769231 | Q23: 0.9022556391 | R23: 0.8823529412 | S23: 0.8759124088 | T23: 0.8633093525 | U23: 0.8450704225 | V23: 0.8333333333 | W23: 0.8163265306 | X23: 0.8053691275 | Y23: 0.7894736842 | Z23: 0.7741935484 | AA23: 0.7547169811 | AB23: 0.7407407407 | AC23: 0.7228915663 | AD23: 0.7100591716 | AE23: 0.6936416185 | AF23: 0.6779661017 | AG23: 0.6666666667 | AH23: 0.652173913 | AI23: 0.6382978723 | AJ23: 0.625 | AK23: 0.6153846154 | AL23: 0.6030150754 | AM23: 0.5911330049 | AN23: 0.5797101449 | AO23: 0.5660377358 | AP23: 0.5555555556 | AQ23: 0.5454545455 | AR23: 0.5333333333 | AS23: 0.5217391304 | AT23: 0.5128205128 | AU23: 0.5020920502 | AV23: 0.4918032787 | AW23: 0.48
C24: 2012 | D24: 0.8770491803 | E24: 0.893442623 | F24: 0.9180327869 | G24: 0.9344262295 | H24: 0.9344262295 | I24: 0.9590163934 | J24: 0.9836065574 | K24: 1 | L24: 1.008196721 | M24: 1.024590164 | N24: 1.040983607 | O24: 1.049180328 | P24: 1.06557377 | Q24: 1.090163934 | R24: 1.114754098 | S24: 1.12295082 | T24: 1.139344262 | U24: 1.163934426 | V24: 1.180327869 | W24: 1.204918033 | X24: 1.221311475 | Y24: 1.245901639 | Z24: 1.270491803 | AA24: 1.303278689 | AB24: 1.327868852 | AC24: 1.360655738 | AD24: 1.385245902 | AE24: 1.418032787 | AF24: 1.450819672 | AG24: 1.475409836 | AH24: 1.508196721 | AI24: 1.540983607 | AJ24: 1.573770492 | AK24: 1.598360656 | AL24: 1.631147541 | AM24: 1.663934426 | AN24: 1.696721311 | AO24: 1.737704918 | AP24: 1.770491803 | AQ24: 1.803278689 | AR24: 1.844262295 | AS24: 1.885245902 | AT24: 1.918032787 | AU24: 1.959016393 | AV24: 2 | AW24: 2.049180328
D25: 1.140186916 | E25: 1.119266055 | F25: 1.089285714 | G25: 1.070175439 | H25: 1.070175439 | I25: 1.042735043 | J25: 1.016666667 | K25: 1 | L25: 0.9918699187 | M25: 0.976 | N25: 0.9606299213 | O25: 0.953125 | P25: 0.9384615385 | Q25: 0.9172932331 | R25: 0.8970588235 | S25: 0.8905109489 | T25: 0.8776978417 | U25: 0.8591549296 | V25: 0.8472222222 | W25: 0.8299319728 | X25: 0.8187919463 | Y25: 0.8026315789 | Z25: 0.7870967742 | AA25: 0.7672955975 | AB25: 0.7530864198 | AC25: 0.734939759 | AD25: 0.7218934911 | AE25: 0.7052023121 | AF25: 0.6892655367 | AG25: 0.6777777778 | AH25: 0.6630434783 | AI25: 0.6489361702 | AJ25: 0.6354166667 | AK25: 0.6256410256 | AL25: 0.6130653266 | AM25: 0.6009852217 | AN25: 0.5893719807 | AO25: 0.5754716981 | AP25: 0.5648148148 | AQ25: 0.5545454545 | AR25: 0.5422222222 | AS25: 0.5304347826 | AT25: 0.5213675214 | AU25: 0.510460251 | AV25: 0.5 | AW25: 0.488
C26: 2013 | D26: 0.8699186992 | E26: 0.8861788618 | F26: 0.9105691057 | G26: 0.9268292683 | H26: 0.9268292683 | I26: 0.9512195122 | J26: 0.9756097561 | K26: 0.9918699187 | L26: 1 | M26: 1.016260163 | N26: 1.032520325 | O26: 1.040650407 | P26: 1.056910569 | Q26: 1.081300813 | R26: 1.105691057 | S26: 1.113821138 | T26: 1.130081301 | U26: 1.154471545 | V26: 1.170731707 | W26: 1.195121951 | X26: 1.211382114 | Y26: 1.235772358 | Z26: 1.260162602 | AA26: 1.292682927 | AB26: 1.317073171 | AC26: 1.349593496 | AD26: 1.37398374 | AE26: 1.406504065 | AF26: 1.43902439 | AG26: 1.463414634 | AH26: 1.495934959 | AI26: 1.528455285 | AJ26: 1.56097561 | AK26: 1.585365854 | AL26: 1.617886179 | AM26: 1.650406504 | AN26: 1.682926829 | AO26: 1.723577236 | AP26: 1.756097561 | AQ26: 1.788617886 | AR26: 1.829268293 | AS26: 1.869918699 | AT26: 1.902439024 | AU26: 1.943089431 | AV26: 1.983739837 | AW26: 2.032520325
D27: 1.14953271 | E27: 1.128440367 | F27: 1.098214286 | G27: 1.078947368 | H27: 1.078947368 | I27: 1.051282051 | J27: 1.025 | K27: 1.008196721 | L27: 1 | M27: 0.984 | N27: 0.968503937 | O27: 0.9609375 | P27: 0.9461538462 | Q27: 0.9248120301 | R27: 0.9044117647 | S27: 0.897810219 | T27: 0.8848920863 | U27: 0.8661971831 | V27: 0.8541666667 | W27: 0.8367346939 | X27: 0.8255033557 | Y27: 0.8092105263 | Z27: 0.7935483871 | AA27: 0.7735849057 | AB27: 0.7592592593 | AC27: 0.7409638554 | AD27: 0.7278106509 | AE27: 0.710982659 | AF27: 0.6949152542 | AG27: 0.6833333333 | AH27: 0.6684782609 | AI27: 0.6542553191 | AJ27: 0.640625 | AK27: 0.6307692308 | AL27: 0.6180904523 | AM27: 0.60591133 | AN27: 0.5942028986 | AO27: 0.5801886792 | AP27: 0.5694444444 | AQ27: 0.5590909091 | AR27: 0.5466666667 | AS27: 0.5347826087 | AT27: 0.5256410256 | AU27: 0.5146443515 | AV27: 0.5040983607 | AW27: 0.492
C28: 2014 | D28: 0.856 | E28: 0.872 | F28: 0.896 | G28: 0.912 | H28: 0.912 | I28: 0.936 | J28: 0.96 | K28: 0.976 | L28: 0.984 | M28: 1 | N28: 1.016 | O28: 1.024 | P28: 1.04 | Q28: 1.064 | R28: 1.088 | S28: 1.096 | T28: 1.112 | U28: 1.136 | V28: 1.152 | W28: 1.176 | X28: 1.192 | Y28: 1.216 | Z28: 1.24 | AA28: 1.272 | AB28: 1.296 | AC28: 1.328 | AD28: 1.352 | AE28: 1.384 | AF28: 1.416 | AG28: 1.44 | AH28: 1.472 | AI28: 1.504 | AJ28: 1.536 | AK28: 1.56 | AL28: 1.592 | AM28: 1.624 | AN28: 1.656 | AO28: 1.696 | AP28: 1.728 | AQ28: 1.76 | AR28: 1.8 | AS28: 1.84 | AT28: 1.872 | AU28: 1.912 | AV28: 1.952 | AW28: 2
D29: 1.168224299 | E29: 1.146788991 | F29: 1.116071429 | G29: 1.096491228 | H29: 1.096491228 | I29: 1.068376068 | J29: 1.041666667 | K29: 1.024590164 | L29: 1.016260163 | M29: 1 | N29: 0.9842519685 | O29: 0.9765625 | P29: 0.9615384615 | Q29: 0.9398496241 | R29: 0.9191176471 | S29: 0.9124087591 | T29: 0.8992805755 | U29: 0.8802816901 | V29: 0.8680555556 | W29: 0.8503401361 | X29: 0.8389261745 | Y29: 0.8223684211 | Z29: 0.8064516129 | AA29: 0.786163522 | AB29: 0.7716049383 | AC29: 0.7530120482 | AD29: 0.7396449704 | AE29: 0.7225433526 | AF29: 0.7062146893 | AG29: 0.6944444444 | AH29: 0.6793478261 | AI29: 0.664893617 | AJ29: 0.6510416667 | AK29: 0.641025641 | AL29: 0.6281407035 | AM29: 0.6157635468 | AN29: 0.6038647343 | AO29: 0.5896226415 | AP29: 0.5787037037 | AQ29: 0.5681818182 | AR29: 0.5555555556 | AS29: 0.5434782609 | AT29: 0.5341880342 | AU29: 0.5230125523 | AV29: 0.512295082 | AW29: 0.5
C30: 2015 | D30: 0.842519685 | E30: 0.8582677165 | F30: 0.8818897638 | G30: 0.8976377953 | H30: 0.8976377953 | I30: 0.9212598425 | J30: 0.9448818898 | K30: 0.9606299213 | L30: 0.968503937 | M30: 0.9842519685 | N30: 1 | O30: 1.007874016 | P30: 1.023622047 | Q30: 1.047244094 | R30: 1.070866142 | S30: 1.078740157 | T30: 1.094488189 | U30: 1.118110236 | V30: 1.133858268 | W30: 1.157480315 | X30: 1.173228346 | Y30: 1.196850394 | Z30: 1.220472441 | AA30: 1.251968504 | AB30: 1.275590551 | AC30: 1.307086614 | AD30: 1.330708661 | AE30: 1.362204724 | AF30: 1.393700787 | AG30: 1.417322835 | AH30: 1.448818898 | AI30: 1.480314961 | AJ30: 1.511811024 | AK30: 1.535433071 | AL30: 1.566929134 | AM30: 1.598425197 | AN30: 1.62992126 | AO30: 1.669291339 | AP30: 1.700787402 | AQ30: 1.732283465 | AR30: 1.771653543 | AS30: 1.811023622 | AT30: 1.842519685 | AU30: 1.881889764 | AV30: 1.921259843 | AW30: 1.968503937
D31: 1.186915888 | E31: 1.165137615 | F31: 1.133928571 | G31: 1.114035088 | H31: 1.114035088 | I31: 1.085470085 | J31: 1.058333333 | K31: 1.040983607 | L31: 1.032520325 | M31: 1.016 | N31: 1 | O31: 0.9921875 | P31: 0.9769230769 | Q31: 0.954887218 | R31: 0.9338235294 | S31: 0.9270072993 | T31: 0.9136690647 | U31: 0.8943661972 | V31: 0.8819444444 | W31: 0.8639455782 | X31: 0.8523489933 | Y31: 0.8355263158 | Z31: 0.8193548387 | AA31: 0.7987421384 | AB31: 0.7839506173 | AC31: 0.765060241 | AD31: 0.7514792899 | AE31: 0.7341040462 | AF31: 0.7175141243 | AG31: 0.7055555556 | AH31: 0.6902173913 | AI31: 0.6755319149 | AJ31: 0.6614583333 | AK31: 0.6512820513 | AL31: 0.6381909548 | AM31: 0.6256157635 | AN31: 0.61352657 | AO31: 0.5990566038 | AP31: 0.587962963 | AQ31: 0.5772727273 | AR31: 0.5644444444 | AS31: 0.552173913 | AT31: 0.5427350427 | AU31: 0.5313807531 | AV31: 0.5204918033 | AW31: 0.508
C32: 2016 | D32: 0.8359375 | E32: 0.8515625 | F32: 0.875 | G32: 0.890625 | H32: 0.890625 | I32: 0.9140625 | J32: 0.9375 | K32: 0.953125 | L32: 0.9609375 | M32: 0.9765625 | N32: 0.9921875 | O32: 1 | P32: 1.015625 | Q32: 1.0390625 | R32: 1.0625 | S32: 1.0703125 | T32: 1.0859375 | U32: 1.109375 | V32: 1.125 | W32: 1.1484375 | X32: 1.1640625 | Y32: 1.1875 | Z32: 1.2109375 | AA32: 1.2421875 | AB32: 1.265625 | AC32: 1.296875 | AD32: 1.3203125 | AE32: 1.3515625 | AF32: 1.3828125 | AG32: 1.40625 | AH32: 1.4375 | AI32: 1.46875 | AJ32: 1.5 | AK32: 1.5234375 | AL32: 1.5546875 | AM32: 1.5859375 | AN32: 1.6171875 | AO32: 1.65625 | AP32: 1.6875 | AQ32: 1.71875 | AR32: 1.7578125 | AS32: 1.796875 | AT32: 1.828125 | AU32: 1.8671875 | AV32: 1.90625 | AW32: 1.953125
D33: 1.196261682 | E33: 1.174311927 | F33: 1.142857143 | G33: 1.122807018 | H33: 1.122807018 | I33: 1.094017094 | J33: 1.066666667 | K33: 1.049180328 | L33: 1.040650407 | M33: 1.024 | N33: 1.007874016 | O33: 1 | P33: 0.9846153846 | Q33: 0.962406015 | R33: 0.9411764706 | S33: 0.9343065693 | T33: 0.9208633094 | U33: 0.9014084507 | V33: 0.8888888889 | W33: 0.8707482993 | X33: 0.8590604027 | Y33: 0.8421052632 | Z33: 0.8258064516 | AA33: 0.8050314465 | AB33: 0.7901234568 | AC33: 0.7710843373 | AD33: 0.7573964497 | AE33: 0.7398843931 | AF33: 0.7231638418 | AG33: 0.7111111111 | AH33: 0.6956521739 | AI33: 0.6808510638 | AJ33: 0.6666666667 | AK33: 0.6564102564 | AL33: 0.6432160804 | AM33: 0.6305418719 | AN33: 0.6183574879 | AO33: 0.6037735849 | AP33: 0.5925925926 | AQ33: 0.5818181818 | AR33: 0.5688888889 | AS33: 0.5565217391 | AT33: 0.547008547 | AU33: 0.5355648536 | AV33: 0.5245901639 | AW33: 0.512
C34: 2017 | D34: 0.8230769231 | E34: 0.8384615385 | F34: 0.8615384615 | G34: 0.8769230769 | H34: 0.8769230769 | I34: 0.9 | J34: 0.9230769231 | K34: 0.9384615385 | L34: 0.9461538462 | M34: 0.9615384615 | N34: 0.9769230769 | O34: 0.9846153846 | P34: 1 | Q34: 1.023076923 | R34: 1.046153846 | S34: 1.053846154 | T34: 1.069230769 | U34: 1.092307692 | V34: 1.107692308 | W34: 1.130769231 | X34: 1.146153846 | Y34: 1.169230769 | Z34: 1.192307692 | AA34: 1.223076923 | AB34: 1.246153846 | AC34: 1.276923077 | AD34: 1.3 | AE34: 1.330769231 | AF34: 1.361538462 | AG34: 1.384615385 | AH34: 1.415384615 | AI34: 1.446153846 | AJ34: 1.476923077 | AK34: 1.5 | AL34: 1.530769231 | AM34: 1.561538462 | AN34: 1.592307692 | AO34: 1.630769231 | AP34: 1.661538462 | AQ34: 1.692307692 | AR34: 1.730769231 | AS34: 1.769230769 | AT34: 1.8 | AU34: 1.838461538 | AV34: 1.876923077 | AW34: 1.923076923
D35: 1.214953271 | E35: 1.19266055 | F35: 1.160714286 | G35: 1.140350877 | H35: 1.140350877 | I35: 1.111111111 | J35: 1.083333333 | K35: 1.06557377 | L35: 1.056910569 | M35: 1.04 | N35: 1.023622047 | O35: 1.015625 | P35: 1 | Q35: 0.977443609 | R35: 0.9558823529 | S35: 0.9489051095 | T35: 0.9352517986 | U35: 0.9154929577 | V35: 0.9027777778 | W35: 0.8843537415 | X35: 0.8724832215 | Y35: 0.8552631579 | Z35: 0.8387096774 | AA35: 0.8176100629 | AB35: 0.8024691358 | AC35: 0.7831325301 | AD35: 0.7692307692 | AE35: 0.7514450867 | AF35: 0.7344632768 | AG35: 0.7222222222 | AH35: 0.7065217391 | AI35: 0.6914893617 | AJ35: 0.6770833333 | AK35: 0.6666666667 | AL35: 0.6532663317 | AM35: 0.6403940887 | AN35: 0.6280193237 | AO35: 0.6132075472 | AP35: 0.6018518519 | AQ35: 0.5909090909 | AR35: 0.5777777778 | AS35: 0.5652173913 | AT35: 0.5555555556 | AU35: 0.5439330544 | AV35: 0.5327868852 | AW35: 0.52
C36: 2018 | D36: 0.8045112782 | E36: 0.8195488722 | F36: 0.8421052632 | G36: 0.8571428571 | H36: 0.8571428571 | I36: 0.8796992481 | J36: 0.9022556391 | K36: 0.9172932331 | L36: 0.9248120301 | M36: 0.9398496241 | N36: 0.954887218 | O36: 0.962406015 | P36: 0.977443609 | Q36: 1 | R36: 1.022556391 | S36: 1.030075188 | T36: 1.045112782 | U36: 1.067669173 | V36: 1.082706767 | W36: 1.105263158 | X36: 1.120300752 | Y36: 1.142857143 | Z36: 1.165413534 | AA36: 1.195488722 | AB36: 1.218045113 | AC36: 1.248120301 | AD36: 1.270676692 | AE36: 1.30075188 | AF36: 1.330827068 | AG36: 1.353383459 | AH36: 1.383458647 | AI36: 1.413533835 | AJ36: 1.443609023 | AK36: 1.466165414 | AL36: 1.496240602 | AM36: 1.526315789 | AN36: 1.556390977 | AO36: 1.593984962 | AP36: 1.62406015 | AQ36: 1.654135338 | AR36: 1.691729323 | AS36: 1.729323308 | AT36: 1.759398496 | AU36: 1.796992481 | AV36: 1.834586466 | AW36: 1.879699248
D37: 1.242990654 | E37: 1.220183486 | F37: 1.1875 | G37: 1.166666667 | H37: 1.166666667 | I37: 1.136752137 | J37: 1.108333333 | K37: 1.090163934 | L37: 1.081300813 | M37: 1.064 | N37: 1.047244094 | O37: 1.0390625 | P37: 1.023076923 | Q37: 1 | R37: 0.9779411765 | S37: 0.9708029197 | T37: 0.9568345324 | U37: 0.9366197183 | V37: 0.9236111111 | W37: 0.9047619048 | X37: 0.8926174497 | Y37: 0.875 | Z37: 0.8580645161 | AA37: 0.8364779874 | AB37: 0.8209876543 | AC37: 0.8012048193 | AD37: 0.7869822485 | AE37: 0.7687861272 | AF37: 0.7514124294 | AG37: 0.7388888889 | AH37: 0.722826087 | AI37: 0.7074468085 | AJ37: 0.6927083333 | AK37: 0.6820512821 | AL37: 0.6683417085 | AM37: 0.6551724138 | AN37: 0.6425120773 | AO37: 0.6273584906 | AP37: 0.6157407407 | AQ37: 0.6045454545 | AR37: 0.5911111111 | AS37: 0.5782608696 | AT37: 0.5683760684 | AU37: 0.5564853556 | AV37: 0.5450819672 | AW37: 0.532
C38: 2019 | D38: 0.7867647059 | E38: 0.8014705882 | F38: 0.8235294118 | G38: 0.8382352941 | H38: 0.8382352941 | I38: 0.8602941176 | J38: 0.8823529412 | K38: 0.8970588235 | L38: 0.9044117647 | M38: 0.9191176471 | N38: 0.9338235294 | O38: 0.9411764706 | P38: 0.9558823529 | Q38: 0.9779411765 | R38: 1 | S38: 1.007352941 | T38: 1.022058824 | U38: 1.044117647 | V38: 1.058823529 | W38: 1.080882353 | X38: 1.095588235 | Y38: 1.117647059 | Z38: 1.139705882 | AA38: 1.169117647 | AB38: 1.191176471 | AC38: 1.220588235 | AD38: 1.242647059 | AE38: 1.272058824 | AF38: 1.301470588 | AG38: 1.323529412 | AH38: 1.352941176 | AI38: 1.382352941 | AJ38: 1.411764706 | AK38: 1.433823529 | AL38: 1.463235294 | AM38: 1.492647059 | AN38: 1.522058824 | AO38: 1.558823529 | AP38: 1.588235294 | AQ38: 1.617647059 | AR38: 1.654411765 | AS38: 1.691176471 | AT38: 1.720588235 | AU38: 1.757352941 | AV38: 1.794117647 | AW38: 1.838235294
D39: 1.271028037 | E39: 1.247706422 | F39: 1.214285714 | G39: 1.192982456 | H39: 1.192982456 | I39: 1.162393162 | J39: 1.133333333 | K39: 1.114754098 | L39: 1.105691057 | M39: 1.088 | N39: 1.070866142 | O39: 1.0625 | P39: 1.046153846 | Q39: 1.022556391 | R39: 1 | S39: 0.9927007299 | T39: 0.9784172662 | U39: 0.9577464789 | V39: 0.9444444444 | W39: 0.925170068 | X39: 0.9127516779 | Y39: 0.8947368421 | Z39: 0.8774193548 | AA39: 0.8553459119 | AB39: 0.8395061728 | AC39: 0.8192771084 | AD39: 0.8047337278 | AE39: 0.7861271676 | AF39: 0.7683615819 | AG39: 0.7555555556 | AH39: 0.7391304348 | AI39: 0.7234042553 | AJ39: 0.7083333333 | AK39: 0.6974358974 | AL39: 0.6834170854 | AM39: 0.6699507389 | AN39: 0.6570048309 | AO39: 0.641509434 | AP39: 0.6296296296 | AQ39: 0.6181818182 | AR39: 0.6044444444 | AS39: 0.5913043478 | AT39: 0.5811965812 | AU39: 0.5690376569 | AV39: 0.5573770492 | AW39: 0.544
C40: 2020 | D40: 0.7810218978 | E40: 0.795620438 | F40: 0.8175182482 | G40: 0.8321167883 | H40: 0.8321167883 | I40: 0.8540145985 | J40: 0.8759124088 | K40: 0.8905109489 | L40: 0.897810219 | M40: 0.9124087591 | N40: 0.9270072993 | O40: 0.9343065693 | P40: 0.9489051095 | Q40: 0.9708029197 | R40: 0.9927007299 | S40: 1 | T40: 1.01459854 | U40: 1.03649635 | V40: 1.051094891 | W40: 1.072992701 | X40: 1.087591241 | Y40: 1.109489051 | Z40: 1.131386861 | AA40: 1.160583942 | AB40: 1.182481752 | AC40: 1.211678832 | AD40: 1.233576642 | AE40: 1.262773723 | AF40: 1.291970803 | AG40: 1.313868613 | AH40: 1.343065693 | AI40: 1.372262774 | AJ40: 1.401459854 | AK40: 1.423357664 | AL40: 1.452554745 | AM40: 1.481751825 | AN40: 1.510948905 | AO40: 1.547445255 | AP40: 1.576642336 | AQ40: 1.605839416 | AR40: 1.642335766 | AS40: 1.678832117 | AT40: 1.708029197 | AU40: 1.744525547 | AV40: 1.781021898 | AW40: 1.824817518
D41: 1.280373832 | E41: 1.256880734 | F41: 1.223214286 | G41: 1.201754386 | H41: 1.201754386 | I41: 1.170940171 | J41: 1.141666667 | K41: 1.12295082 | L41: 1.113821138 | M41: 1.096 | N41: 1.078740157 | O41: 1.0703125 | P41: 1.053846154 | Q41: 1.030075188 | R41: 1.007352941 | S41: 1 | T41: 0.9856115108 | U41: 0.9647887324 | V41: 0.9513888889 | W41: 0.9319727891 | X41: 0.9194630872 | Y41: 0.9013157895 | Z41: 0.8838709677 | AA41: 0.8616352201 | AB41: 0.8456790123 | AC41: 0.8253012048 | AD41: 0.8106508876 | AE41: 0.7919075145 | AF41: 0.7740112994 | AG41: 0.7611111111 | AH41: 0.7445652174 | AI41: 0.7287234043 | AJ41: 0.7135416667 | AK41: 0.7025641026 | AL41: 0.6884422111 | AM41: 0.6748768473 | AN41: 0.6618357488 | AO41: 0.6462264151 | AP41: 0.6342592593 | AQ41: 0.6227272727 | AR41: 0.6088888889 | AS41: 0.5956521739 | AT41: 0.5854700855 | AU41: 0.5732217573 | AV41: 0.5614754098 | AW41: 0.548
C42: 2021 | D42: 0.7697841727 | E42: 0.7841726619 | F42: 0.8057553957 | G42: 0.8201438849 | H42: 0.8201438849 | I42: 0.8417266187 | J42: 0.8633093525 | K42: 0.8776978417 | L42: 0.8848920863 | M42: 0.8992805755 | N42: 0.9136690647 | O42: 0.9208633094 | P42: 0.9352517986 | Q42: 0.9568345324 | R42: 0.9784172662 | S42: 0.9856115108 | T42: 1 | U42: 1.021582734 | V42: 1.035971223 | W42: 1.057553957 | X42: 1.071942446 | Y42: 1.09352518 | Z42: 1.115107914 | AA42: 1.143884892 | AB42: 1.165467626 | AC42: 1.194244604 | AD42: 1.215827338 | AE42: 1.244604317 | AF42: 1.273381295 | AG42: 1.294964029 | AH42: 1.323741007 | AI42: 1.352517986 | AJ42: 1.381294964 | AK42: 1.402877698 | AL42: 1.431654676 | AM42: 1.460431655 | AN42: 1.489208633 | AO42: 1.525179856 | AP42: 1.553956835 | AQ42: 1.582733813 | AR42: 1.618705036 | AS42: 1.654676259 | AT42: 1.683453237 | AU42: 1.71942446 | AV42: 1.755395683 | AW42: 1.798561151
D43: 1.299065421 | E43: 1.275229358 | F43: 1.241071429 | G43: 1.219298246 | H43: 1.219298246 | I43: 1.188034188 | J43: 1.158333333 | K43: 1.139344262 | L43: 1.130081301 | M43: 1.112 | N43: 1.094488189 | O43: 1.0859375 | P43: 1.069230769 | Q43: 1.045112782 | R43: 1.022058824 | S43: 1.01459854 | T43: 1 | U43: 0.9788732394 | V43: 0.9652777778 | W43: 0.9455782313 | X43: 0.932885906 | Y43: 0.9144736842 | Z43: 0.8967741935 | AA43: 0.8742138365 | AB43: 0.8580246914 | AC43: 0.8373493976 | AD43: 0.8224852071 | AE43: 0.8034682081 | AF43: 0.7853107345 | AG43: 0.7722222222 | AH43: 0.7554347826 | AI43: 0.7393617021 | AJ43: 0.7239583333 | AK43: 0.7128205128 | AL43: 0.6984924623 | AM43: 0.684729064 | AN43: 0.6714975845 | AO43: 0.6556603774 | AP43: 0.6435185185 | AQ43: 0.6318181818 | AR43: 0.6177777778 | AS43: 0.6043478261 | AT43: 0.594017094 | AU43: 0.5815899582 | AV43: 0.5696721311 | AW43: 0.556
C44: 2022 | D44: 0.7535211268 | E44: 0.7676056338 | F44: 0.7887323944 | G44: 0.8028169014 | H44: 0.8028169014 | I44: 0.823943662 | J44: 0.8450704225 | K44: 0.8591549296 | L44: 0.8661971831 | M44: 0.8802816901 | N44: 0.8943661972 | O44: 0.9014084507 | P44: 0.9154929577 | Q44: 0.9366197183 | R44: 0.9577464789 | S44: 0.9647887324 | T44: 0.9788732394 | U44: 1 | V44: 1.014084507 | W44: 1.035211268 | X44: 1.049295775 | Y44: 1.070422535 | Z44: 1.091549296 | AA44: 1.11971831 | AB44: 1.14084507 | AC44: 1.169014085 | AD44: 1.190140845 | AE44: 1.218309859 | AF44: 1.246478873 | AG44: 1.267605634 | AH44: 1.295774648 | AI44: 1.323943662 | AJ44: 1.352112676 | AK44: 1.373239437 | AL44: 1.401408451 | AM44: 1.429577465 | AN44: 1.457746479 | AO44: 1.492957746 | AP44: 1.521126761 | AQ44: 1.549295775 | AR44: 1.584507042 | AS44: 1.61971831 | AT44: 1.647887324 | AU44: 1.683098592 | AV44: 1.718309859 | AW44: 1.76056338
D45: 1.327102804 | E45: 1.302752294 | F45: 1.267857143 | G45: 1.245614035 | H45: 1.245614035 | I45: 1.213675214 | J45: 1.183333333 | K45: 1.163934426 | L45: 1.154471545 | M45: 1.136 | N45: 1.118110236 | O45: 1.109375 | P45: 1.092307692 | Q45: 1.067669173 | R45: 1.044117647 | S45: 1.03649635 | T45: 1.021582734 | U45: 1 | V45: 0.9861111111 | W45: 0.9659863946 | X45: 0.9530201342 | Y45: 0.9342105263 | Z45: 0.9161290323 | AA45: 0.893081761 | AB45: 0.8765432099 | AC45: 0.8554216867 | AD45: 0.8402366864 | AE45: 0.8208092486 | AF45: 0.802259887 | AG45: 0.7888888889 | AH45: 0.7717391304 | AI45: 0.7553191489 | AJ45: 0.7395833333 | AK45: 0.7282051282 | AL45: 0.7135678392 | AM45: 0.6995073892 | AN45: 0.6859903382 | AO45: 0.6698113208 | AP45: 0.6574074074 | AQ45: 0.6454545455 | AR45: 0.6311111111 | AS45: 0.6173913043 | AT45: 0.6068376068 | AU45: 0.5941422594 | AV45: 0.5819672131 | AW45: 0.568
C46: 2023 | D46: 0.7430555556 | E46: 0.7569444444 | F46: 0.7777777778 | G46: 0.7916666667 | H46: 0.7916666667 | I46: 0.8125 | J46: 0.8333333333 | K46: 0.8472222222 | L46: 0.8541666667 | M46: 0.8680555556 | N46: 0.8819444444 | O46: 0.8888888889 | P46: 0.9027777778 | Q46: 0.9236111111 | R46: 0.9444444444 | S46: 0.9513888889 | T46: 0.9652777778 | U46: 0.9861111111 | V46: 1 | W46: 1.020833333 | X46: 1.034722222 | Y46: 1.055555556 | Z46: 1.076388889 | AA46: 1.104166667 | AB46: 1.125 | AC46: 1.152777778 | AD46: 1.173611111 | AE46: 1.201388889 | AF46: 1.229166667 | AG46: 1.25 | AH46: 1.277777778 | AI46: 1.305555556 | AJ46: 1.333333333 | AK46: 1.354166667 | AL46: 1.381944444 | AM46: 1.409722222 | AN46: 1.4375 | AO46: 1.472222222 | AP46: 1.5 | AQ46: 1.527777778 | AR46: 1.5625 | AS46: 1.597222222 | AT46: 1.625 | AU46: 1.659722222 | AV46: 1.694444444 | AW46: 1.736111111
D47: 1.345794393 | E47: 1.321100917 | F47: 1.285714286 | G47: 1.263157895 | H47: 1.263157895 | I47: 1.230769231 | J47: 1.2 | K47: 1.180327869 | L47: 1.170731707 | M47: 1.152 | N47: 1.133858268 | O47: 1.125 | P47: 1.107692308 | Q47: 1.082706767 | R47: 1.058823529 | S47: 1.051094891 | T47: 1.035971223 | U47: 1.014084507 | V47: 1 | W47: 0.9795918367 | X47: 0.966442953 | Y47: 0.9473684211 | Z47: 0.9290322581 | AA47: 0.9056603774 | AB47: 0.8888888889 | AC47: 0.8674698795 | AD47: 0.8520710059 | AE47: 0.8323699422 | AF47: 0.813559322 | AG47: 0.8 | AH47: 0.7826086957 | AI47: 0.7659574468 | AJ47: 0.75 | AK47: 0.7384615385 | AL47: 0.7236180905 | AM47: 0.7093596059 | AN47: 0.6956521739 | AO47: 0.679245283 | AP47: 0.6666666667 | AQ47: 0.6545454545 | AR47: 0.64 | AS47: 0.6260869565 | AT47: 0.6153846154 | AU47: 0.6025104603 | AV47: 0.5901639344 | AW47: 0.576
C48: 2024 | D48: 0.7278911565 | E48: 0.7414965986 | F48: 0.7619047619 | G48: 0.7755102041 | H48: 0.7755102041 | I48: 0.7959183673 | J48: 0.8163265306 | K48: 0.8299319728 | L48: 0.8367346939 | M48: 0.8503401361 | N48: 0.8639455782 | O48: 0.8707482993 | P48: 0.8843537415 | Q48: 0.9047619048 | R48: 0.925170068 | S48: 0.9319727891 | T48: 0.9455782313 | U48: 0.9659863946 | V48: 0.9795918367 | W48: 1 | X48: 1.013605442 | Y48: 1.034013605 | Z48: 1.054421769 | AA48: 1.081632653 | AB48: 1.102040816 | AC48: 1.129251701 | AD48: 1.149659864 | AE48: 1.176870748 | AF48: 1.204081633 | AG48: 1.224489796 | AH48: 1.25170068 | AI48: 1.278911565 | AJ48: 1.306122449 | AK48: 1.326530612 | AL48: 1.353741497 | AM48: 1.380952381 | AN48: 1.408163265 | AO48: 1.442176871 | AP48: 1.469387755 | AQ48: 1.496598639 | AR48: 1.530612245 | AS48: 1.56462585 | AT48: 1.591836735 | AU48: 1.62585034 | AV48: 1.659863946 | AW48: 1.700680272
D49: 1.373831776 | E49: 1.348623853 | F49: 1.3125 | G49: 1.289473684 | H49: 1.289473684 | I49: 1.256410256 | J49: 1.225 | K49: 1.204918033 | L49: 1.195121951 | M49: 1.176 | N49: 1.157480315 | O49: 1.1484375 | P49: 1.130769231 | Q49: 1.105263158 | R49: 1.080882353 | S49: 1.072992701 | T49: 1.057553957 | U49: 1.035211268 | V49: 1.020833333 | W49: 1 | X49: 0.9865771812 | Y49: 0.9671052632 | Z49: 0.9483870968 | AA49: 0.9245283019 | AB49: 0.9074074074 | AC49: 0.8855421687 | AD49: 0.8698224852 | AE49: 0.8497109827 | AF49: 0.8305084746 | AG49: 0.8166666667 | AH49: 0.7989130435 | AI49: 0.7819148936 | AJ49: 0.765625 | AK49: 0.7538461538 | AL49: 0.7386934673 | AM49: 0.724137931 | AN49: 0.7101449275 | AO49: 0.6933962264 | AP49: 0.6805555556 | AQ49: 0.6681818182 | AR49: 0.6533333333 | AS49: 0.6391304348 | AT49: 0.6282051282 | AU49: 0.6150627615 | AV49: 0.6024590164 | AW49: 0.588
C50: 2025 | D50: 0.7181208054 | E50: 0.7315436242 | F50: 0.7516778523 | G50: 0.7651006711 | H50: 0.7651006711 | I50: 0.7852348993 | J50: 0.8053691275 | K50: 0.8187919463 | L50: 0.8255033557 | M50: 0.8389261745 | N50: 0.8523489933 | O50: 0.8590604027 | P50: 0.8724832215 | Q50: 0.8926174497 | R50: 0.9127516779 | S50: 0.9194630872 | T50: 0.932885906 | U50: 0.9530201342 | V50: 0.966442953 | W50: 0.9865771812 | X50: 1 | Y50: 1.020134228 | Z50: 1.040268456 | AA50: 1.067114094 | AB50: 1.087248322 | AC50: 1.11409396 | AD50: 1.134228188 | AE50: 1.161073826 | AF50: 1.187919463 | AG50: 1.208053691 | AH50: 1.234899329 | AI50: 1.261744966 | AJ50: 1.288590604 | AK50: 1.308724832 | AL50: 1.33557047 | AM50: 1.362416107 | AN50: 1.389261745 | AO50: 1.422818792 | AP50: 1.44966443 | AQ50: 1.476510067 | AR50: 1.510067114 | AS50: 1.543624161 | AT50: 1.570469799 | AU50: 1.604026846 | AV50: 1.637583893 | AW50: 1.677852349
D51: 1.392523364 | E51: 1.366972477 | F51: 1.330357143 | G51: 1.307017544 | H51: 1.307017544 | I51: 1.273504274 | J51: 1.241666667 | K51: 1.221311475 | L51: 1.211382114 | M51: 1.192 | N51: 1.173228346 | O51: 1.1640625 | P51: 1.146153846 | Q51: 1.120300752 | R51: 1.095588235 | S51: 1.087591241 | T51: 1.071942446 | U51: 1.049295775 | V51: 1.034722222 | W51: 1.013605442 | X51: 1 | Y51: 0.9802631579 | Z51: 0.9612903226 | AA51: 0.9371069182 | AB51: 0.9197530864 | AC51: 0.8975903614 | AD51: 0.8816568047 | AE51: 0.8612716763 | AF51: 0.8418079096 | AG51: 0.8277777778 | AH51: 0.8097826087 | AI51: 0.7925531915 | AJ51: 0.7760416667 | AK51: 0.7641025641 | AL51: 0.7487437186 | AM51: 0.7339901478 | AN51: 0.7198067633 | AO51: 0.7028301887 | AP51: 0.6898148148 | AQ51: 0.6772727273 | AR51: 0.6622222222 | AS51: 0.647826087 | AT51: 0.6367521368 | AU51: 0.6234309623 | AV51: 0.6106557377 | AW51: 0.596
C54: Source : Macro Indicators from Canada's Energy Future 2020: Energy Supply and Demand Projections to 2050
C55: https://apps.cer-rec.gc.ca/ftrppndc/dflt.aspx?GoCTemplateCulture=en-CA
C56: (CPI)
E58: 2005 | F58: 2006 | G58: 2007 | H58: 2008 | I58: 2009 | J58: 2010 | K58: 2011 | L58: 2012 | M58: 2013 | N58: 2014 | O58: 2015 | P58: 2016 | Q58: 2017 | R58: 2018 | S58: 2019 | T58: 2020 | U58: 2021 | V58: 2022 | W58: 2023 | X58: 2024 | Y58: 2025
C59: Inf. line | D59: =HLOOKUP($E$4,E58:Y60,2) -> 26 | E59: 2 | F59: 4 | G59: 6 | H59: 8 | I59: 10 | J59: 12 | K59: 14 | L59: 16 | M59: 18 | N59: 20 | O59: 22 | P59: 24 | Q59: 26 | R59: 28 | S59: 30 | T59: 32 | U59: 34 | V59: 36 | W59: 38 | X59: 40 | Y59: 42
C60: Def. line | D60: =HLOOKUP($E$4,E58:Y60,3) -> 27 | E60: 3 | F60: 5 | G60: 7 | H60: 9 | I60: 11 | J60: 13 | K60: 15 | L60: 17 | M60: 19 | N60: 21 | O60: 23 | P60: 25 | Q60: 27 | R60: 29 | S60: 31 | T60: 33 | U60: 35 | V60: 37 | W60: 39 | X60: 41 | Y60: 43

Sheet Multipliers
A1: *** WARNING *** This Worksheet contains Data and Formulas that are an integral part of the EI2 model. Although the data and formulas are available for review they must not be changed. Any changes to the data or formulas will impact the analysis and may invalidate the model results. To view the data and formulas simply scroll over to the adjacent columns to the right. | C1: =ProjectData!B9 -> Alberta
C5: Multipliers
D6: Jobs | G6: Earnings | J6: Output | M6: Value Added
D7: Direct | E7: Indirect | F7: Induced | G7: Direct | H7: Indirect | I7: Induced | J7: Direct | K7: Indirect | L7: Induced | M7: Direct | N7: Indirect | O7: Induced | T7: wage factor | U7: Income tax | X7: CPP + EI | Y7: 0.0683
C8: Agriculture | D8: =IF(C1=D44,M_CA,IF(C1=E44,M_AB,IF(C1=F44,M_BC,IF(C1=G44,M_MB,IF(C1=H44,M_NB,IF(C1=I44,M_NL,IF(C1=J44,M_NT,IF(C1=K44,M_NS,IF(C1=L44,M_NU,IF(C1=M44,M_ON,IF(C1=N44,M_PE,IF(C1=O44,M_QC,IF(C1=P44,M_SK,IF(C1=Q44,M_YK,IF(C1=R44,M_MR,M_0))))))))))))))) -> 2.294052739 | E8: 1.975042596 | F8: 0.5159391389 | G8: 0.07307913579 | H8: 0.118759976 | I8: 0.02617364795 | J8: 1 | K8: 0.5875195149 | L8: 0.1020461954 | M8: 0.4621109809 | N8: 0.259654594 | O8: 0.06312052612 | S8: Canada | T8: 1 | U8: 0.16 | X8: QPP + EI | Y8: 0.0748 | Z8: Quebec
C9: Mining | D9: 0.7139441613 | E9: 1.660984685 | F9: 0.8052381934 | G9: 0.1332470019 | H9: 0.1372198999 | I9: 0.0402383805 | J9: 1 | K9: 0.4175383697 | L9: 0.1586286027 | M9: 0.5416547573 | N9: 0.2336313253 | O9: 0.09813695042 | S9: Alberta | T9: 1.114896253 | U9: 0.27
C10: Construction | D10: 3.486580851 | E10: 2.078952632 | F10: 1.356334624 | G10: 0.2945700775 | H10: 0.1610435224 | I10: 0.06757569946 | J10: 1 | K10: 0.4973758143 | L10: 0.2662843305 | M10: 0.4102387011 | N10: 0.2710939404 | O10: 0.165464768 | S10: British Columbia | T10: 0.9910188913 | U10: 0.22
C11: Manufacturing | D11: 1.46506138 | E11: 2.180175845 | F11: 0.7565580682 | G11: 0.1202914134 | H11: 0.1457935595 | I11: 0.03767567782 | J11: 1 | K11: 0.7993639251 | L11: 0.1488803754 | M11: 0.322595932 | N11: 0.3498931225 | O11: 0.09247421467 | S11: Manitoba | T11: 0.9290802106 | U11: 0.28
C12: Machinery & Equipment & Equipment | D12: 2.786867962 | E12: 1.417568471 | F12: 1.050975812 | G12: 0.2387624875 | H12: 0.1076303309 | I12: 0.05255497112 | J12: 1 | K12: 0.3434945815 | L12: 0.2065119525 | M12: 0.4039123514 | N12: 0.1787542789 | O12: 0.1280932625 | S12: New Brunswick | T12: 0.8052028492 | U12: 0.26
C13: TCPU | D13: 3.065784397 | E13: 1.63704603 | F13: 1.140947251 | G13: 0.2729871582 | H13: 0.1193551551 | I13: 0.05694392216 | J13: 1 | K13: 0.4546857869 | L13: 0.2240224738 | M13: 0.6033480502 | N13: 0.2208968957 | O13: 0.1389337676 | S13: Newfoundland and Labrador | T13: 0.8052028492 | U13: 0.28
C14: Wholesale Trade | D14: 4.69314927 | E14: 1.532826713 | F14: 1.500489479 | G14: 0.3899448264 | H14: 0.1045232692 | I14: 0.07499944155 | J14: 1 | K14: 0.3511778299 | L14: 0.2943248077 | M14: 0.6308450161 | N14: 0.1933147395 | O14: 0.1828485807 | S14: Northwest Territories | T14: 1.071428571 | U14: 0.22
C15: Retail Trade | D15: 11.21718231 | E15: 1.777368148 | F15: 1.617641818 | G15: 0.4121462806 | H15: 0.1163874945 | I15: 0.0808103244 | J15: 1 | K15: 0.4097209757 | L15: 0.3172631115 | M15: 0.6113986622 | N15: 0.2327620499 | O15: 0.1971605303 | S15: Nova Scotia | T15: 0.8052028492 | U15: 0.28
C16: FIRE | D16: 2.738772117 | E16: 2.260651606 | F16: 1.075670833 | G16: 0.2185500136 | H16: 0.1518215045 | I16: 0.05388326011 | J16: 1 | K16: 0.4581902223 | L16: 0.2110141364 | M16: 0.5717901424 | N16: 0.2501085388 | O16: 0.131242656 | S16: Nunavut | T16: 1.19047619 | U16: 0.2
C17: Misc. Services | D17: 6.828340465 | E17: 1.449573247 | F17: 1.244518886 | G17: 0.3452571075 | H17: 0.08472220988 | I17: 0.06234053061 | J17: 1 | K17: 0.2581148783 | L17: 0.244111019 | M17: 0.7152447585 | N17: 0.1424863244 | O17: 0.1516236361 | S17: Ontario | T17: 0.9910188913 | U17: 0.23
C18: Repair & Maintenance | D18: 5.978 | E18: 1.57 | F18: 1.536 | G18: 0.419 | H18: 0.098 | I18: 0.077 | J18: 1 | K18: 0.343 | L18: 0.301 | M18: 0.629 | N18: 0.19 | O18: 0.187 | S18: Prince Edward Island | T18: 0.8052028492 | U18: 0.27
C19: Professional Services | D19: 5.158043239 | E19: 1.817912747 | F19: 1.524390852 | G19: 0.3977882904 | H19: 0.1120434382 | I19: 0.07606880159 | J19: 1 | K19: 0.3538702578 | L19: 0.2989551199 | M19: 0.6152420275 | N19: 0.2013756152 | O19: 0.186003923 | S19: Quebec | T19: 1.083926912 | U19: 0.33
C20: Government | D20: 3.613752507 | E20: 2.847426685 | F20: 1.476524737 | G20: 0.3404248049 | H20: 0.1844955471 | I20: 0.07339717112 | J20: 1 | K20: 0.5087861128 | L20: 0.2895756814 | M20: 0.5161421065 | N20: 0.3178210374 | O20: 0.1798267718 | S20: Saskatchewan | T20: 1.083926912 | U20: 0.28
S21: Yukon | T21: 1.178571429 | U21: 0.22
C24: PCE House
C25: Agriculture | D25: =IF(C1=D44,HFCE_CA,IF(C1=E44,HFCE_AB,IF(C1=F44,HFCE_BC,IF(C1=G44,HFCE_MB,IF(C1=H44,HFCE_NB,IF(C1=I44,HFCE_NL,IF(C1=J44,HFCE_NT,IF(C1=K44,HFCE_NS,IF(C1=L44,HFCE_NU,IF(C1=M44,HFCE_ON,IF(C1=N44,HFCE_PE,IF(C1=O44,HFCE_QC,IF(C1=P44,HFCE_SK,IF(C1=Q44,HFCE_YK,IF(C1=R44,HFCE_MR,HFCE_0))))))))))))))) -> 0.0128267514
C26: Mining | D26: 0.00319551136
C27: Construction | D27: 0.0005466998467
C28: Manufacturing | D28: 0.1905785116
C29: Machinery & Equipment & Equipment | D29: 0.007032290322
C30: TCPU | D30: 0.0465998638
C31: Wholesale Trade | D31: 0.03950743456
C32: Retail Trade | D32: 0.1260110155
C33: FIRE | D33: 0.1423623487
C34: Misc. Services | D34: 0.3955439006
C35: Repair & Maintenance | D35: 0.004532483919
C36: Professional Services | D36: 0.01418244489
C37: Government | D37: 0.0170807435
C41: Households Final Consumption Expenditure
C42: National, Provincial and Territorial
C43: 2017
D44: Canada | E44: Alberta | F44: British Columbia | G44: Manitoba | H44: New Brunswick | I44: Newfoundland and Labrador | J44: Northwest Territories | K44: Nova Scotia | L44: Nunavut | M44: Ontario | N44: Prince Edward Island | O44: Quebec | P44: Saskatchewan | Q44: Yukon
C45: Agriculture | D45: 0.014435171 | E45: 0.0128267514 | F45: 0.01313641116 | G45: 0.01328299111 | H45: 0.01551098449 | I45: 0.01192369149 | J45: 0.01521097334 | K45: 0.01453487123 | L45: 0.01263646045 | M45: 0.01535089254 | N45: 0.01512345904 | O45: 0.01498308955 | P45: 0.0118115328 | Q45: 0.01064339943 | S45: 0
C46: Mining | D46: 0.002455430148 | E46: 0.00319551136 | F46: 0.00113078951 | G46: 0.002202024175 | H46: 0.001059979488 | I46: 0.0004080837514 | J46: 0.0005280505065 | K46: 0.001350900137 | L46: 0.0005520890902 | M46: 0.003795096132 | N46: 0.000614766595 | O46: 0.0006500363006 | P46: 0.004045092916 | Q46: 0.0003082767043 | S46: 0
C47: Construction | D47: 0.0004602745268 | E47: 0.0005466998467 | F47: 0.0004654106184 | G47: 0.000554384163 | H47: 0.0005273812129 | I47: 0.0005732207689 | J47: 0.0005608536326 | K47: 0.001732043376 | L47: 0.0004196789792 | M47: 0.0004261931217 | N47: 0.000442517893 | O47: 0.0004003981502 | P47: 0.0004966839008 | Q47: 0.000476346593 | S47: 0
C48: Manufacturing | D48: 0.1978285892 | E48: 0.1905785116 | F48: 0.1710657467 | G48: 0.1972989394 | H48: 0.2305664866 | I48: 0.2219115399 | J48: 0.2054396424 | K48: 0.1907251818 | L48: 0.1821031677 | M48: 0.1973903402 | N48: 0.2229545165 | O48: 0.2191845727 | P48: 0.1929147964 | Q48: 0.1485784086 | S48: 0
C49: Machinery & Equipment | D49: 0.006724339335 | E49: 0.007032290322 | F49: 0.00627391967 | G49: 0.006703634729 | H49: 0.006989842565 | I49: 0.005903642107 | J49: 0.005676697344 | K49: 0.00664418856 | L49: 0.006567487553 | M49: 0.006808364896 | N49: 0.005675933709 | O49: 0.006953792976 | P49: 0.007282710786 | Q49: 0.005780241874 | S49: 0
C50: TCPU | D50: 0.04895580805 | E50: 0.0465998638 | F50: 0.04558201188 | G50: 0.05060887244 | H50: 0.05813814514 | I50: 0.06520767237 | J50: 0.05344549416 | K50: 0.07729691798 | L50: 0.06078872351 | M50: 0.04943823309 | N50: 0.04885622478 | O50: 0.04964484045 | P50: 0.04637111355 | Q50: 0.0679966534 | S50: 0
C51: Wholesale Trade | D51: 0.04130474105 | E51: 0.03950743456 | F51: 0.03717043797 | G51: 0.04226484993 | H51: 0.04990541996 | I51: 0.04833580125 | J51: 0.04590276363 | K51: 0.04263289195 | L51: 0.03918152569 | M51: 0.04006785719 | N51: 0.04806165884 | O51: 0.04571822914 | P51: 0.04233530758 | Q51: 0.03525851378 | S51: 0
C52: Retail Trade | D52: 0.1252065311 | E52: 0.1260110155 | F52: 0.1211230628 | G52: 0.1277857391 | H52: 0.1308338253 | I52: 0.1383569565 | J52: 0.1256648069 | K52: 0.1207417323 | L52: 0.1533720545 | M52: 0.1195209597 | N52: 0.1264141844 | O52: 0.1361832333 | P52: 0.1304500053 | Q52: 0.1354170008 | S52: 0
C53: FIRE | D53: 0.1493961492 | E53: 0.1423623487 | F53: 0.1584313385 | G53: 0.1352377405 | H53: 0.1202950468 | I53: 0.1113530359 | J53: 0.1252027781 | K53: 0.192021706 | L53: 0.1975682642 | M53: 0.1517094112 | N53: 0.1232768999 | O53: 0.1559089446 | P53: 0.1337905003 | Q53: 0.1333011902 | S53: 0
C54: Misc. Services | D54: 0.3823821344 | E54: 0.3955439006 | F54: 0.4160839334 | G54: 0.3912655838 | H54: 0.3566501514 | I54: 0.3720744897 | J54: 0.393155279 | K54: 0.3171861871 | L54: 0.259883743 | M54: 0.3824603778 | N54: 0.3816962426 | O54: 0.347025952 | P54: 0.393492065 | Q54: 0.4308823615 | S54: 0
C55: Repair & Maintenance | D55: 0.003032056936 | E55: 0.004532483919 | F55: 0.002837978913 | G55: 0.002758028006 | H55: 0.003083042829 | I55: 0.004404055022 | J55: 0.002200310182 | K55: 0.002192958909 | L55: 0.001076231624 | M55: 0.002550582533 | N55: 0.00175516672 | O55: 0.003140644686 | P55: 0.003210797355 | Q55: 0.002294505278 | S55: 0
C56: Professional Services | D56: 0.01254995589 | E56: 0.01418244489 | F56: 0.01243919458 | G56: 0.01046738884 | H56: 0.0106275528 | I56: 0.007344458873 | J56: 0.01208474944 | K56: 0.008427508337 | L56: 0.005603023946 | M56: 0.01364682334 | N56: 0.008468771788 | O56: 0.01097145702 | P56: 0.009385441692 | Q56: 0.009345360258 | S56: 0
C57: Government | D57: 0.01526881905 | E57: 0.0170807435 | F57: 0.01425976428 | G57: 0.01956982368 | H57: 0.01581214142 | I57: 0.01220335243 | J57: 0.01492760138 | K57: 0.02451291232 | L57: 0.08024754982 | M57: 0.01683486838 | N57: 0.01665965727 | O57: 0.009234809168 | P57: 0.02441395236 | Q57: 0.01971774158 | S57: 0
C61: Multipliers
C62: National, Provincial and Territorial
C63: 2017
E64: Jobs | H64: Labour income | K64: Output | N64: GDP
E65: Direct | F65: Indirect | G65: Induced | H65: Direct | I65: Indirect | J65: Induced | K65: Direct | L65: Indirect | M65: Induced | N65: Direct | O65: Indirect | P65: Induced
C66: Canada | D66: Agriculture | E66: 3.408185773 | F66: 2.731663937 | G66: 1.160459726 | H66: 0.1615207104 | I66: 0.1610368018 | J66: 0.05673959542 | K66: 1 | L66: 0.6919326675 | M66: 0.2103154809 | N66: 0.4872287518 | O66: 0.3349492763 | P66: 0.1219152553
D67: Mining | E67: 0.8291715357 | F67: 2.37458453 | G67: 1.373433504 | H67: 0.1328265275 | I67: 0.167348453 | J67: 0.06693690177 | K67: 1 | L67: 0.5162231021 | M67: 0.2492728645 | N67: 0.5758765376 | O67: 0.2837518172 | P67: 0.1444905213
D68: Construction | E68: 3.937854252 | F68: 3.319654044 | G68: 2.249441499 | H68: 0.2916492249 | I68: 0.2192296302 | J68: 0.1094665348 | K68: 1 | L68: 0.6900082569 | M68: 0.4079510788 | N68: 0.4296123562 | O68: 0.3485399759 | P68: 0.2365151381
D69: Manufacturing | E69: 1.962037391 | F69: 2.73942141 | G69: 1.38566995 | H69: 0.1515285526 | I69: 0.1738064502 | J69: 0.0673583603 | K69: 1 | L69: 0.7463988444 | M69: 0.2513008561 | N69: 0.2681898097 | O69: 0.3350336488 | P69: 0.1458009079
D70: Machinery & Equipment | E70: 3.533287849 | F70: 2.372886303 | G70: 1.971763365 | H70: 0.2783076408 | I70: 0.160382059 | J70: 0.09609051114 | K70: 1 | L70: 0.54098785 | M70: 0.3576932627 | N70: 0.4036630666 | O70: 0.261163207 | P70: 0.2075509469
D71: TCPU | E71: 3.725952584 | F71: 2.882326609 | G71: 1.993962215 | H71: 0.2771423165 | I71: 0.1768975167 | J71: 0.09699029604 | K71: 1 | L71: 0.6410191402 | M71: 0.3617657725 | N71: 0.5738359249 | O71: 0.3106612336 | P71: 0.2096260718
D72: Wholesale Trade | E72: 4.735695263 | F72: 2.88792407 | G72: 2.403216557 | H72: 0.3490379845 | I72: 0.1687584229 | J72: 0.116882671 | K72: 1 | L72: 0.5302342114 | M72: 0.4361460563 | N72: 0.6117613274 | O72: 0.2817770797 | P72: 0.2528497263
D73: Retail Trade | E73: 12.34275518 | F73: 2.97163242 | G73: 2.818033032 | H73: 0.4335869438 | I73: 0.1726203499 | J73: 0.1370563863 | K73: 1 | L73: 0.567046704 | M73: 0.5112823469 | N73: 0.6042239674 | O73: 0.3123781153 | P73: 0.2964121196
D74: FIRE | E74: 2.933191343 | F74: 3.5762317 | G74: 1.931354986 | H74: 0.2186029238 | I74: 0.2192049969 | J74: 0.09396817269 | K74: 1 | L74: 0.6298037001 | M74: 0.3504925193 | N74: 0.5461109125 | O74: 0.3494508356 | P74: 0.2031682645
D75: Misc. Services | E75: 7.580782843 | F75: 2.185852483 | G75: 2.131851772 | H75: 0.4073054113 | I75: 0.1247985479 | J75: 0.1036591486 | K75: 1 | L75: 0.3762080478 | M75: 0.3868513816 | N75: 0.7033840978 | O75: 0.203720538 | P75: 0.2243516466
D76: Repair & Maintenance | E76: 8.736 | F76: 2.602 | G76: 2.699 | H76: 0.461 | I76: 0.147 | J76: 0.131 | K76: 1 | L76: 0.497 | M76: 0.49 | N76: 0.596 | O76: 0.265 | P76: 0.284
D77: Professional Services | E77: 6.349664089 | F77: 2.926126634 | G77: 2.769799875 | H77: 0.4420890184 | I77: 0.1678179925 | J77: 0.1348630983 | K77: 1 | L77: 0.4885415808 | M77: 0.5024048292 | N77: 0.6270988654 | O77: 0.2735971385 | P77: 0.2912589121
D78: Government | E78: 4.474281446 | F78: 3.429871637 | G78: 2.54809559 | H78: 0.3867983074 | I78: 0.208750791 | J78: 0.1241838916 | K78: 1 | L78: 0.5816677903 | M78: 0.46263483 | N78: 0.5389934501 | O78: 0.3471514731 | P78: 0.2679796986
E82: Jobs | H82: Labour income | K82: Output | N82: GDP
E83: Direct | F83: Indirect | G83: Induced | H83: Direct | I83: Indirect | J83: Induced | K83: Direct | L83: Indirect | M83: Induced | N83: Direct | O83: Indirect | P83: Induced
C84: Alberta | D84: Agriculture | E84: 2.294052739 | F84: 1.975042596 | G84: 0.5159391389 | H84: 0.07307913579 | I84: 0.118759976 | J84: 0.02617364795 | K84: 1 | L84: 0.5875195149 | M84: 0.1020461954 | N84: 0.4621109809 | O84: 0.259654594 | P84: 0.06312052612
D85: Mining | E85: 0.7139441613 | F85: 1.660984685 | G85: 0.8052381934 | H85: 0.1332470019 | I85: 0.1372198999 | J85: 0.0402383805 | K85: 1 | L85: 0.4175383697 | M85: 0.1586286027 | N85: 0.5416547573 | O85: 0.2336313253 | P85: 0.09813695042
D86: Construction | E86: 3.486580851 | F86: 2.078952632 | G86: 1.356334624 | H86: 0.2945700775 | I86: 0.1610435224 | J86: 0.06757569946 | K86: 1 | L86: 0.4973758143 | M86: 0.2662843305 | N86: 0.4102387011 | O86: 0.2710939404 | P86: 0.165464768
D87: Manufacturing | E87: 1.46506138 | F87: 2.180175845 | G87: 0.7565580682 | H87: 0.1202914134 | I87: 0.1457935595 | J87: 0.03767567782 | K87: 1 | L87: 0.7993639251 | M87: 0.1488803754 | N87: 0.322595932 | O87: 0.3498931225 | P87: 0.09247421467
D88: Machinery & Equipment | E88: 2.786867962 | F88: 1.417568471 | G88: 1.050975812 | H88: 0.2387624875 | I88: 0.1076303309 | J88: 0.05255497112 | K88: 1 | L88: 0.3434945815 | M88: 0.2065119525 | N88: 0.4039123514 | O88: 0.1787542789 | P88: 0.1280932625
D89: TCPU | E89: 3.065784397 | F89: 1.63704603 | G89: 1.140947251 | H89: 0.2729871582 | I89: 0.1193551551 | J89: 0.05694392216 | K89: 1 | L89: 0.4546857869 | M89: 0.2240224738 | N89: 0.6033480502 | O89: 0.2208968957 | P89: 0.1389337676
D90: Wholesale Trade | E90: 4.69314927 | F90: 1.532826713 | G90: 1.500489479 | H90: 0.3899448264 | I90: 0.1045232692 | J90: 0.07499944155 | K90: 1 | L90: 0.3511778299 | M90: 0.2943248077 | N90: 0.6308450161 | O90: 0.1933147395 | P90: 0.1828485807
D91: Retail Trade | E91: 11.21718231 | F91: 1.777368148 | G91: 1.617641818 | H91: 0.4121462806 | I91: 0.1163874945 | J91: 0.0808103244 | K91: 1 | L91: 0.4097209757 | M91: 0.3172631115 | N91: 0.6113986622 | O91: 0.2327620499 | P91: 0.1971605303
D92: FIRE | E92: 2.738772117 | F92: 2.260651606 | G92: 1.075670833 | H92: 0.2185500136 | I92: 0.1518215045 | J92: 0.05388326011 | K92: 1 | L92: 0.4581902223 | M92: 0.2110141364 | N92: 0.5717901424 | O92: 0.2501085388 | P92: 0.131242656
D93: Misc. Services | E93: 6.828340465 | F93: 1.449573247 | G93: 1.244518886 | H93: 0.3452571075 | I93: 0.08472220988 | J93: 0.06234053061 | K93: 1 | L93: 0.2581148783 | M93: 0.244111019 | N93: 0.7152447585 | O93: 0.1424863244 | P93: 0.1516236361
D94: Repair & Maintenance | E94: 5.978 | F94: 1.57 | G94: 1.536 | H94: 0.419 | I94: 0.098 | J94: 0.077 | K94: 1 | L94: 0.343 | M94: 0.301 | N94: 0.629 | O94: 0.19 | P94: 0.187
D95: Professional Services | E95: 5.158043239 | F95: 1.817912747 | G95: 1.524390852 | H95: 0.3977882904 | I95: 0.1120434382 | J95: 0.07606880159 | K95: 1 | L95: 0.3538702578 | M95: 0.2989551199 | N95: 0.6152420275 | O95: 0.2013756152 | P95: 0.186003923
D96: Government | E96: 3.613752507 | F96: 2.847426685 | G96: 1.476524737 | H96: 0.3404248049 | I96: 0.1844955471 | J96: 0.07339717112 | K96: 1 | L96: 0.5087861128 | M96: 0.2895756814 | N96: 0.5161421065 | O96: 0.3178210374 | P96: 0.1798267718
E100: Jobs | H100: Labour income | K100: Output | N100: GDP
E101: Direct | F101: Indirect | G101: Induced | H101: Direct | I101: Indirect | J101: Induced | K101: Direct | L101: Indirect | M101: Induced | N101: Direct | O101: Indirect | P101: Induced
C102: British Columbia | D102: Agriculture | E102: 3.119852041 | F102: 1.927414833 | G102: 0.8416110698 | H102: 0.128776065 | I102: 0.1151140244 | J102: 0.03990498488 | K102: 1 | L102: 0.4414655961 | M102: 0.1538101915 | N102: 0.5480874408 | O102: 0.2458358412 | P102: 0.09873984993
D103: Mining | E103: 0.9712965795 | F103: 1.424456583 | G103: 0.8162560134 | H103: 0.1320318292 | I103: 0.09671775637 | J103: 0.03900255058 | K103: 1 | L103: 0.2916720775 | M103: 0.1492826366 | N103: 0.5967969661 | O103: 0.1643974601 | P103: 0.09575107396
D104: Construction | E104: 3.781447152 | F104: 2.22519904 | G104: 1.412295649 | H104: 0.2624926694 | I104: 0.1501344342 | J104: 0.06740762489 | K104: 1 | L104: 0.4381944351 | M104: 0.2582156488 | N104: 0.4012972966 | O104: 0.2301740584 | P104: 0.165917052
D105: Manufacturing | E105: 2.591578024 | F105: 2.432729816 | G105: 1.226564557 | H105: 0.2042425188 | I105: 0.1614873085 | J105: 0.05838028997 | K105: 1 | L105: 0.5972531084 | M105: 0.2242755251 | N105: 0.3187260669 | O105: 0.2790062548 | P105: 0.1440559964
D106: Machinery & Equipment | E106: 3.714022003 | F106: 1.462429601 | G106: 1.456800079 | H106: 0.3177448264 | I106: 0.09347365657 | J106: 0.06955016596 | K106: 1 | L106: 0.2722187721 | M106: 0.2664418061 | N106: 0.4063342546 | O106: 0.1467472072 | P106: 0.1712381504
D107: TCPU | E107: 3.276579133 | F107: 2.146907531 | G107: 1.368496235 | H107: 0.2547969654 | I107: 0.134821504 | J107: 0.06511287576 | K107: 1 | L107: 0.4212406235 | M107: 0.250415582 | N107: 0.5478923474 | O107: 0.2186778801 | P107: 0.1609118085
D108: Wholesale Trade | E108: 6.49912182 | F108: 1.905247701 | G108: 2.109465214 | H108: 0.456046223 | I108: 0.1123542282 | J108: 0.1003468285 | K108: 1 | L108: 0.3381339579 | M108: 0.3859119192 | N108: 0.6425615029 | O108: 0.1886700735 | P108: 0.2479651872
D109: Retail Trade | E109: 11.14086676 | F109: 2.118449956 | G109: 2.068985048 | H109: 0.4404023777 | I109: 0.1206939023 | J109: 0.09855226024 | K109: 1 | L109: 0.3959515872 | M109: 0.3784891131 | N109: 0.6142263582 | O109: 0.2277970728 | P109: 0.2433107875
D110: FIRE | E110: 2.496182012 | F110: 2.839888458 | G110: 1.197832278 | H110: 0.1863399577 | I110: 0.1656430429 | J110: 0.05686513682 | K110: 1 | L110: 0.4803078932 | M110: 0.2188749222 | N110: 0.5633766045 | O110: 0.2644423727 | P110: 0.1408150729
D111: Misc. Services | E111: 7.06310913 | F111: 1.736060082 | G111: 1.464908199 | H111: 0.3233487469 | I111: 0.09478234476 | J111: 0.0696069076 | K111: 1 | L111: 0.2603832317 | M111: 0.2681394525 | N111: 0.6976893445 | O111: 0.1497721865 | P111: 0.1723495654
D112: Repair & Maintenance | E112: 8.285 | F112: 2.002 | G112: 2.009 | H112: 0.476 | I112: 0.111 | J112: 0.096 | K112: 1 | L112: 0.344 | M112: 0.367 | N112: 0.555 | O112: 0.195 | P112: 0.236
D113: Professional Services | E113: 6.169272038 | F113: 1.942420136 | G113: 1.963475111 | H113: 0.4532205274 | I113: 0.1090559508 | J113: 0.09345855421 | K113: 1 | L113: 0.3050193735 | M113: 0.3591294762 | N113: 0.6531899694 | O113: 0.1767352337 | P113: 0.2307861194
D114: Government | E114: 4.569588983 | F114: 3.092877285 | G114: 1.897007417 | H114: 0.3774282006 | I114: 0.1958783712 | J114: 0.0904531444 | K114: 1 | L114: 0.5102064468 | M114: 0.3469979058 | N114: 0.5109612871 | O114: 0.3117727461 | P114: 0.2230600279
E118: Jobs | H118: Labour income | K118: Output | N118: GDP
E119: Direct | F119: Indirect | G119: Induced | H119: Direct | I119: Indirect | J119: Induced | K119: Direct | L119: Indirect | M119: Induced | N119: Direct | O119: Indirect | P119: Induced
C120: Manitoba | D120: Agriculture | E120: 2.565810925 | F120: 1.610601733 | G120: 0.4560240963 | H120: 0.0787300635 | I120: 0.08331969722 | J120: 0.01999317443 | K120: 1 | L120: 0.3608812456 | M120: 0.07490333269 | N120: 0.4587140579 | O120: 0.1849830618 | P120: 0.04918883186
D121: Mining | E121: 0.715626436 | F121: 0.8183876082 | G121: 0.4334435418 | H121: 0.07869309666 | I121: 0.05545085462 | J121: 0.01880421262 | K121: 1 | L121: 0.1481610044 | M121: 0.07140540878 | N121: 0.7542614045 | O121: 0.08902485803 | P121: 0.04726145028
D122: Construction | E122: 3.734328103 | F122: 2.048646606 | G122: 1.185615692 | H122: 0.2632212286 | I122: 0.1213926463 | J122: 0.05164056666 | K122: 1 | L122: 0.3433594099 | M122: 0.1950133242 | N122: 0.3643131644 | O122: 0.1859478329 | P122: 0.1282329575
D123: Manufacturing | E123: 2.918945282 | F123: 1.660736755 | G123: 0.8707515844 | H123: 0.2001156425 | I123: 0.09076082892 | J123: 0.03786987264 | K123: 0.9999635501 | L123: 0.3986076693 | M123: 0.1433818455 | N123: 0.3349294104 | O123: 0.193689947 | P123: 0.09428776129
D124: Machinery & Equipment | E124: 3.285017708 | F124: 1.416800615 | G124: 0.9656670997 | H124: 0.2309758152 | I124: 0.0854005918 | J124: 0.04212270831 | K124: 1 | L124: 0.2953714814 | M124: 0.1589267097 | N124: 0.4099827704 | O124: 0.1505168805 | P124: 0.1044780575
D125: TCPU | E125: 3.645829608 | F125: 1.572343909 | G125: 1.093203208 | H125: 0.278417292 | I125: 0.08684812462 | J125: 0.04753086078 | K125: 1 | L125: 0.2636817615 | M125: 0.1798115394 | N125: 0.6304195339 | O125: 0.1360244431 | P125: 0.118385519
D126: Wholesale Trade | E126: 5.20804994 | F126: 1.55638761 | G126: 1.375207031 | H126: 0.3382630697 | I126: 0.08410842561 | J126: 0.0598996756 | K126: 1 | L126: 0.260030156 | M126: 0.2262126996 | N126: 0.639595601 | O126: 0.1483308801 | P126: 0.1491264885
D127: Retail Trade | E127: 11.85451979 | F127: 1.787377965 | G127: 1.595255679 | H127: 0.3988914667 | I127: 0.09286024609 | J127: 0.06952685597 | K127: 1 | L127: 0.3040093374 | M127: 0.2621187681 | N127: 0.6468751417 | O127: 0.1765154775 | P127: 0.1727796255
D128: FIRE | E128: 2.601972641 | F128: 2.579440243 | G128: 1.055898183 | H128: 0.1942995762 | I128: 0.1524012215 | J128: 0.04592622748 | K128: 1 | L128: 0.4189159274 | M128: 0.1737197958 | N128: 0.5259484113 | O128: 0.2417293087 | P128: 0.1143951033
D129: Misc. Services | E129: 8.624459865 | F129: 1.380573902 | G129: 1.446496424 | H129: 0.3939053159 | I129: 0.07211361066 | J129: 0.06300534939 | K129: 1 | L129: 0.1930599289 | M129: 0.2379667217 | N129: 0.7223520362 | O129: 0.1159980232 | P129: 0.1566301244
D130: Repair & Maintenance | E130: 12.59 | F130: 1.633 | G130: 1.654 | H130: 0.519 | I130: 0.081 | J130: 0.072 | K130: 1 | L130: 0.263 | M130: 0.272 | N130: 0.601 | O130: 0.157 | P130: 0.179
D131: Professional Services | E131: 7.288885688 | F131: 1.832100862 | G131: 1.595204992 | H131: 0.425364449 | I131: 0.08889725322 | J131: 0.06974823795 | K131: 1 | L131: 0.2621731171 | M131: 0.2624554227 | N131: 0.6352191695 | O131: 0.1526121991 | P131: 0.1728200357
D132: Government | E132: 5.614301025 | F132: 2.81827136 | G132: 1.623523725 | H132: 0.3907194355 | I132: 0.1495960783 | J132: 0.07083840202 | K132: 1 | L132: 0.4089234183 | M132: 0.2672214829 | N132: 0.5323085232 | O132: 0.2541165718 | P132: 0.1757416963
E136: Jobs | H136: Labour income | K136: Output | N136: GDP
E137: Direct | F137: Indirect | G137: Induced | H137: Direct | I137: Indirect | J137: Induced | K137: Direct | L137: Indirect | M137: Induced | N137: Direct | O137: Indirect | P137: Induced
C138: New Brunswick | D138: Agriculture | E138: 4.300107413 | F138: 1.469224853 | G138: 0.766978474 | H138: 0.1887085148 | I138: 0.07144954646 | J138: 0.03030381208 | K138: 1 | L138: 0.3080060518 | M138: 0.1219385216 | N138: 0.561281192 | O138: 0.1309608566 | P138: 0.07492657233
D139: Mining | E139: 4.086513076 | F139: 0.7798499026 | G139: 0.9686339872 | H139: 0.2858106567 | I139: 0.04490812093 | J139: 0.03797432826 | K139: 1 | L139: 0.1600152695 | M139: 0.1537247983 | N139: 0.6466873598 | O139: 0.07576304583 | P139: 0.09428811758
D140: Construction | E140: 5.368197981 | F140: 1.940907078 | G140: 1.203325771 | H140: 0.3043333967 | I140: 0.1017340415 | J140: 0.04717957581 | K140: 1 | L140: 0.3165079305 | M140: 0.1908470997 | N140: 0.4547091021 | O140: 0.1565042844 | P140: 0.1174488076
D141: Manufacturing | E141: 1.350639616 | F141: 1.033405312 | G141: 0.4050241309 | H141: 0.08114972866 | I141: 0.05475722846 | J141: 0.01574371247 | K141: 0.9999911406 | L141: 0.2359300135 | M141: 0.06459757216 | N141: 0.1497751868 | O141: 0.1045159074 | P141: 0.039557216
D142: Machinery & Equipment | E142: 5.53438871 | F142: 0.9364788721 | G142: 1.097284958 | H142: 0.2881231236 | I142: 0.04763433846 | J142: 0.04310168984 | K142: 0.9999462145 | L142: 0.1505160638 | M142: 0.1738142841 | N142: 0.4112689589 | O142: 0.0776387945 | P142: 0.1071012154
D143: TCPU | E143: 3.007700823 | F143: 1.995608589 | G143: 0.8917234139 | H143: 0.2041192375 | I143: 0.1020410601 | J143: 0.03507232815 | K143: 1 | L143: 0.4279643996 | M143: 0.1412950482 | N143: 0.4756191225 | O143: 0.1795969604 | P143: 0.087215844
D144: Wholesale Trade | E144: 6.253858792 | F144: 1.685121229 | G144: 1.455278905 | H144: 0.3758578934 | I144: 0.08888836944 | J144: 0.05725043454 | K144: 1 | L144: 0.2819255797 | M144: 0.2307902119 | N144: 0.6157906532 | O144: 0.1519701847 | P144: 0.1422604196
D145: Retail Trade | E145: 13.42137969 | F145: 1.877617403 | G145: 1.642972834 | H145: 0.4272472633 | I145: 0.09319622236 | J145: 0.06451620086 | K145: 1 | L145: 0.3182267288 | M145: 0.2604289147 | N145: 0.6152979371 | O145: 0.1758587513 | P145: 0.1605233808
D146: FIRE | E146: 2.702350593 | F146: 2.473619763 | G146: 0.8850460722 | H146: 0.1727138235 | I146: 0.1283827129 | J146: 0.03469840674 | K146: 1 | L146: 0.3900080782 | M146: 0.140237379 | N146: 0.5570574065 | O146: 0.2171661489 | P146: 0.08665174549
D147: Misc. Services | E147: 7.903077446 | F147: 1.492462796 | G147: 1.218662975 | H147: 0.3383980049 | I147: 0.06945769802 | J147: 0.04776118879 | K147: 1 | L147: 0.2088831581 | M147: 0.1930521509 | N147: 0.6951814378 | O147: 0.1156320629 | P147: 0.1187956713
D148: Repair & Maintenance | E148: 13.374 | F148: 1.864 | G148: 1.774 | H148: 0.513 | I148: 0.091 | J148: 0.07 | K148: 1 | L148: 0.316 | M148: 0.281 | N148: 0.527 | O148: 0.166 | P148: 0.173
D149: Professional Services | E149: 8.511486901 | F149: 1.818633902 | G149: 1.656056233 | H149: 0.4662422939 | I149: 0.08265016074 | J149: 0.06512768404 | K149: 1 | L149: 0.2415313147 | M149: 0.26248308 | N149: 0.6510902805 | O149: 0.1372720091 | P149: 0.1616830633
D150: Government | E150: 5.682697354 | F150: 2.114850445 | G150: 1.582047048 | H150: 0.4529609271 | I150: 0.1090250213 | J150: 0.06222712411 | K150: 1 | L150: 0.3130455785 | M150: 0.2509046726 | N150: 0.5901896869 | O150: 0.1819616541 | P150: 0.1546949187
E154: Jobs | H154: Labour income | K154: Output | N154: GDP
E155: Direct | F155: Indirect | G155: Induced | H155: Direct | I155: Indirect | J155: Induced | K155: Direct | L155: Indirect | M155: Induced | N155: Direct | O155: Indirect | P155: Induced
C156: Newfoundland and Labrador | D156: Agriculture | E156: 1.923269322 | F156: 1.383522818 | G156: 0.3692165892 | H156: 0.1079459225 | I156: 0.08585645827 | J156: 0.01781002627 | K156: 1 | L156: 0.3014669044 | M156: 0.06576547734 | N156: 0.4831802958 | O156: 0.1501237194 | P156: 0.04190471869
D157: Mining | E157: 0.4277730001 | F157: 0.6009787554 | G157: 0.2979478929 | H157: 0.07035111336 | I157: 0.05205540953 | J157: 0.01428039038 | K157: 1 | L157: 0.1671702629 | M157: 0.05271385508 | N157: 0.7337815154 | O157: 0.07733256272 | P157: 0.03375867253
D158: Construction | E158: 2.849577369 | F158: 1.514984009 | G158: 0.9022791849 | H158: 0.2442607459 | I158: 0.1205649168 | J158: 0.043392945 | K158: 1 | L158: 0.3303492954 | M158: 0.1603006815 | N158: 0.4055097555 | O158: 0.1739969087 | P158: 0.1025013452
D159: Manufacturing | E159: 1.327257408 | F159: 1.2770721 | G159: 0.4365073929 | H159: 0.1233423366 | I159: 0.08421399904 | J159: 0.02081253617 | K159: 0.9999784559 | L159: 0.4619948336 | M159: 0.07727085832 | N159: 0.2316751146 | O159: 0.2467297806 | P159: 0.04960077688
D160: Machinery & Equipment | E160: 5.212581338 | F160: 0.9900042797 | G160: 1.250781564 | H160: 0.4582192888 | I160: 0.0701650889 | J160: 0.05994537436 | K160: 1 | L160: 0.192237761 | M160: 0.2218888744 | N160: 0.5149585157 | O160: 0.1078593341 | P160: 0.1423297509
D161: TCPU | E161: 3.480188262 | F161: 1.157281392 | G161: 0.8981228427 | H161: 0.3024211813 | I161: 0.08023946397 | J161: 0.04329499099 | K161: 1 | L161: 0.3152935069 | M161: 0.1592870205 | N161: 0.5285396619 | O161: 0.1408749623 | P161: 0.1023310759
D162: Wholesale Trade | E162: 6.198755501 | F162: 0.9912673651 | G162: 1.274527423 | H162: 0.4494364907 | I162: 0.06886380237 | J162: 0.06151352733 | K162: 1 | L162: 0.1998331558 | M162: 0.2263758314 | N162: 0.7114115848 | O162: 0.1145879711 | P162: 0.1449376463
D163: Retail Trade | E163: 10.86378768 | F163: 1.600723397 | G163: 1.281917676 | H163: 0.4175173702 | I163: 0.09943309918 | J163: 0.06166682843 | K163: 1 | L163: 0.2889866178 | M163: 0.2276278844 | N163: 0.6389319166 | O163: 0.1691344419 | P163: 0.1458054623
D164: FIRE | E164: 2.830654826 | F164: 1.850617428 | G164: 0.8193362804 | H164: 0.2185650376 | I164: 0.1256055008 | J164: 0.03917259013 | K164: 1 | L164: 0.356858985 | M164: 0.1453834466 | N164: 0.5761684546 | O164: 0.1946949383 | P164: 0.09289833795
D165: Misc. Services | E165: 7.095384894 | F165: 1.134625426 | G165: 1.068292013 | H165: 0.3955066423 | I165: 0.06661106534 | J165: 0.05130500436 | K165: 1 | L165: 0.1779150998 | M165: 0.1896074327 | N165: 0.7210654656 | O165: 0.1002986242 | P165: 0.1217464592
D166: Repair & Maintenance | E166: 5.119 | F166: 1.804 | G166: 1.331 | H166: 0.416 | I166: 0.121 | J166: 0.064 | K166: 1 | L166: 0.326 | M166: 0.236 | N166: 0.488 | O166: 0.193 | P166: 0.151
D167: Professional Services | E167: 5.489986082 | F167: 1.322007457 | G167: 1.219897952 | H167: 0.4137832628 | I167: 0.08223020374 | J167: 0.05860608541 | K167: 1 | L167: 0.2274061952 | M167: 0.2163630058 | N167: 0.7418493083 | O167: 0.1335526546 | P167: 0.1387220745
D168: Government | E168: 4.814778331 | F168: 2.523296143 | G168: 1.27646046 | H168: 0.3908859052 | I168: 0.1607135619 | J168: 0.06105524124 | K168: 1 | L168: 0.415125024 | M168: 0.2266515749 | N168: 0.5376425369 | O168: 0.2498538242 | P168: 0.1449802658
E172: Jobs | H172: Labour income | K172: Output | N172: GDP
E173: Direct | F173: Indirect | G173: Induced | H173: Direct | I173: Indirect | J173: Induced | K173: Direct | L173: Indirect | M173: Induced | N173: Direct | O173: Indirect | P173: Induced
C174: Northwest Territories | D174: Agriculture | E174: 11.1822033 | F174: 0.3695236593 | G174: 0.2862146215 | H174: 0.2661528584 | I174: 0.03165707689 | J174: 0.01833024272 | K174: 1 | L174: 0.0890041522 | M174: 0.07773801408 | N174: 0.5591261134 | O174: 0.05387523983 | P174: 0.05094261189
D175: Mining | E175: 0.987371029 | F175: 0.5056552411 | G175: 0.3515523249 | H175: 0.1880691817 | I175: 0.05070452837 | J175: 0.02243935992 | K175: 1 | L175: 0.1404739311 | M175: 0.0954767671 | N175: 0.4936740282 | O175: 0.07714880852 | P175: 0.06284064592
D176: Construction | E176: 1.279272054 | F176: 0.7198243899 | G176: 0.3314864409 | H176: 0.1585019129 | I176: 0.07507071387 | J176: 0.02113065741 | K176: 1 | L176: 0.1831178529 | M176: 0.08992401764 | N176: 0.2779186804 | O176: 0.1046684778 | P176: 0.05906906169
D177: Manufacturing | E177: 2.012150838 | F177: 1.32499275 | G177: 0.3629194193 | H177: 0.1878542844 | I177: 0.08288018469 | J177: 0.02318892508 | K177: 1 | L177: 0.744181856 | M177: 0.09869470559 | N177: 0.3233275093 | O177: 0.1948592878 | P177: 0.0643432107
D178: Machinery & Equipment | E178: 0 | F178: 0 | G178: 0 | H178: 0 | I178: 0 | J178: 0 | K178: 0 | L178: 0 | M178: 0 | N178: 0 | O178: 0 | P178: 0
D179: TCPU | E179: 1.94349908 | F179: 0.7154093455 | G179: 0.4150673347 | H179: 0.2202729643 | I179: 0.05995637877 | J179: 0.02635434389 | K179: 1 | L179: 0.2002223296 | M179: 0.1129012265 | N179: 0.4160614712 | O179: 0.1026271108 | P179: 0.07381404237
D180: Wholesale Trade | E180: 2.833672209 | F180: 0.4341279191 | G180: 0.5236381742 | H180: 0.3117110106 | I180: 0.03902328601 | J180: 0.03333655384 | K180: 1 | L180: 0.1210691948 | M180: 0.1426258912 | N180: 0.8007137322 | O180: 0.06663008723 | P180: 0.09324628035
D181: Retail Trade | E181: 9.206228478 | F181: 0.9201368416 | G181: 0.8287105693 | H181: 0.466800307 | I181: 0.07520223569 | J181: 0.05264522562 | K181: 1 | L181: 0.2586107251 | M181: 0.2256496847 | N181: 0.6463776792 | O181: 0.1413402245 | P181: 0.1475569476
D182: FIRE | E182: 1.133886174 | F182: 0.8678524223 | G182: 0.2690990559 | H182: 0.1046574629 | I182: 0.07764878451 | J182: 0.01749560245 | K182: 1 | L182: 0.2471937251 | M182: 0.0732288381 | N182: 0.6375774391 | O182: 0.1430243427 | P182: 0.04762693779
D183: Misc. Services | E183: 5.576444762 | F183: 0.5394633481 | G183: 0.6182872656 | H183: 0.4086547011 | I183: 0.04252386777 | J183: 0.03937820346 | K183: 1 | L183: 0.1279597491 | M183: 0.1683094014 | N183: 0.7122300772 | O183: 0.07356563823 | P183: 0.1100253199
D184: Repair & Maintenance | E184: 7.407 | F184: 0.511 | G184: 0.617 | H184: 0.433 | I184: 0.044 | J184: 0.039 | K184: 1 | L184: 0.156 | M184: 0.168 | N184: 0.632 | O184: 0.09 | P184: 0.11
D185: Professional Services | E185: 6.102554524 | F185: 0.7617035279 | G185: 0.7263914637 | H185: 0.4615840324 | I185: 0.05869648724 | J185: 0.04620794042 | K185: 1 | L185: 0.1884826197 | M185: 0.1975173888 | N185: 0.6047537399 | O185: 0.1051680292 | P185: 0.1291576682
D186: Government | E186: 3.743635963 | F186: 1.232323371 | G186: 0.6423487088 | H186: 0.3806713613 | I186: 0.106195807 | J186: 0.04109242308 | K186: 1 | L186: 0.3209619835 | M186: 0.1750973362 | N186: 0.4920651209 | O186: 0.1760711667 | P186: 0.1143836899
E190: Jobs | H190: Labour income | K190: Output | N190: GDP
E191: Direct | F191: Indirect | G191: Induced | H191: Direct | I191: Indirect | J191: Induced | K191: Direct | L191: Indirect | M191: Induced | N191: Direct | O191: Indirect | P191: Induced
C192: Nova Scotia | D192: Agriculture | E192: 4.518563461 | F192: 1.649812162 | G192: 0.8765130038 | H192: 0.2050685401 | I192: 0.0769191616 | J192: 0.03553172898 | K192: 1 | L192: 0.2559370427 | M192: 0.1364296371 | N192: 0.5595627636 | O192: 0.1306038493 | P192: 0.08704910547
D193: Mining | E193: 1.097485785 | F193: 2.883772311 | G193: 1.305097991 | H193: 0.1721247085 | I193: 0.2600886575 | J193: 0.05314501033 | K193: 1 | L193: 0.6974160048 | M193: 0.2036398143 | N193: 0.3234482547 | O193: 0.3290440889 | P193: 0.1294714574
D194: Construction | E194: 5.241425473 | F194: 2.321844927 | G194: 1.357926448 | H194: 0.3071133895 | I194: 0.1239218715 | J194: 0.0548632937 | K194: 1 | L194: 0.3395008827 | M194: 0.2114711367 | N194: 0.3980876888 | O194: 0.1817127404 | P194: 0.1349773555
D195: Manufacturing | E195: 3.299825656 | F195: 2.046752643 | G195: 0.9972806068 | H195: 0.2157269979 | I195: 0.102201244 | J195: 0.04042006304 | K195: 0.9999825829 | L195: 0.3689820204 | M195: 0.1555996241 | N195: 0.3002603102 | O195: 0.1828571017 | P195: 0.09915057134
D196: Machinery & Equipment | E196: 4.930589468 | F196: 1.110222224 | G196: 1.370644774 | H196: 0.3333619391 | I196: 0.06168027151 | J196: 0.05564856405 | K196: 1 | L196: 0.1723635884 | M196: 0.213876386 | N196: 0.4852697984 | O196: 0.09562305895 | P196: 0.1365410963
D197: TCPU | E197: 3.863025525 | F197: 1.844966005 | G197: 1.168129664 | H197: 0.2658917658 | I197: 0.0969601482 | J197: 0.0474679205 | K197: 1 | L197: 0.308579043 | M197: 0.1820068744 | N197: 0.5024812682 | O197: 0.1591641637 | P197: 0.1162003409
D198: Wholesale Trade | E198: 7.561730182 | F198: 1.75580251 | G198: 2.006428723 | H198: 0.4920611772 | I198: 0.09044288974 | J198: 0.08120038392 | K198: 1 | L198: 0.2792047534 | M198: 0.3128924512 | N198: 0.6182324241 | O198: 0.1519645312 | P198: 0.1996170719
D199: Retail Trade | E199: 14.03205202 | F199: 1.962800134 | G199: 1.947611759 | H199: 0.4620892615 | I199: 0.09935850712 | J199: 0.07867798033 | K199: 1 | L199: 0.3364434899 | M199: 0.303682948 | N199: 0.6190652119 | O199: 0.1853718617 | P199: 0.1937440375
D200: FIRE | E200: 3.083287667 | F200: 2.71704371 | G200: 1.048861814 | H200: 0.1867074106 | I200: 0.1363237517 | J200: 0.04250798693 | K200: 1 | L200: 0.3952494465 | M200: 0.1635630911 | N200: 0.5396670547 | O200: 0.217770257 | P200: 0.1042691184
D201: Misc. Services | E201: 8.432489061 | F201: 1.479579889 | G201: 1.456351433 | H201: 0.369062715 | I201: 0.0701093593 | J201: 0.058765139 | K201: 1 | L201: 0.1982577327 | M201: 0.22699334 | N201: 0.7289921419 | O201: 0.109507669 | P201: 0.1451338428
D202: Repair & Maintenance | E202: 10.663 | F202: 1.575 | G202: 1.715 | H202: 0.45 | I202: 0.084 | J202: 0.069 | K202: 1 | L202: 0.29 | M202: 0.267 | N202: 0.565 | O202: 0.159 | P202: 0.171
D203: Professional Services | E203: 8.350448523 | F203: 1.876686105 | G203: 1.865428604 | H203: 0.4672182203 | I203: 0.0890776792 | J203: 0.07543365223 | K203: 1 | L203: 0.2467636251 | M203: 0.2910595079 | N203: 0.6599391185 | O203: 0.1417093562 | P203: 0.1858628658
D204: Government | E204: 4.36926869 | F204: 2.88294547 | G204: 1.659764039 | H204: 0.3656183236 | I204: 0.1569957451 | J204: 0.06720932186 | K204: 1 | L204: 0.428420254 | M204: 0.2591854171 | N204: 0.4881240752 | O204: 0.2489840195 | P204: 0.1653068645
E208: Jobs | H208: Labour income | K208: Output | N208: GDP
E209: Direct | F209: Indirect | G209: Induced | H209: Direct | I209: Indirect | J209: Induced | K209: Direct | L209: Indirect | M209: Induced | N209: Direct | O209: Indirect | P209: Induced
C210: Nunavut | D210: Agriculture | E210: 1.072 | F210: 0.428 | G210: 0.106 | H210: 0.061 | I210: 0.023 | J210: 0.006 | K210: 1 | L210: 0.075 | M210: 0.026 | N210: 0.627 | O210: 0.043 | P210: 0.017
D211: Mining | E211: 1.507296782 | F211: 0.2821380662 | G211: 0.3406351093 | H211: 0.2059225944 | I211: 0.02393578531 | J211: 0.01961592889 | K211: 1 | L211: 0.07544615536 | M211: 0.08191829067 | N211: 0.5669434391 | O211: 0.04115125459 | P211: 0.05452079555
D212: Construction | E212: 1.375898072 | F212: 0.6621877418 | G212: 0.2934322765 | H212: 0.1414579744 | I212: 0.06675929702 | J212: 0.0164765111 | K212: 1 | L212: 0.1695595721 | M212: 0.07056959715 | N212: 0.3087410415 | O212: 0.09344712031 | P212: 0.04710751244
D213: Manufacturing | E213: 2.389654558 | F213: 1.776109939 | G213: 0.3633811694 | H213: 0.1928196685 | I213: 0.1057927211 | J213: 0.0204513899 | K213: 0.9989354917 | L213: 0.3469860843 | M213: 0.08742666788 | N213: 0.4216207162 | O213: 0.1906327448 | P213: 0.0583492563
D214: Machinery & Equipment | E214: 0 | F214: 0 | G214: 0 | H214: 0 | I214: 0 | J214: 0 | K214: 0 | L214: 0 | M214: 0 | N214: 0 | O214: 0 | P214: 0
D215: TCPU | E215: 3.672356435 | F215: 0.7377406272 | G215: 0.5939366537 | H215: 0.3526515835 | I215: 0.06042189428 | J215: 0.0338733748 | K215: 1 | L215: 0.1742854079 | M215: 0.142527961 | N215: 0.449841966 | O215: 0.09472919063 | P215: 0.09587071618
D216: Wholesale Trade | E216: 2.550460868 | F216: 0.3719106222 | G216: 0.4268730372 | H216: 0.2570153113 | I216: 0.03110965052 | J216: 0.02432130744 | K216: 1 | L216: 0.08746454788 | M216: 0.1026654897 | N216: 0.7649255645 | O216: 0.04667865162 | P216: 0.06893992741
D217: Retail Trade | E217: 9.43669583 | F217: 0.8211008533 | G217: 0.5597014862 | H217: 0.3323353323 | I217: 0.06233779565 | J217: 0.03160193538 | K217: 1 | L217: 0.1920445285 | M217: 0.1344538645 | N217: 0.6506937625 | O217: 0.107375878 | P217: 0.09033598187
D218: FIRE | E218: 1.386986307 | F218: 0.9321203376 | G218: 0.2127942266 | H218: 0.08913266985 | I218: 0.07145702043 | J218: 0.01220577898 | K218: 1 | L218: 0.2107784765 | M218: 0.05160123012 | N218: 0.720639201 | O218: 0.1174781718 | P218: 0.03417145829
D219: Misc. Services | E219: 4.538308372 | F219: 0.6792633418 | G219: 0.5173119132 | H219: 0.3107307887 | I219: 0.05776782924 | J219: 0.02925429816 | K219: 0.9995931949 | L219: 0.1903329534 | M219: 0.1242750798 | N219: 0.6781838506 | O219: 0.10014439 | P219: 0.08338365453
D220: Repair & Maintenance | E220: 3.755 | F220: 0.548 | G220: 0.319 | H220: 0.785 | I220: 0.062 | J220: 0.018 | K220: 1 | L220: 0.181 | M220: 0.077 | N220: 0.44 | O220: 0.098 | P220: 0.051
D221: Professional Services | E221: 4.559252175 | F221: 0.8560624641 | G221: 0.5228579507 | H221: 0.3126439122 | I221: 0.06269710192 | J221: 0.02956865974 | K221: 1 | L221: 0.1996481473 | M221: 0.1259255055 | N221: 0.5441710824 | O221: 0.1205482426 | P221: 0.08416339642
D222: Government | E222: 3.967747575 | F222: 1.130156858 | G222: 0.6614191057 | H222: 0.4007285894 | I222: 0.08504186524 | J222: 0.03708035254 | K222: 1 | L222: 0.2514500902 | M222: 0.1591507954 | N222: 0.4881870774 | O222: 0.1351358867 | P222: 0.1067393891
E226: Jobs | H226: Labour income | K226: Output | N226: GDP
E227: Direct | F227: Indirect | G227: Induced | H227: Direct | I227: Indirect | J227: Induced | K227: Direct | L227: Indirect | M227: Induced | N227: Direct | O227: Indirect | P227: Induced
C228: Ontario | D228: Agriculture | E228: 5.592289968 | F228: 2.52785354 | G228: 1.167644187 | H228: 0.1702889005 | I228: 0.1421709053 | J228: 0.05763525419 | K228: 1 | L228: 0.5360810213 | M228: 0.2121874364 | N228: 0.4524022106 | O228: 0.2693739464 | P228: 0.1240348933
D229: Mining | E229: 2.335252208 | F229: 1.543239121 | G229: 1.401886429 | H229: 0.001083058304 | I229: 0.1077667755 | J229: 0.06947997869 | K229: 1 | L229: 0.3232751551 | M229: 0.2544547659 | N229: 0.6198667831 | O229: 0.1760363406 | P229: 0.1491656027
D230: Construction | E230: 4.082103844 | F230: 2.537396139 | G230: 1.700165011 | H230: 0 | I230: 0.1633100031 | J230: 0.08421057528 | K230: 1 | L230: 0.504936486 | M230: 0.308515693 | N230: 0.4616021443 | O230: 0.2521555134 | P230: 0.1809431703
D231: Manufacturing | E231: 1.684518849 | F231: 1.799815709 | G231: 0.9410676827 | H231: 0.06907448234 | I231: 0.1181682815 | J231: 0.04665021834 | K231: 1 | L231: 0.4767401215 | M231: 0.1710183737 | N231: 0.2353346754 | O231: 0.2088371806 | P231: 0.1002151808
D232: Machinery & Equipment | E232: 3.409492325 | F232: 1.710532387 | G232: 1.485120699 | H232: 0 | I232: 0.1173020355 | J232: 0.07343755383 | K232: 1 | L232: 0.3886624711 | M232: 0.2693932368 | N232: 0.3875829603 | O232: 0.1886927837 | P232: 0.1579357846
D233: TCPU | E233: 4.13800192 | F233: 2.637887567 | G233: 1.694218679 | H233: 0.2158953851 | I233: 0.1574688634 | J233: 0.08379531693 | K233: 1 | L233: 0.5381065894 | M233: 0.3075272497 | N233: 0.5350085261 | O233: 0.2638559384 | P233: 0.180351821
D234: Wholesale Trade | E234: 3.928811784 | F234: 2.597410401 | G234: 1.815755467 | H234: 0 | I234: 0.1504299719 | J234: 0.08974524084 | K234: 1 | L234: 0.4643615198 | M234: 0.3290152234 | N234: 0.5849952103 | O234: 0.2462742783 | P234: 0.19307502
D235: Retail Trade | E235: 12.56151659 | F235: 2.704524418 | G235: 2.360050063 | H235: 0 | I235: 0.1589001404 | J235: 0.1165707566 | K235: 1 | L235: 0.5168604312 | M235: 0.4276099659 | N235: 0.5800115963 | O235: 0.2867128109 | P235: 0.251042605
D236: FIRE | E236: 3.075720658 | F236: 2.976370394 | G236: 1.625782942 | H236: 0.240968266 | I236: 0.1892674904 | J236: 0.08050264069 | K236: 1 | L236: 0.5272124256 | M236: 0.2949241849 | N236: 0.5430449137 | O236: 0.2975491779 | P236: 0.1728987569
D237: Misc. Services | E237: 7.116652393 | F237: 1.892342074 | G237: 1.751746392 | H237: 0.3395320234 | I237: 0.1051311668 | J237: 0.08653062704 | K237: 1 | L237: 0.3040700589 | M237: 0.3173481398 | N237: 0.6973190815 | O237: 0.1702543862 | P237: 0.1865738918
D238: Repair & Maintenance | E238: 9.843 | F238: 2.37 | G238: 2.269 | H238: 0.486 | I238: 0.134 | J238: 0.112 | K238: 1 | L238: 0.438 | M238: 0.411 | N238: 0.573 | O238: 0.233 | P238: 0.241
... 75 more rows

Sheet Lists
A1: *** WARNING *** This Worksheet contains Data and Formulas that are an integral part of the EI2 model. Although the data and formulas are available for review they must not be changed. Any changes to the data or formulas will impact the analysis and may invalidate the model results. To view the data and formulas simply scroll over to the adjacent columns to the right.
C2: Years | E2: States | G2: Yes / No | I2: Technology/Service
C3: 2010 | E3: Canada | G3: Y | I3: Cold climate air-source heat pump
C4: 2011 | E4: Alberta | G4: N | I4: Electric furnace
C5: 2012 | E5: British Columbia | I5: Attic insulation (acheive a minimum RSI 8.81 or R-50)
C6: 2013 | E6: Manitoba | I6: Flat roof and/or Cathedral ceiling insulation (acheive a minimum RSI 4.93 or R-28)
C7: 2014 | E7: New Brunswick | I7: Basement / Foundation insulation (insulate a minimum of 60% the area)
C8: 2015 | E8: Newfoundland and Labrador | I8: Exterior wall insulation (100% of the area to 2012 NBC levels)
C9: 2016 | E9: Northwest Territories | I9: Air-sealing
C10: 2017 | E10: Nova Scotia | I10: Windows and doors replacement (U-Factor 1.08 W/m2-K, and Energy star qualified)
C11: 2018 | E11: Nunavut
C12: 2019 | E12: Ontario
C13: 2020 | E13: Prince Edward Island
C14: 2021 | E14: Quebec
C15: 2022 | E15: Saskatchewan
C16: 2023 | E16: Yukon
C17: 2024
C18: 2025
C19: 2026
C20: 2027
C21: 2028
C22: 2029
C23: 2030
C24: 2031
C25: 2032
C26: 2033
C27: 2034
C28: 2035
C29: 2036
C30: 2037
C31: 2038
C32: 2039
C33: 2040
